Workbook

Sheet Instructions
A1: Instructions - Highway Revenue Assessment Tool
B2: ="Version " & TEXT(MAX(Version[Version]), "#,##0.00") -> Version 1.30
B3: ="Last Updated: " & TEXT(MAX(Version[Date]), "m/d/yyyy") -> Last Updated: 6/11/2020
A5: Input Definitions | E5: Model Overview
C7: User-entered inputs
C9: Default assumptions that can be overwritten by user
C11: Default custom scenario that can be overwritten by user
C13: Calculations or assumptions that cannot be altered

Sheet Tool
A1: Highway Revenue Assessment Tool | D1: ** DEFAULT INPUTS ** | E1: ** DEFAULT INPUTS **
D2: Market & Vehicle | E2: Revenue
A3: User Input
A4: Select fields from the Required Input section to determine what state or scenario to analyze over a set period. Use Optional Market and Vehicle Settings to customize the analysis on fuel use and other market factors, like inflation. Use Optional Revenue Settings to explore ways to change how revenue is collected and the state gasoline tax is set. Note, changing the number of EVs will change the number of gasoline vehicles; the model assumes the absolute number of vehicles is the same as the default settings. Vehicle Type: The light truck category includes pickups, vans (full-size and mini), utility-type vehicles, as well as other vehicles (panel trucks and delivery vans generally of 10,000 pounds or less gross vehicle weight).
A5: Required Input | F5: Optional Market and Vehicle Settings | K5: Optional Revenue Settings
A6: State | B6: California | D6: =AVERAGE(Calculations!E69:AL69) -> 0.0232985605 | E6: =SUMIFS(Motor_Fuel_Taxes[Gasoline Tax ($/gallon)],Motor_Fuel_Taxes[State], Input_State_Modeled, Motor_Fuel_Taxes[Year], "1/1/" & Input_Base_Year_Modeled) -> 0.3 | F6: Annual Inflation Rate (%) | I6: 0.0232985605 | K6: Baseline Gasoline Tax ($/gallon) | N6: 0.3
A7: Vehicle Type | B7: Light-Duty Vehicles | D7: =SUMIFS(Share_of_Motor_Fuel[Gasoline Share],Share_of_Motor_Fuel[Date], "1/1/" & Input_Base_Year_Modeled, Share_of_Motor_Fuel[State], Input_State_Modeled)*SUMIFS(Share_of_Motor_Fuel[Share of Motor Fuel Taxes],Share_of_Motor_Fuel[Date], "1/1/" & Input_Base_Year_Modeled, Share_of_Motor_Fuel[State], Input_State_Modeled) -> 0.3871229971 | E7: =SUMIFS(Motor_Fuel_Taxes[Diesel Tax ($/gallon)],Motor_Fuel_Taxes[State], Input_State_Modeled, Motor_Fuel_Taxes[Year], "1/1/" & Input_Base_Year_Modeled) -> 0.13 | F7: Share of Highway-User Revenue (%) | I7: 0.3871229971 | K7: Baseline Diesel Tax ($/gallon) | N7: 0.13
A8: Scenario from U.S. EIA Annual Energy Outlook | B8: Reference case | D8: =Calculations!E70/Calculations!E91*Calculations!E95 -> 58548.07785 | E8: =AVERAGE(Calculations!E83:AL83) -> 117.6365925 | F8: Baseline Battery Electric Vehicles | I8: 58548.07785 | K8: Electric Vehicle Fuel Economy Equivalent (MPGe) | N8: 117.6365925
A9: Inflation Index | B9: CPI | D9: =(Calculations!E72)/Calculations!E91*Calculations!E95 -> 30455.30254 | E9: No | F9: Baseline Plug-in 10 Gasoline Hybrid Vehicles | I9: 30455.30254 | K9: Index Motor Fuel Tax to Inflation (Yes/No) | N9: No
A10: End Year for Analysis | B10: 2030 | D10: =(Calculations!E74)/Calculations!E91*Calculations!E95 -> 26258.98983 | E10: No | F10: Baseline Plug-in 40 Gasoline Hybrid Vehicles | I10: 26258.98983 | K10: Index Motor Fuel Tax to Fuel Use (Yes/No) | N10: No
A11: Baseline Year for Analysis | B11: 2017 | D11: =AVERAGE(Calculations!E71:OFFSET(Calculations!E71, 0,Input_End_Year_Modeled-Input_Baseline_Year_Modeled)) -> 0.2865785295 | F11: Annual Battery Electric Vehicle Growth Rate (%) | I11: 0.2865785295
D12: =AVERAGE(Calculations!E73:OFFSET(Calculations!E73, 0,Input_End_Year_Modeled-Input_Baseline_Year_Modeled)) -> 0.1688140542 | E12: None | F12: Annual Plug-in 10 Gasoline Hybrid Vehicle Growth Rate (%) | I12: 0.1688140542 | K12: Electric Vehicle Annual Fee | N12: None
D13: =AVERAGE(Calculations!E75:AL75) -> 0.1066068678 | E13: 0 | F13: Annual Plug-in 40 Gasoline Hybrid Vehicle Growth Rate (%) | I13: 0.1066068678 | K13: Annual Battery Electric Vehicle Fee | N13: 0
D14: 0.23 | E14: 0 | F14: Plug-In 10 Gasoline Hybrid Share of Electric Miles (%) | I14: 0.23 | K14: Annual Plug-In Hybrid Electric Vehicle Fee | N14: 0
D15: 0.63 | F15: Plug-In 40 Gasoline Hybrid Share of Electric Miles (%) | I15: 0.63
D16: =AVERAGE(Calculations!E85:AL85) -> 0.01536730088 | F16: Annual Change in Vehicle Stock Fuel Economy (MPG) (%) | I16: 0.01536730088
D17: =AVERAGE(Calculations!E87:AL87) -> 0.0004852874256 | F17: Annual Change in VMT (%) | I17: 0.0004852874256
A20: Tool Results
A21: Results are shown in summary statstics and three graphs. See the Calculations tab for detailed results.
A23: Revenue Summary and Mechanisms
B25: =Input_Baseline_Year_Modeled+1 -> 2018 | C25: =Input_End_Year_Modeled -> 2030 | K25: Total Change | L25: Absolute Change in % | M25: Average Annual Change in %
A27: Baseline Revenue (Motor Fuel Tax only) does not include any Optional Settings
A28: ="Baseline Motor Fuel Tax Revenue (Nominal), "& Input_Baseline_Year_Modeled+1 &"-" & Input_End_Year_Modeled &" ($)" -> Baseline Motor Fuel Tax Revenue (Nominal), 2018-2030 ($) | B28: =(INDEX(Calculations!$E$111:$AL$147,MATCH(Calculations!$A$115,Calculations!$A$111:$A$147,0),Input_Baseline_Year_Modeled+1-Calculations!$E$111+1)) -> 6211781025 | C28: =(INDEX(Calculations!$E$111:$AL$147,MATCH(Calculations!$A$115,Calculations!$A$111:$A$147,0),Input_End_Year_Modeled-Calculations!$E$111+1)) -> 4630655002 | G28: ="Change in Baseline Motor Fuel Tax Revenue (Nominal), "& Input_Baseline_Year_Modeled+1&"-"&Input_End_Year_Modeled& " ($), (%)" -> Change in Baseline Motor Fuel Tax Revenue (Nominal), 2018-2030 ($), (%) | K28: =C28-B28 -> -1581126023 | L28: =IFERROR((C28-B28)/B28, 0) -> -0.2545366645 | M28: =IFERROR(AVERAGE(Calculations!F116:AL116), 0) -> -0.02348237798
A31: Revenue Breakdown (Motor Fuel Tax and Electric Vehicle Fees) considering Optional Settings
A32: Motor Fuel Tax Revenue ($) | B32: =(INDEX(Calculations!$E$111:$AL$147,MATCH(Calculations!$A$123,Calculations!$A$111:$A$147,0),Input_Baseline_Year_Modeled+1-Calculations!$E$111+1)) -> 6368277165 | C32: =(INDEX(Calculations!$E$111:$AL$147,MATCH(Calculations!$A$123,Calculations!$A$111:$A$147,0),Input_End_Year_Modeled-Calculations!$E$111+1)) -> 4730825557 | G32: ="Change in Motor Fuel Tax Revenue, "& Input_Baseline_Year_Modeled+1&"-"&Input_End_Year_Modeled&" ($), (%)" -> Change in Motor Fuel Tax Revenue, 2018-2030 ($), (%) | K32: =C32-B32 -> -1637451608 | L32: =IFERROR((C32-B32)/B32, 0) -> -0.2571263099 | M32: =IFERROR(AVERAGE(Calculations!F124:AL124), 0) -> -0.02185267962
A33: Electric Vehicle Fee Revenue (Nominal) ($) | B33: =(INDEX(Calculations!$E$111:$AL$147,MATCH(Calculations!$A$128,Calculations!$A$111:$A$147,0),Input_Baseline_Year_Modeled+1-Calculations!$E$111+1)) -> 0 | C33: =(INDEX(Calculations!$E$111:$AL$147,MATCH(Calculations!$A$128,Calculations!$A$111:$A$147,0),Input_End_Year_Modeled-Calculations!$E$111+1)) -> 0 | G33: ="Change in Electric Vehicle Fee Revenue (Nominal), "& Input_Baseline_Year_Modeled+1&"-"&Input_End_Year_Modeled&" ($), (%)" -> Change in Electric Vehicle Fee Revenue (Nominal), 2018-2030 ($), (%) | K33: =C33-B33 -> 0 | L33: =IFERROR((C33-B33)/B33, 0) -> 0 | M33: =IFERROR(AVERAGE(Calculations!F129:AL129), 0) -> 0
A35: Revenue Mechanisms
A36: Gasoline Tax ($/gallon) | B36: =(INDEX(Calculations!$E$111:$AL$147,MATCH(Calculations!$A$143,Calculations!$A$111:$A$147,0),Input_Baseline_Year_Modeled+1-Calculations!$E$111+1)) -> 0.3 | C36: =(INDEX(Calculations!$E$111:$AL$147,MATCH(Calculations!$A$143,Calculations!$A$111:$A$147,0),Input_End_Year_Modeled-Calculations!$E$111+1)) -> 0.3 | G36: ="Change in Gasoline Tax, "& Input_Baseline_Year_Modeled+1&"-"&Input_End_Year_Modeled&" ($), (%)" -> Change in Gasoline Tax, 2018-2030 ($), (%) | K36: =C36-B36 -> 0 | L36: =IFERROR((C36-B36)/B36, 0) -> 0 | M36: =IFERROR(AVERAGE(Calculations!F144:AL144), 0) -> 0
A37: Annual Battery Electric Vehicle Fee (Nominal) ($/vehicle) | B37: =(INDEX(Calculations!$E$111:$AL$147,MATCH(Calculations!$A$145,Calculations!$A$111:$A$147,0),Input_Baseline_Year_Modeled+1-Calculations!$E$111+1)) -> 0 | C37: =(INDEX(Calculations!$E$111:$AL$147,MATCH(Calculations!$A$145,Calculations!$A$111:$A$147,0),Input_End_Year_Modeled-Calculations!$E$111+1)) -> 0 | G37: ="Change in Annual Battery Electric Vehicle Fee (Nominal), "& Input_Baseline_Year_Modeled+1&"-"&Input_End_Year_Modeled&" ($), (%)" -> Change in Annual Battery Electric Vehicle Fee (Nominal), 2018-2030 ($), (%) | K37: =C37-B37 -> 0 | L37: =IFERROR((C37-B37)/B37, 0) -> 0 | M37: =IFERROR(AVERAGE(Calculations!F146:AL146), 0) -> 0
A38: Annual Plug-In Hybrid Electric Vehicle Fee (Nominal) ($/vehicle) | B38: =(INDEX(Calculations!$E$111:$AL$147,MATCH(Calculations!$A$147,Calculations!$A$111:$A$147,0),Input_Baseline_Year_Modeled+1-Calculations!$E$111+1)) -> 0 | C38: =(INDEX(Calculations!$E$111:$AL$147,MATCH(Calculations!$A$147,Calculations!$A$111:$A$147,0),Input_End_Year_Modeled-Calculations!$E$111+1)) -> 0 | G38: ="Change in Annual Plug-in Hybrid Electric Vehicle Fee (Nominal), "& Input_Baseline_Year_Modeled+1&"-"&Input_End_Year_Modeled&" ($), (%)" -> Change in Annual Plug-in Hybrid Electric Vehicle Fee (Nominal), 2018-2030 ($), (%) | K38: =C38-B38 -> 0 | L38: =IFERROR((C38-B38)/B38, 0) -> 0 | M38: =IFERROR(AVERAGE(Calculations!F148:AL148), 0) -> 0
A40: Vehicle Market, Travel, and Fuel Use
A41: Inflation | B41: =(INDEX(Calculations!$E$88:$AL$147,MATCH(Calculations!$A$88,Calculations!$A$88:$A$147,0),Input_Baseline_Year_Modeled+1-Calculations!$E$111+1)) -> 0.02519344111 | C41: =(INDEX(Calculations!$E$88:$AL$147,MATCH(Calculations!$A$88,Calculations!$A$88:$A$147,0),Input_End_Year_Modeled-Calculations!$E$111+1)) -> 0.02163204866 | G41: ="Change in Inflation, "& Input_Baseline_Year_Modeled+1&"-"&Input_End_Year_Modeled&" (%)" -> Change in Inflation, 2018-2030 (%) | K41: =C41-B41 -> -0.003561392455 | L41: =IFERROR((C41-B41)/B41, 0) -> -0.1413618901 | M41: =IFERROR(AVERAGE(Calculations!F89:AL89), 0) -> -0.0134542387
A42: Gasoline Consumption (gallons) | B42: =(INDEX(Calculations!$E$88:$AL$147,MATCH(Calculations!$A$107,Calculations!$A$88:$A$147,0),Input_Baseline_Year_Modeled+1-Calculations!$E$111+1)) -> 2.070593675e+10 | C42: =(INDEX(Calculations!$E$88:$AL$147,MATCH(Calculations!$A$107,Calculations!$A$88:$A$147,0),Input_End_Year_Modeled-Calculations!$E$111+1)) -> 1.543551667e+10 | G42: ="Change in Gasoline Consumption, "& Input_Baseline_Year_Modeled+1&"-"&Input_End_Year_Modeled&" (gallons), (%)" -> Change in Gasoline Consumption, 2018-2030 (gallons), (%) | K42: =C42-B42 -> -5270420076 | L42: =IFERROR((C42-B42)/B42, 0) -> -0.2545366645 | M42: =IFERROR(AVERAGE(Calculations!F108:AL108), 0) -> -0.02348237798
A43: Gasoline Vehicle Stock (vehicles) | B43: =(INDEX(Calculations!$E$88:$AL$147,MATCH(Calculations!$A$95,Calculations!$A$88:$A$147,0),Input_Baseline_Year_Modeled+1-Calculations!$E$111+1)) -> 37743343 | C43: =(INDEX(Calculations!$E$88:$AL$147,MATCH(Calculations!$A$95,Calculations!$A$88:$A$147,0),Input_End_Year_Modeled-Calculations!$E$111+1)) -> 38162909 | G43: ="Change in Gasoline Vehicle Stock, "& Input_Baseline_Year_Modeled+1&"-"&Input_End_Year_Modeled & " (vehicles), (%)" -> Change in Gasoline Vehicle Stock, 2018-2030 (vehicles), (%) | K43: 419566 | L43: 0.01111629142 | M43: =IFERROR(AVERAGE(Calculations!F96:AL96), 0) -> 0.001209302256
A44: Gasoline Vehicle Stock Fuel Economy (MPG) | B44: =(INDEX(Calculations!$E$88:$AL$147,MATCH(Calculations!$A$103,Calculations!$A$88:$A$147,0),Input_Baseline_Year_Modeled+1-Calculations!$E$111+1)) -> 23.398106 | C44: =(INDEX(Calculations!$E$88:$AL$147,MATCH(Calculations!$A$103,Calculations!$A$88:$A$147,0),Input_End_Year_Modeled-Calculations!$E$111+1)) -> 31.523226 | G44: ="Change in Vehicle Fuel Economy, "& Input_Baseline_Year_Modeled+1&"-"&Input_End_Year_Modeled & " (MPG), (%)" -> Change in Vehicle Fuel Economy, 2018-2030 (MPG), (%) | K44: 8.12512 | L44: 0.3472554573 | M44: =IFERROR(AVERAGE(Calculations!F104:AL104), 0) -> 0.02401976086
A45: Electric Vehicle Stock (vehicles) | B45: =(INDEX(Calculations!$E$88:$AL$147,MATCH(Calculations!$A$100,Calculations!$A$88:$A$147,0),Input_Baseline_Year_Modeled+1-Calculations!$E$111+1)) -> 175316 | C45: =(INDEX(Calculations!$E$88:$AL$147,MATCH(Calculations!$A$100,Calculations!$A$88:$A$147,0),Input_End_Year_Modeled-Calculations!$E$111+1)) -> 2203228 | G45: ="Change in Electric Vehicle Stock, "& Input_Baseline_Year_Modeled+1&"-"&Input_End_Year_Modeled & " (vehicles), (%)" -> Change in Electric Vehicle Stock, 2018-2030 (vehicles), (%) | K45: 2027912 | L45: 11.56718155 | M45: =IFERROR(AVERAGE(Calculations!F101:AL101), 0) -> 0.1970062164
A46: Annual VMT (miles) | B46: =(INDEX(Calculations!$E$88:$AL$147,MATCH(Calculations!$A$105,Calculations!$A$88:$A$147,0),Input_Baseline_Year_Modeled+1-Calculations!$E$111+1)) -> 12836.163 | C46: =(INDEX(Calculations!$E$88:$AL$147,MATCH(Calculations!$A$105,Calculations!$A$88:$A$147,0),Input_End_Year_Modeled-Calculations!$E$111+1)) -> 12750.005 | G46: ="Change in Annual VMT, "& Input_Baseline_Year_Modeled+1&"-"&Input_End_Year_Modeled & " (miles), (%)" -> Change in Annual VMT, 2018-2030 (miles), (%) | K46: -86.158 | L46: -0.006712130408 | M46: =IFERROR(AVERAGE(Calculations!F106:AL106), 0) -> -8.43475484e-05
A50: This graph estimates revenue losses compared to the baseline (first year) from several factors (negative losses are revenue increases); this graph is not affected by changes to Optional Revenue Settings. That is, this graph is intended to model business as usual if no revenue changes are made (i.e., the gasoline tax stays constant and no electric vehicle fees are implemented). | H50: ="This graph shows the changes in a number of factors scaled to " & Input_Baseline_Year_Modeled & " levels allowing for an apple-to-apples comparison of factors with different units of measurement." -> This graph shows the changes in a number of factors scaled to 2017 levels allowing for an apple-to-apples comparison of factors with different units of measurement.
A74: This graph shows total revenue and revenue losses/gains considering all inputs, including Optional Revenue Settings. When an EV fee is selected, the revenue shown will be broken down by fuel tax revenue and EV fee revenue. | H74: This graph shows the deployment of electric and conventional vehicles over time.

Sheet Calculations
A1: Calculations - Highway Revenue Assessment Tool
A2: Model Input
A3: Vehicle Stock (millions)
A4: Vehicle Type | B4: Technology Type | C4: Fuel | D4: Type | E4: =MIN(Vehicle_Projections[Year]) -> 2017 | F4: =E4+1 -> 2018 | G4: 2019 | H4: 2020 | I4: 2021 | J4: 2022 | K4: 2023 | L4: 2024 | M4: 2025 | N4: 2026 | O4: 2027 | P4: 2028 | Q4: 2029 | R4: 2030 | S4: 2031 | T4: 2032 | U4: 2033 | V4: 2034 | W4: 2035 | X4: 2036 | Y4: 2037 | Z4: 2038 | AA4: 2039 | AB4: 2040 | AC4: 2041 | AD4: 2042 | AE4: 2043 | AF4: 2044 | AG4: 2045 | AH4: 2046 | AI4: 2047 | AJ4: 2048 | AK4: 2049 | AL4: 2050
A5: Passenger Cars | B5: Gasoline ICE Vehicles | C5: Gasoline | D5: Stock | E5: =IF(Input_Scenario_Modeled="Custom", SUMIFS(Custom_Stock_MPG[Vehicle Stock],Custom_Stock_MPG[Year],Calculations!E$4, Custom_Stock_MPG[[ Technology Type]], $B5, Custom_Stock_MPG[Vehicle Type], $A5, Custom_Stock_MPG[Scenario], Input_Scenario_Modeled), SUMIFS(Vehicle_Projections[Vehicle Stock],Vehicle_Projections[Year],Calculations!E$4, Vehicle_Projections[[ Technology Type]], $B5, Vehicle_Projections[Vehicle Type], $A5, Vehicle_Projections[Scenario], Input_Scenario_Modeled)) -> 122.711388 | F5: =IF(Input_Scenario_Modeled="Custom", SUMIFS(Custom_Stock_MPG[Vehicle Stock],Custom_Stock_MPG[Year],Calculations!F$4, Custom_Stock_MPG[[ Technology Type]], $B5, Custom_Stock_MPG[Vehicle Type], $A5, Custom_Stock_MPG[Scenario], Input_Scenario_Modeled), SUMIFS(Vehicle_Projections[Vehicle Stock],Vehicle_Projections[Year],Calculations!F$4, Vehicle_Projections[[ Technology Type]], $B5, Vehicle_Projections[Vehicle Type], $A5, Vehicle_Projections[Scenario], Input_Scenario_Modeled)) -> 123.135612 | G5: =IF(Input_Scenario_Modeled="Custom", SUMIFS(Custom_Stock_MPG[Vehicle Stock],Custom_Stock_MPG[Year],Calculations!G$4, Custom_Stock_MPG[[ Technology Type]], $B5, Custom_Stock_MPG[Vehicle Type], $A5, Custom_Stock_MPG[Scenario], Input_Scenario_Modeled), SUMIFS(Vehicle_Projections[Vehicle Stock],Vehicle_Projections[Year],Calculations!G$4, Vehicle_Projections[[ Technology Type]], $B5, Vehicle_Projections[Vehicle Type], $A5, Vehicle_Projections[Scenario], Input_Scenario_Modeled)) -> 123.253426 | H5: =IF(Input_Scenario_Modeled="Custom", SUMIFS(Custom_Stock_MPG[Vehicle Stock],Custom_Stock_MPG[Year],Calculations!H$4, Custom_Stock_MPG[[ Technology Type]], $B5, Custom_Stock_MPG[Vehicle Type], $A5, Custom_Stock_MPG[Scenario], Input_Scenario_Modeled), SUMIFS(Vehicle_Projections[Vehicle Stock],Vehicle_Projections[Year],Calculations!H$4, Vehicle_Projections[[ Technology Type]], $B5, Vehicle_Projections[Vehicle Type], $A5, Vehicle_Projections[Scenario], Input_Scenario_Modeled)) -> 123.222893 | I5: =IF(Input_Scenario_Modeled="Custom", SUMIFS(Custom_Stock_MPG[Vehicle Stock],Custom_Stock_MPG[Year],Calculations!I$4, Custom_Stock_MPG[[ Technology Type]], $B5, Custom_Stock_MPG[Vehicle Type], $A5, Custom_Stock_MPG[Scenario], Input_Scenario_Modeled), SUMIFS(Vehicle_Projections[Vehicle Stock],Vehicle_Projections[Year],Calculations!I$4, Vehicle_Projections[[ Technology Type]], $B5, Vehicle_Projections[Vehicle Type], $A5, Vehicle_Projections[Scenario], Input_Scenario_Modeled)) -> 123.055527 | J5: =IF(Input_Scenario_Modeled="Custom", SUMIFS(Custom_Stock_MPG[Vehicle Stock],Custom_Stock_MPG[Year],Calculations!J$4, Custom_Stock_MPG[[ Technology Type]], $B5, Custom_Stock_MPG[Vehicle Type], $A5, Custom_Stock_MPG[Scenario], Input_Scenario_Modeled), SUMIFS(Vehicle_Projections[Vehicle Stock],Vehicle_Projections[Year],Calculations!J$4, Vehicle_Projections[[ Technology Type]], $B5, Vehicle_Projections[Vehicle Type], $A5, Vehicle_Projections[Scenario], Input_Scenario_Modeled)) -> 122.718056 | K5: =IF(Input_Scenario_Modeled="Custom", SUMIFS(Custom_Stock_MPG[Vehicle Stock],Custom_Stock_MPG[Year],Calculations!K$4, Custom_Stock_MPG[[ Technology Type]], $B5, Custom_Stock_MPG[Vehicle Type], $A5, Custom_Stock_MPG[Scenario], Input_Scenario_Modeled), SUMIFS(Vehicle_Projections[Vehicle Stock],Vehicle_Projections[Year],Calculations!K$4, Vehicle_Projections[[ Technology Type]], $B5, Vehicle_Projections[Vehicle Type], $A5, Vehicle_Projections[Scenario], Input_Scenario_Modeled)) -> 122.458916 | L5: =IF(Input_Scenario_Modeled="Custom", SUMIFS(Custom_Stock_MPG[Vehicle Stock],Custom_Stock_MPG[Year],Calculations!L$4, Custom_Stock_MPG[[ Technology Type]], $B5, Custom_Stock_MPG[Vehicle Type], $A5, Custom_Stock_MPG[Scenario], Input_Scenario_Modeled), SUMIFS(Vehicle_Projections[Vehicle Stock],Vehicle_Projections[Year],Calculations!L$4, Vehicle_Projections[[ Technology Type]], $B5, Vehicle_Projections[Vehicle Type], $A5, Vehicle_Projections[Scenario], Input_Scenario_Modeled)) -> 122.266251 | M5: =IF(Input_Scenario_Modeled="Custom", SUMIFS(Custom_Stock_MPG[Vehicle Stock],Custom_Stock_MPG[Year],Calculations!M$4, Custom_Stock_MPG[[ Technology Type]], $B5, Custom_Stock_MPG[Vehicle Type], $A5, Custom_Stock_MPG[Scenario], Input_Scenario_Modeled), SUMIFS(Vehicle_Projections[Vehicle Stock],Vehicle_Projections[Year],Calculations!M$4, Vehicle_Projections[[ Technology Type]], $B5, Vehicle_Projections[Vehicle Type], $A5, Vehicle_Projections[Scenario], Input_Scenario_Modeled)) -> 122.137253 | N5: =IF(Input_Scenario_Modeled="Custom", SUMIFS(Custom_Stock_MPG[Vehicle Stock],Custom_Stock_MPG[Year],Calculations!N$4, Custom_Stock_MPG[[ Technology Type]], $B5, Custom_Stock_MPG[Vehicle Type], $A5, Custom_Stock_MPG[Scenario], Input_Scenario_Modeled), SUMIFS(Vehicle_Projections[Vehicle Stock],Vehicle_Projections[Year],Calculations!N$4, Vehicle_Projections[[ Technology Type]], $B5, Vehicle_Projections[Vehicle Type], $A5, Vehicle_Projections[Scenario], Input_Scenario_Modeled)) -> 122.025963 | O5: =IF(Input_Scenario_Modeled="Custom", SUMIFS(Custom_Stock_MPG[Vehicle Stock],Custom_Stock_MPG[Year],Calculations!O$4, Custom_Stock_MPG[[ Technology Type]], $B5, Custom_Stock_MPG[Vehicle Type], $A5, Custom_Stock_MPG[Scenario], Input_Scenario_Modeled), SUMIFS(Vehicle_Projections[Vehicle Stock],Vehicle_Projections[Year],Calculations!O$4, Vehicle_Projections[[ Technology Type]], $B5, Vehicle_Projections[Vehicle Type], $A5, Vehicle_Projections[Scenario], Input_Scenario_Modeled)) -> 121.913261 | P5: =IF(Input_Scenario_Modeled="Custom", SUMIFS(Custom_Stock_MPG[Vehicle Stock],Custom_Stock_MPG[Year],Calculations!P$4, Custom_Stock_MPG[[ Technology Type]], $B5, Custom_Stock_MPG[Vehicle Type], $A5, Custom_Stock_MPG[Scenario], Input_Scenario_Modeled), SUMIFS(Vehicle_Projections[Vehicle Stock],Vehicle_Projections[Year],Calculations!P$4, Vehicle_Projections[[ Technology Type]], $B5, Vehicle_Projections[Vehicle Type], $A5, Vehicle_Projections[Scenario], Input_Scenario_Modeled)) -> 121.737373 | Q5: =IF(Input_Scenario_Modeled="Custom", SUMIFS(Custom_Stock_MPG[Vehicle Stock],Custom_Stock_MPG[Year],Calculations!Q$4, Custom_Stock_MPG[[ Technology Type]], $B5, Custom_Stock_MPG[Vehicle Type], $A5, Custom_Stock_MPG[Scenario], Input_Scenario_Modeled), SUMIFS(Vehicle_Projections[Vehicle Stock],Vehicle_Projections[Year],Calculations!Q$4, Vehicle_Projections[[ Technology Type]], $B5, Vehicle_Projections[Vehicle Type], $A5, Vehicle_Projections[Scenario], Input_Scenario_Modeled)) -> 121.489922 | R5: =IF(Input_Scenario_Modeled="Custom", SUMIFS(Custom_Stock_MPG[Vehicle Stock],Custom_Stock_MPG[Year],Calculations!R$4, Custom_Stock_MPG[[ Technology Type]], $B5, Custom_Stock_MPG[Vehicle Type], $A5, Custom_Stock_MPG[Scenario], Input_Scenario_Modeled), SUMIFS(Vehicle_Projections[Vehicle Stock],Vehicle_Projections[Year],Calculations!R$4, Vehicle_Projections[[ Technology Type]], $B5, Vehicle_Projections[Vehicle Type], $A5, Vehicle_Projections[Scenario], Input_Scenario_Modeled)) -> 121.222878 | S5: =IF(Input_Scenario_Modeled="Custom", SUMIFS(Custom_Stock_MPG[Vehicle Stock],Custom_Stock_MPG[Year],Calculations!S$4, Custom_Stock_MPG[[ Technology Type]], $B5, Custom_Stock_MPG[Vehicle Type], $A5, Custom_Stock_MPG[Scenario], Input_Scenario_Modeled), SUMIFS(Vehicle_Projections[Vehicle Stock],Vehicle_Projections[Year],Calculations!S$4, Vehicle_Projections[[ Technology Type]], $B5, Vehicle_Projections[Vehicle Type], $A5, Vehicle_Projections[Scenario], Input_Scenario_Modeled)) -> 121.018806 | T5: =IF(Input_Scenario_Modeled="Custom", SUMIFS(Custom_Stock_MPG[Vehicle Stock],Custom_Stock_MPG[Year],Calculations!T$4, Custom_Stock_MPG[[ Technology Type]], $B5, Custom_Stock_MPG[Vehicle Type], $A5, Custom_Stock_MPG[Scenario], Input_Scenario_Modeled), SUMIFS(Vehicle_Projections[Vehicle Stock],Vehicle_Projections[Year],Calculations!T$4, Vehicle_Projections[[ Technology Type]], $B5, Vehicle_Projections[Vehicle Type], $A5, Vehicle_Projections[Scenario], Input_Scenario_Modeled)) -> 120.824837 | U5: =IF(Input_Scenario_Modeled="Custom", SUMIFS(Custom_Stock_MPG[Vehicle Stock],Custom_Stock_MPG[Year],Calculations!U$4, Custom_Stock_MPG[[ Technology Type]], $B5, Custom_Stock_MPG[Vehicle Type], $A5, Custom_Stock_MPG[Scenario], Input_Scenario_Modeled), SUMIFS(Vehicle_Projections[Vehicle Stock],Vehicle_Projections[Year],Calculations!U$4, Vehicle_Projections[[ Technology Type]], $B5, Vehicle_Projections[Vehicle Type], $A5, Vehicle_Projections[Scenario], Input_Scenario_Modeled)) -> 120.670578 | V5: =IF(Input_Scenario_Modeled="Custom", SUMIFS(Custom_Stock_MPG[Vehicle Stock],Custom_Stock_MPG[Year],Calculations!V$4, Custom_Stock_MPG[[ Technology Type]], $B5, Custom_Stock_MPG[Vehicle Type], $A5, Custom_Stock_MPG[Scenario], Input_Scenario_Modeled), SUMIFS(Vehicle_Projections[Vehicle Stock],Vehicle_Projections[Year],Calculations!V$4, Vehicle_Projections[[ Technology Type]], $B5, Vehicle_Projections[Vehicle Type], $A5, Vehicle_Projections[Scenario], Input_Scenario_Modeled)) -> 120.57618 | W5: =IF(Input_Scenario_Modeled="Custom", SUMIFS(Custom_Stock_MPG[Vehicle Stock],Custom_Stock_MPG[Year],Calculations!W$4, Custom_Stock_MPG[[ Technology Type]], $B5, Custom_Stock_MPG[Vehicle Type], $A5, Custom_Stock_MPG[Scenario], Input_Scenario_Modeled), SUMIFS(Vehicle_Projections[Vehicle Stock],Vehicle_Projections[Year],Calculations!W$4, Vehicle_Projections[[ Technology Type]], $B5, Vehicle_Projections[Vehicle Type], $A5, Vehicle_Projections[Scenario], Input_Scenario_Modeled)) -> 120.540047 | X5: =IF(Input_Scenario_Modeled="Custom", SUMIFS(Custom_Stock_MPG[Vehicle Stock],Custom_Stock_MPG[Year],Calculations!X$4, Custom_Stock_MPG[[ Technology Type]], $B5, Custom_Stock_MPG[Vehicle Type], $A5, Custom_Stock_MPG[Scenario], Input_Scenario_Modeled), SUMIFS(Vehicle_Projections[Vehicle Stock],Vehicle_Projections[Year],Calculations!X$4, Vehicle_Projections[[ Technology Type]], $B5, Vehicle_Projections[Vehicle Type], $A5, Vehicle_Projections[Scenario], Input_Scenario_Modeled)) -> 120.566536 | Y5: =IF(Input_Scenario_Modeled="Custom", SUMIFS(Custom_Stock_MPG[Vehicle Stock],Custom_Stock_MPG[Year],Calculations!Y$4, Custom_Stock_MPG[[ Technology Type]], $B5, Custom_Stock_MPG[Vehicle Type], $A5, Custom_Stock_MPG[Scenario], Input_Scenario_Modeled), SUMIFS(Vehicle_Projections[Vehicle Stock],Vehicle_Projections[Year],Calculations!Y$4, Vehicle_Projections[[ Technology Type]], $B5, Vehicle_Projections[Vehicle Type], $A5, Vehicle_Projections[Scenario], Input_Scenario_Modeled)) -> 120.675819 | Z5: =IF(Input_Scenario_Modeled="Custom", SUMIFS(Custom_Stock_MPG[Vehicle Stock],Custom_Stock_MPG[Year],Calculations!Z$4, Custom_Stock_MPG[[ Technology Type]], $B5, Custom_Stock_MPG[Vehicle Type], $A5, Custom_Stock_MPG[Scenario], Input_Scenario_Modeled), SUMIFS(Vehicle_Projections[Vehicle Stock],Vehicle_Projections[Year],Calculations!Z$4, Vehicle_Projections[[ Technology Type]], $B5, Vehicle_Projections[Vehicle Type], $A5, Vehicle_Projections[Scenario], Input_Scenario_Modeled)) -> 120.892532 | AA5: =IF(Input_Scenario_Modeled="Custom", SUMIFS(Custom_Stock_MPG[Vehicle Stock],Custom_Stock_MPG[Year],Calculations!AA$4, Custom_Stock_MPG[[ Technology Type]], $B5, Custom_Stock_MPG[Vehicle Type], $A5, Custom_Stock_MPG[Scenario], Input_Scenario_Modeled), SUMIFS(Vehicle_Projections[Vehicle Stock],Vehicle_Projections[Year],Calculations!AA$4, Vehicle_Projections[[ Technology Type]], $B5, Vehicle_Projections[Vehicle Type], $A5, Vehicle_Projections[Scenario], Input_Scenario_Modeled)) -> 121.176064 | AB5: =IF(Input_Scenario_Modeled="Custom", SUMIFS(Custom_Stock_MPG[Vehicle Stock],Custom_Stock_MPG[Year],Calculations!AB$4, Custom_Stock_MPG[[ Technology Type]], $B5, Custom_Stock_MPG[Vehicle Type], $A5, Custom_Stock_MPG[Scenario], Input_Scenario_Modeled), SUMIFS(Vehicle_Projections[Vehicle Stock],Vehicle_Projections[Year],Calculations!AB$4, Vehicle_Projections[[ Technology Type]], $B5, Vehicle_Projections[Vehicle Type], $A5, Vehicle_Projections[Scenario], Input_Scenario_Modeled)) -> 121.525269 | AC5: =IF(Input_Scenario_Modeled="Custom", SUMIFS(Custom_Stock_MPG[Vehicle Stock],Custom_Stock_MPG[Year],Calculations!AC$4, Custom_Stock_MPG[[ Technology Type]], $B5, Custom_Stock_MPG[Vehicle Type], $A5, Custom_Stock_MPG[Scenario], Input_Scenario_Modeled), SUMIFS(Vehicle_Projections[Vehicle Stock],Vehicle_Projections[Year],Calculations!AC$4, Vehicle_Projections[[ Technology Type]], $B5, Vehicle_Projections[Vehicle Type], $A5, Vehicle_Projections[Scenario], Input_Scenario_Modeled)) -> 121.932854 | AD5: =IF(Input_Scenario_Modeled="Custom", SUMIFS(Custom_Stock_MPG[Vehicle Stock],Custom_Stock_MPG[Year],Calculations!AD$4, Custom_Stock_MPG[[ Technology Type]], $B5, Custom_Stock_MPG[Vehicle Type], $A5, Custom_Stock_MPG[Scenario], Input_Scenario_Modeled), SUMIFS(Vehicle_Projections[Vehicle Stock],Vehicle_Projections[Year],Calculations!AD$4, Vehicle_Projections[[ Technology Type]], $B5, Vehicle_Projections[Vehicle Type], $A5, Vehicle_Projections[Scenario], Input_Scenario_Modeled)) -> 122.378746 | AE5: =IF(Input_Scenario_Modeled="Custom", SUMIFS(Custom_Stock_MPG[Vehicle Stock],Custom_Stock_MPG[Year],Calculations!AE$4, Custom_Stock_MPG[[ Technology Type]], $B5, Custom_Stock_MPG[Vehicle Type], $A5, Custom_Stock_MPG[Scenario], Input_Scenario_Modeled), SUMIFS(Vehicle_Projections[Vehicle Stock],Vehicle_Projections[Year],Calculations!AE$4, Vehicle_Projections[[ Technology Type]], $B5, Vehicle_Projections[Vehicle Type], $A5, Vehicle_Projections[Scenario], Input_Scenario_Modeled)) -> 122.838478 | AF5: =IF(Input_Scenario_Modeled="Custom", SUMIFS(Custom_Stock_MPG[Vehicle Stock],Custom_Stock_MPG[Year],Calculations!AF$4, Custom_Stock_MPG[[ Technology Type]], $B5, Custom_Stock_MPG[Vehicle Type], $A5, Custom_Stock_MPG[Scenario], Input_Scenario_Modeled), SUMIFS(Vehicle_Projections[Vehicle Stock],Vehicle_Projections[Year],Calculations!AF$4, Vehicle_Projections[[ Technology Type]], $B5, Vehicle_Projections[Vehicle Type], $A5, Vehicle_Projections[Scenario], Input_Scenario_Modeled)) -> 123.325874 | AG5: =IF(Input_Scenario_Modeled="Custom", SUMIFS(Custom_Stock_MPG[Vehicle Stock],Custom_Stock_MPG[Year],Calculations!AG$4, Custom_Stock_MPG[[ Technology Type]], $B5, Custom_Stock_MPG[Vehicle Type], $A5, Custom_Stock_MPG[Scenario], Input_Scenario_Modeled), SUMIFS(Vehicle_Projections[Vehicle Stock],Vehicle_Projections[Year],Calculations!AG$4, Vehicle_Projections[[ Technology Type]], $B5, Vehicle_Projections[Vehicle Type], $A5, Vehicle_Projections[Scenario], Input_Scenario_Modeled)) -> 123.819046 | AH5: =IF(Input_Scenario_Modeled="Custom", SUMIFS(Custom_Stock_MPG[Vehicle Stock],Custom_Stock_MPG[Year],Calculations!AH$4, Custom_Stock_MPG[[ Technology Type]], $B5, Custom_Stock_MPG[Vehicle Type], $A5, Custom_Stock_MPG[Scenario], Input_Scenario_Modeled), SUMIFS(Vehicle_Projections[Vehicle Stock],Vehicle_Projections[Year],Calculations!AH$4, Vehicle_Projections[[ Technology Type]], $B5, Vehicle_Projections[Vehicle Type], $A5, Vehicle_Projections[Scenario], Input_Scenario_Modeled)) -> 124.296104 | AI5: =IF(Input_Scenario_Modeled="Custom", SUMIFS(Custom_Stock_MPG[Vehicle Stock],Custom_Stock_MPG[Year],Calculations!AI$4, Custom_Stock_MPG[[ Technology Type]], $B5, Custom_Stock_MPG[Vehicle Type], $A5, Custom_Stock_MPG[Scenario], Input_Scenario_Modeled), SUMIFS(Vehicle_Projections[Vehicle Stock],Vehicle_Projections[Year],Calculations!AI$4, Vehicle_Projections[[ Technology Type]], $B5, Vehicle_Projections[Vehicle Type], $A5, Vehicle_Projections[Scenario], Input_Scenario_Modeled)) -> 124.714691 | AJ5: =IF(Input_Scenario_Modeled="Custom", SUMIFS(Custom_Stock_MPG[Vehicle Stock],Custom_Stock_MPG[Year],Calculations!AJ$4, Custom_Stock_MPG[[ Technology Type]], $B5, Custom_Stock_MPG[Vehicle Type], $A5, Custom_Stock_MPG[Scenario], Input_Scenario_Modeled), SUMIFS(Vehicle_Projections[Vehicle Stock],Vehicle_Projections[Year],Calculations!AJ$4, Vehicle_Projections[[ Technology Type]], $B5, Vehicle_Projections[Vehicle Type], $A5, Vehicle_Projections[Scenario], Input_Scenario_Modeled)) -> 125.055206 | AK5: =IF(Input_Scenario_Modeled="Custom", SUMIFS(Custom_Stock_MPG[Vehicle Stock],Custom_Stock_MPG[Year],Calculations!AK$4, Custom_Stock_MPG[[ Technology Type]], $B5, Custom_Stock_MPG[Vehicle Type], $A5, Custom_Stock_MPG[Scenario], Input_Scenario_Modeled), SUMIFS(Vehicle_Projections[Vehicle Stock],Vehicle_Projections[Year],Calculations!AK$4, Vehicle_Projections[[ Technology Type]], $B5, Vehicle_Projections[Vehicle Type], $A5, Vehicle_Projections[Scenario], Input_Scenario_Modeled)) -> 125.339851 | AL5: =IF(Input_Scenario_Modeled="Custom", SUMIFS(Custom_Stock_MPG[Vehicle Stock],Custom_Stock_MPG[Year],Calculations!AL$4, Custom_Stock_MPG[[ Technology Type]], $B5, Custom_Stock_MPG[Vehicle Type], $A5, Custom_Stock_MPG[Scenario], Input_Scenario_Modeled), SUMIFS(Vehicle_Projections[Vehicle Stock],Vehicle_Projections[Year],Calculations!AL$4, Vehicle_Projections[[ Technology Type]], $B5, Vehicle_Projections[Vehicle Type], $A5, Vehicle_Projections[Scenario], Input_Scenario_Modeled)) -> 125.555641
A6: Passenger Cars | B6: Ethanol-Flex Fuel ICE | C6: Gasoline | D6: Stock | E6: =IF(Input_Scenario_Modeled="Custom", SUMIFS(Custom_Stock_MPG[Vehicle Stock],Custom_Stock_MPG[Year],Calculations!E$4, Custom_Stock_MPG[[ Technology Type]], $B6, Custom_Stock_MPG[Vehicle Type], $A6, Custom_Stock_MPG[Scenario], Input_Scenario_Modeled), SUMIFS(Vehicle_Projections[Vehicle Stock],Vehicle_Projections[Year],Calculations!E$4, Vehicle_Projections[[ Technology Type]], $B6, Vehicle_Projections[Vehicle Type], $A6, Vehicle_Projections[Scenario], Input_Scenario_Modeled)) -> 4.813383 | F6: =IF(Input_Scenario_Modeled="Custom", SUMIFS(Custom_Stock_MPG[Vehicle Stock],Custom_Stock_MPG[Year],Calculations!F$4, Custom_Stock_MPG[[ Technology Type]], $B6, Custom_Stock_MPG[Vehicle Type], $A6, Custom_Stock_MPG[Scenario], Input_Scenario_Modeled), SUMIFS(Vehicle_Projections[Vehicle Stock],Vehicle_Projections[Year],Calculations!F$4, Vehicle_Projections[[ Technology Type]], $B6, Vehicle_Projections[Vehicle Type], $A6, Vehicle_Projections[Scenario], Input_Scenario_Modeled)) -> 4.927487 | G6: =IF(Input_Scenario_Modeled="Custom", SUMIFS(Custom_Stock_MPG[Vehicle Stock],Custom_Stock_MPG[Year],Calculations!G$4, Custom_Stock_MPG[[ Technology Type]], $B6, Custom_Stock_MPG[Vehicle Type], $A6, Custom_Stock_MPG[Scenario], Input_Scenario_Modeled), SUMIFS(Vehicle_Projections[Vehicle Stock],Vehicle_Projections[Year],Calculations!G$4, Vehicle_Projections[[ Technology Type]], $B6, Vehicle_Projections[Vehicle Type], $A6, Vehicle_Projections[Scenario], Input_Scenario_Modeled)) -> 5.0174 | H6: =IF(Input_Scenario_Modeled="Custom", SUMIFS(Custom_Stock_MPG[Vehicle Stock],Custom_Stock_MPG[Year],Calculations!H$4, Custom_Stock_MPG[[ Technology Type]], $B6, Custom_Stock_MPG[Vehicle Type], $A6, Custom_Stock_MPG[Scenario], Input_Scenario_Modeled), SUMIFS(Vehicle_Projections[Vehicle Stock],Vehicle_Projections[Year],Calculations!H$4, Vehicle_Projections[[ Technology Type]], $B6, Vehicle_Projections[Vehicle Type], $A6, Vehicle_Projections[Scenario], Input_Scenario_Modeled)) -> 5.086414 | I6: =IF(Input_Scenario_Modeled="Custom", SUMIFS(Custom_Stock_MPG[Vehicle Stock],Custom_Stock_MPG[Year],Calculations!I$4, Custom_Stock_MPG[[ Technology Type]], $B6, Custom_Stock_MPG[Vehicle Type], $A6, Custom_Stock_MPG[Scenario], Input_Scenario_Modeled), SUMIFS(Vehicle_Projections[Vehicle Stock],Vehicle_Projections[Year],Calculations!I$4, Vehicle_Projections[[ Technology Type]], $B6, Vehicle_Projections[Vehicle Type], $A6, Vehicle_Projections[Scenario], Input_Scenario_Modeled)) -> 5.130294 | J6: =IF(Input_Scenario_Modeled="Custom", SUMIFS(Custom_Stock_MPG[Vehicle Stock],Custom_Stock_MPG[Year],Calculations!J$4, Custom_Stock_MPG[[ Technology Type]], $B6, Custom_Stock_MPG[Vehicle Type], $A6, Custom_Stock_MPG[Scenario], Input_Scenario_Modeled), SUMIFS(Vehicle_Projections[Vehicle Stock],Vehicle_Projections[Year],Calculations!J$4, Vehicle_Projections[[ Technology Type]], $B6, Vehicle_Projections[Vehicle Type], $A6, Vehicle_Projections[Scenario], Input_Scenario_Modeled)) -> 5.146977 | K6: =IF(Input_Scenario_Modeled="Custom", SUMIFS(Custom_Stock_MPG[Vehicle Stock],Custom_Stock_MPG[Year],Calculations!K$4, Custom_Stock_MPG[[ Technology Type]], $B6, Custom_Stock_MPG[Vehicle Type], $A6, Custom_Stock_MPG[Scenario], Input_Scenario_Modeled), SUMIFS(Vehicle_Projections[Vehicle Stock],Vehicle_Projections[Year],Calculations!K$4, Vehicle_Projections[[ Technology Type]], $B6, Vehicle_Projections[Vehicle Type], $A6, Vehicle_Projections[Scenario], Input_Scenario_Modeled)) -> 5.139135 | L6: =IF(Input_Scenario_Modeled="Custom", SUMIFS(Custom_Stock_MPG[Vehicle Stock],Custom_Stock_MPG[Year],Calculations!L$4, Custom_Stock_MPG[[ Technology Type]], $B6, Custom_Stock_MPG[Vehicle Type], $A6, Custom_Stock_MPG[Scenario], Input_Scenario_Modeled), SUMIFS(Vehicle_Projections[Vehicle Stock],Vehicle_Projections[Year],Calculations!L$4, Vehicle_Projections[[ Technology Type]], $B6, Vehicle_Projections[Vehicle Type], $A6, Vehicle_Projections[Scenario], Input_Scenario_Modeled)) -> 5.10922 | M6: =IF(Input_Scenario_Modeled="Custom", SUMIFS(Custom_Stock_MPG[Vehicle Stock],Custom_Stock_MPG[Year],Calculations!M$4, Custom_Stock_MPG[[ Technology Type]], $B6, Custom_Stock_MPG[Vehicle Type], $A6, Custom_Stock_MPG[Scenario], Input_Scenario_Modeled), SUMIFS(Vehicle_Projections[Vehicle Stock],Vehicle_Projections[Year],Calculations!M$4, Vehicle_Projections[[ Technology Type]], $B6, Vehicle_Projections[Vehicle Type], $A6, Vehicle_Projections[Scenario], Input_Scenario_Modeled)) -> 5.056395 | N6: =IF(Input_Scenario_Modeled="Custom", SUMIFS(Custom_Stock_MPG[Vehicle Stock],Custom_Stock_MPG[Year],Calculations!N$4, Custom_Stock_MPG[[ Technology Type]], $B6, Custom_Stock_MPG[Vehicle Type], $A6, Custom_Stock_MPG[Scenario], Input_Scenario_Modeled), SUMIFS(Vehicle_Projections[Vehicle Stock],Vehicle_Projections[Year],Calculations!N$4, Vehicle_Projections[[ Technology Type]], $B6, Vehicle_Projections[Vehicle Type], $A6, Vehicle_Projections[Scenario], Input_Scenario_Modeled)) -> 4.980655 | O6: =IF(Input_Scenario_Modeled="Custom", SUMIFS(Custom_Stock_MPG[Vehicle Stock],Custom_Stock_MPG[Year],Calculations!O$4, Custom_Stock_MPG[[ Technology Type]], $B6, Custom_Stock_MPG[Vehicle Type], $A6, Custom_Stock_MPG[Scenario], Input_Scenario_Modeled), SUMIFS(Vehicle_Projections[Vehicle Stock],Vehicle_Projections[Year],Calculations!O$4, Vehicle_Projections[[ Technology Type]], $B6, Vehicle_Projections[Vehicle Type], $A6, Vehicle_Projections[Scenario], Input_Scenario_Modeled)) -> 4.887201 | P6: =IF(Input_Scenario_Modeled="Custom", SUMIFS(Custom_Stock_MPG[Vehicle Stock],Custom_Stock_MPG[Year],Calculations!P$4, Custom_Stock_MPG[[ Technology Type]], $B6, Custom_Stock_MPG[Vehicle Type], $A6, Custom_Stock_MPG[Scenario], Input_Scenario_Modeled), SUMIFS(Vehicle_Projections[Vehicle Stock],Vehicle_Projections[Year],Calculations!P$4, Vehicle_Projections[[ Technology Type]], $B6, Vehicle_Projections[Vehicle Type], $A6, Vehicle_Projections[Scenario], Input_Scenario_Modeled)) -> 4.788911 | Q6: =IF(Input_Scenario_Modeled="Custom", SUMIFS(Custom_Stock_MPG[Vehicle Stock],Custom_Stock_MPG[Year],Calculations!Q$4, Custom_Stock_MPG[[ Technology Type]], $B6, Custom_Stock_MPG[Vehicle Type], $A6, Custom_Stock_MPG[Scenario], Input_Scenario_Modeled), SUMIFS(Vehicle_Projections[Vehicle Stock],Vehicle_Projections[Year],Calculations!Q$4, Vehicle_Projections[[ Technology Type]], $B6, Vehicle_Projections[Vehicle Type], $A6, Vehicle_Projections[Scenario], Input_Scenario_Modeled)) -> 4.689025 | R6: =IF(Input_Scenario_Modeled="Custom", SUMIFS(Custom_Stock_MPG[Vehicle Stock],Custom_Stock_MPG[Year],Calculations!R$4, Custom_Stock_MPG[[ Technology Type]], $B6, Custom_Stock_MPG[Vehicle Type], $A6, Custom_Stock_MPG[Scenario], Input_Scenario_Modeled), SUMIFS(Vehicle_Projections[Vehicle Stock],Vehicle_Projections[Year],Calculations!R$4, Vehicle_Projections[[ Technology Type]], $B6, Vehicle_Projections[Vehicle Type], $A6, Vehicle_Projections[Scenario], Input_Scenario_Modeled)) -> 4.60491 | S6: =IF(Input_Scenario_Modeled="Custom", SUMIFS(Custom_Stock_MPG[Vehicle Stock],Custom_Stock_MPG[Year],Calculations!S$4, Custom_Stock_MPG[[ Technology Type]], $B6, Custom_Stock_MPG[Vehicle Type], $A6, Custom_Stock_MPG[Scenario], Input_Scenario_Modeled), SUMIFS(Vehicle_Projections[Vehicle Stock],Vehicle_Projections[Year],Calculations!S$4, Vehicle_Projections[[ Technology Type]], $B6, Vehicle_Projections[Vehicle Type], $A6, Vehicle_Projections[Scenario], Input_Scenario_Modeled)) -> 4.539237 | T6: =IF(Input_Scenario_Modeled="Custom", SUMIFS(Custom_Stock_MPG[Vehicle Stock],Custom_Stock_MPG[Year],Calculations!T$4, Custom_Stock_MPG[[ Technology Type]], $B6, Custom_Stock_MPG[Vehicle Type], $A6, Custom_Stock_MPG[Scenario], Input_Scenario_Modeled), SUMIFS(Vehicle_Projections[Vehicle Stock],Vehicle_Projections[Year],Calculations!T$4, Vehicle_Projections[[ Technology Type]], $B6, Vehicle_Projections[Vehicle Type], $A6, Vehicle_Projections[Scenario], Input_Scenario_Modeled)) -> 4.489612 | U6: =IF(Input_Scenario_Modeled="Custom", SUMIFS(Custom_Stock_MPG[Vehicle Stock],Custom_Stock_MPG[Year],Calculations!U$4, Custom_Stock_MPG[[ Technology Type]], $B6, Custom_Stock_MPG[Vehicle Type], $A6, Custom_Stock_MPG[Scenario], Input_Scenario_Modeled), SUMIFS(Vehicle_Projections[Vehicle Stock],Vehicle_Projections[Year],Calculations!U$4, Vehicle_Projections[[ Technology Type]], $B6, Vehicle_Projections[Vehicle Type], $A6, Vehicle_Projections[Scenario], Input_Scenario_Modeled)) -> 4.458049 | V6: =IF(Input_Scenario_Modeled="Custom", SUMIFS(Custom_Stock_MPG[Vehicle Stock],Custom_Stock_MPG[Year],Calculations!V$4, Custom_Stock_MPG[[ Technology Type]], $B6, Custom_Stock_MPG[Vehicle Type], $A6, Custom_Stock_MPG[Scenario], Input_Scenario_Modeled), SUMIFS(Vehicle_Projections[Vehicle Stock],Vehicle_Projections[Year],Calculations!V$4, Vehicle_Projections[[ Technology Type]], $B6, Vehicle_Projections[Vehicle Type], $A6, Vehicle_Projections[Scenario], Input_Scenario_Modeled)) -> 4.454955 | W6: =IF(Input_Scenario_Modeled="Custom", SUMIFS(Custom_Stock_MPG[Vehicle Stock],Custom_Stock_MPG[Year],Calculations!W$4, Custom_Stock_MPG[[ Technology Type]], $B6, Custom_Stock_MPG[Vehicle Type], $A6, Custom_Stock_MPG[Scenario], Input_Scenario_Modeled), SUMIFS(Vehicle_Projections[Vehicle Stock],Vehicle_Projections[Year],Calculations!W$4, Vehicle_Projections[[ Technology Type]], $B6, Vehicle_Projections[Vehicle Type], $A6, Vehicle_Projections[Scenario], Input_Scenario_Modeled)) -> 4.46902 | X6: =IF(Input_Scenario_Modeled="Custom", SUMIFS(Custom_Stock_MPG[Vehicle Stock],Custom_Stock_MPG[Year],Calculations!X$4, Custom_Stock_MPG[[ Technology Type]], $B6, Custom_Stock_MPG[Vehicle Type], $A6, Custom_Stock_MPG[Scenario], Input_Scenario_Modeled), SUMIFS(Vehicle_Projections[Vehicle Stock],Vehicle_Projections[Year],Calculations!X$4, Vehicle_Projections[[ Technology Type]], $B6, Vehicle_Projections[Vehicle Type], $A6, Vehicle_Projections[Scenario], Input_Scenario_Modeled)) -> 4.498343 | Y6: =IF(Input_Scenario_Modeled="Custom", SUMIFS(Custom_Stock_MPG[Vehicle Stock],Custom_Stock_MPG[Year],Calculations!Y$4, Custom_Stock_MPG[[ Technology Type]], $B6, Custom_Stock_MPG[Vehicle Type], $A6, Custom_Stock_MPG[Scenario], Input_Scenario_Modeled), SUMIFS(Vehicle_Projections[Vehicle Stock],Vehicle_Projections[Year],Calculations!Y$4, Vehicle_Projections[[ Technology Type]], $B6, Vehicle_Projections[Vehicle Type], $A6, Vehicle_Projections[Scenario], Input_Scenario_Modeled)) -> 4.548336 | Z6: =IF(Input_Scenario_Modeled="Custom", SUMIFS(Custom_Stock_MPG[Vehicle Stock],Custom_Stock_MPG[Year],Calculations!Z$4, Custom_Stock_MPG[[ Technology Type]], $B6, Custom_Stock_MPG[Vehicle Type], $A6, Custom_Stock_MPG[Scenario], Input_Scenario_Modeled), SUMIFS(Vehicle_Projections[Vehicle Stock],Vehicle_Projections[Year],Calculations!Z$4, Vehicle_Projections[[ Technology Type]], $B6, Vehicle_Projections[Vehicle Type], $A6, Vehicle_Projections[Scenario], Input_Scenario_Modeled)) -> 4.609901 | AA6: =IF(Input_Scenario_Modeled="Custom", SUMIFS(Custom_Stock_MPG[Vehicle Stock],Custom_Stock_MPG[Year],Calculations!AA$4, Custom_Stock_MPG[[ Technology Type]], $B6, Custom_Stock_MPG[Vehicle Type], $A6, Custom_Stock_MPG[Scenario], Input_Scenario_Modeled), SUMIFS(Vehicle_Projections[Vehicle Stock],Vehicle_Projections[Year],Calculations!AA$4, Vehicle_Projections[[ Technology Type]], $B6, Vehicle_Projections[Vehicle Type], $A6, Vehicle_Projections[Scenario], Input_Scenario_Modeled)) -> 4.674325 | AB6: =IF(Input_Scenario_Modeled="Custom", SUMIFS(Custom_Stock_MPG[Vehicle Stock],Custom_Stock_MPG[Year],Calculations!AB$4, Custom_Stock_MPG[[ Technology Type]], $B6, Custom_Stock_MPG[Vehicle Type], $A6, Custom_Stock_MPG[Scenario], Input_Scenario_Modeled), SUMIFS(Vehicle_Projections[Vehicle Stock],Vehicle_Projections[Year],Calculations!AB$4, Vehicle_Projections[[ Technology Type]], $B6, Vehicle_Projections[Vehicle Type], $A6, Vehicle_Projections[Scenario], Input_Scenario_Modeled)) -> 4.739589 | AC6: =IF(Input_Scenario_Modeled="Custom", SUMIFS(Custom_Stock_MPG[Vehicle Stock],Custom_Stock_MPG[Year],Calculations!AC$4, Custom_Stock_MPG[[ Technology Type]], $B6, Custom_Stock_MPG[Vehicle Type], $A6, Custom_Stock_MPG[Scenario], Input_Scenario_Modeled), SUMIFS(Vehicle_Projections[Vehicle Stock],Vehicle_Projections[Year],Calculations!AC$4, Vehicle_Projections[[ Technology Type]], $B6, Vehicle_Projections[Vehicle Type], $A6, Vehicle_Projections[Scenario], Input_Scenario_Modeled)) -> 4.797886 | AD6: =IF(Input_Scenario_Modeled="Custom", SUMIFS(Custom_Stock_MPG[Vehicle Stock],Custom_Stock_MPG[Year],Calculations!AD$4, Custom_Stock_MPG[[ Technology Type]], $B6, Custom_Stock_MPG[Vehicle Type], $A6, Custom_Stock_MPG[Scenario], Input_Scenario_Modeled), SUMIFS(Vehicle_Projections[Vehicle Stock],Vehicle_Projections[Year],Calculations!AD$4, Vehicle_Projections[[ Technology Type]], $B6, Vehicle_Projections[Vehicle Type], $A6, Vehicle_Projections[Scenario], Input_Scenario_Modeled)) -> 4.846465 | AE6: =IF(Input_Scenario_Modeled="Custom", SUMIFS(Custom_Stock_MPG[Vehicle Stock],Custom_Stock_MPG[Year],Calculations!AE$4, Custom_Stock_MPG[[ Technology Type]], $B6, Custom_Stock_MPG[Vehicle Type], $A6, Custom_Stock_MPG[Scenario], Input_Scenario_Modeled), SUMIFS(Vehicle_Projections[Vehicle Stock],Vehicle_Projections[Year],Calculations!AE$4, Vehicle_Projections[[ Technology Type]], $B6, Vehicle_Projections[Vehicle Type], $A6, Vehicle_Projections[Scenario], Input_Scenario_Modeled)) -> 4.880943 | AF6: =IF(Input_Scenario_Modeled="Custom", SUMIFS(Custom_Stock_MPG[Vehicle Stock],Custom_Stock_MPG[Year],Calculations!AF$4, Custom_Stock_MPG[[ Technology Type]], $B6, Custom_Stock_MPG[Vehicle Type], $A6, Custom_Stock_MPG[Scenario], Input_Scenario_Modeled), SUMIFS(Vehicle_Projections[Vehicle Stock],Vehicle_Projections[Year],Calculations!AF$4, Vehicle_Projections[[ Technology Type]], $B6, Vehicle_Projections[Vehicle Type], $A6, Vehicle_Projections[Scenario], Input_Scenario_Modeled)) -> 4.905231 | AG6: =IF(Input_Scenario_Modeled="Custom", SUMIFS(Custom_Stock_MPG[Vehicle Stock],Custom_Stock_MPG[Year],Calculations!AG$4, Custom_Stock_MPG[[ Technology Type]], $B6, Custom_Stock_MPG[Vehicle Type], $A6, Custom_Stock_MPG[Scenario], Input_Scenario_Modeled), SUMIFS(Vehicle_Projections[Vehicle Stock],Vehicle_Projections[Year],Calculations!AG$4, Vehicle_Projections[[ Technology Type]], $B6, Vehicle_Projections[Vehicle Type], $A6, Vehicle_Projections[Scenario], Input_Scenario_Modeled)) -> 4.919268 | AH6: =IF(Input_Scenario_Modeled="Custom", SUMIFS(Custom_Stock_MPG[Vehicle Stock],Custom_Stock_MPG[Year],Calculations!AH$4, Custom_Stock_MPG[[ Technology Type]], $B6, Custom_Stock_MPG[Vehicle Type], $A6, Custom_Stock_MPG[Scenario], Input_Scenario_Modeled), SUMIFS(Vehicle_Projections[Vehicle Stock],Vehicle_Projections[Year],Calculations!AH$4, Vehicle_Projections[[ Technology Type]], $B6, Vehicle_Projections[Vehicle Type], $A6, Vehicle_Projections[Scenario], Input_Scenario_Modeled)) -> 4.911937 | AI6: =IF(Input_Scenario_Modeled="Custom", SUMIFS(Custom_Stock_MPG[Vehicle Stock],Custom_Stock_MPG[Year],Calculations!AI$4, Custom_Stock_MPG[[ Technology Type]], $B6, Custom_Stock_MPG[Vehicle Type], $A6, Custom_Stock_MPG[Scenario], Input_Scenario_Modeled), SUMIFS(Vehicle_Projections[Vehicle Stock],Vehicle_Projections[Year],Calculations!AI$4, Vehicle_Projections[[ Technology Type]], $B6, Vehicle_Projections[Vehicle Type], $A6, Vehicle_Projections[Scenario], Input_Scenario_Modeled)) -> 4.890924 | AJ6: =IF(Input_Scenario_Modeled="Custom", SUMIFS(Custom_Stock_MPG[Vehicle Stock],Custom_Stock_MPG[Year],Calculations!AJ$4, Custom_Stock_MPG[[ Technology Type]], $B6, Custom_Stock_MPG[Vehicle Type], $A6, Custom_Stock_MPG[Scenario], Input_Scenario_Modeled), SUMIFS(Vehicle_Projections[Vehicle Stock],Vehicle_Projections[Year],Calculations!AJ$4, Vehicle_Projections[[ Technology Type]], $B6, Vehicle_Projections[Vehicle Type], $A6, Vehicle_Projections[Scenario], Input_Scenario_Modeled)) -> 4.860886 | AK6: =IF(Input_Scenario_Modeled="Custom", SUMIFS(Custom_Stock_MPG[Vehicle Stock],Custom_Stock_MPG[Year],Calculations!AK$4, Custom_Stock_MPG[[ Technology Type]], $B6, Custom_Stock_MPG[Vehicle Type], $A6, Custom_Stock_MPG[Scenario], Input_Scenario_Modeled), SUMIFS(Vehicle_Projections[Vehicle Stock],Vehicle_Projections[Year],Calculations!AK$4, Vehicle_Projections[[ Technology Type]], $B6, Vehicle_Projections[Vehicle Type], $A6, Vehicle_Projections[Scenario], Input_Scenario_Modeled)) -> 4.825336 | AL6: =IF(Input_Scenario_Modeled="Custom", SUMIFS(Custom_Stock_MPG[Vehicle Stock],Custom_Stock_MPG[Year],Calculations!AL$4, Custom_Stock_MPG[[ Technology Type]], $B6, Custom_Stock_MPG[Vehicle Type], $A6, Custom_Stock_MPG[Scenario], Input_Scenario_Modeled), SUMIFS(Vehicle_Projections[Vehicle Stock],Vehicle_Projections[Year],Calculations!AL$4, Vehicle_Projections[[ Technology Type]], $B6, Vehicle_Projections[Vehicle Type], $A6, Vehicle_Projections[Scenario], Input_Scenario_Modeled)) -> 4.78445
A7: Passenger Cars | B7: Electric-Gasoline Hybrid | C7: Gasoline | D7: Stock | E7: =IF(Input_Scenario_Modeled="Custom", SUMIFS(Custom_Stock_MPG[Vehicle Stock],Custom_Stock_MPG[Year],Calculations!E$4, Custom_Stock_MPG[[ Technology Type]], $B7, Custom_Stock_MPG[Vehicle Type], $A7, Custom_Stock_MPG[Scenario], Input_Scenario_Modeled), SUMIFS(Vehicle_Projections[Vehicle Stock],Vehicle_Projections[Year],Calculations!E$4, Vehicle_Projections[[ Technology Type]], $B7, Vehicle_Projections[Vehicle Type], $A7, Vehicle_Projections[Scenario], Input_Scenario_Modeled)) -> 3.706463 | F7: =IF(Input_Scenario_Modeled="Custom", SUMIFS(Custom_Stock_MPG[Vehicle Stock],Custom_Stock_MPG[Year],Calculations!F$4, Custom_Stock_MPG[[ Technology Type]], $B7, Custom_Stock_MPG[Vehicle Type], $A7, Custom_Stock_MPG[Scenario], Input_Scenario_Modeled), SUMIFS(Vehicle_Projections[Vehicle Stock],Vehicle_Projections[Year],Calculations!F$4, Vehicle_Projections[[ Technology Type]], $B7, Vehicle_Projections[Vehicle Type], $A7, Vehicle_Projections[Scenario], Input_Scenario_Modeled)) -> 4.135645 | G7: =IF(Input_Scenario_Modeled="Custom", SUMIFS(Custom_Stock_MPG[Vehicle Stock],Custom_Stock_MPG[Year],Calculations!G$4, Custom_Stock_MPG[[ Technology Type]], $B7, Custom_Stock_MPG[Vehicle Type], $A7, Custom_Stock_MPG[Scenario], Input_Scenario_Modeled), SUMIFS(Vehicle_Projections[Vehicle Stock],Vehicle_Projections[Year],Calculations!G$4, Vehicle_Projections[[ Technology Type]], $B7, Vehicle_Projections[Vehicle Type], $A7, Vehicle_Projections[Scenario], Input_Scenario_Modeled)) -> 4.549326 | H7: =IF(Input_Scenario_Modeled="Custom", SUMIFS(Custom_Stock_MPG[Vehicle Stock],Custom_Stock_MPG[Year],Calculations!H$4, Custom_Stock_MPG[[ Technology Type]], $B7, Custom_Stock_MPG[Vehicle Type], $A7, Custom_Stock_MPG[Scenario], Input_Scenario_Modeled), SUMIFS(Vehicle_Projections[Vehicle Stock],Vehicle_Projections[Year],Calculations!H$4, Vehicle_Projections[[ Technology Type]], $B7, Vehicle_Projections[Vehicle Type], $A7, Vehicle_Projections[Scenario], Input_Scenario_Modeled)) -> 4.944612 | I7: =IF(Input_Scenario_Modeled="Custom", SUMIFS(Custom_Stock_MPG[Vehicle Stock],Custom_Stock_MPG[Year],Calculations!I$4, Custom_Stock_MPG[[ Technology Type]], $B7, Custom_Stock_MPG[Vehicle Type], $A7, Custom_Stock_MPG[Scenario], Input_Scenario_Modeled), SUMIFS(Vehicle_Projections[Vehicle Stock],Vehicle_Projections[Year],Calculations!I$4, Vehicle_Projections[[ Technology Type]], $B7, Vehicle_Projections[Vehicle Type], $A7, Vehicle_Projections[Scenario], Input_Scenario_Modeled)) -> 5.317537 | J7: =IF(Input_Scenario_Modeled="Custom", SUMIFS(Custom_Stock_MPG[Vehicle Stock],Custom_Stock_MPG[Year],Calculations!J$4, Custom_Stock_MPG[[ Technology Type]], $B7, Custom_Stock_MPG[Vehicle Type], $A7, Custom_Stock_MPG[Scenario], Input_Scenario_Modeled), SUMIFS(Vehicle_Projections[Vehicle Stock],Vehicle_Projections[Year],Calculations!J$4, Vehicle_Projections[[ Technology Type]], $B7, Vehicle_Projections[Vehicle Type], $A7, Vehicle_Projections[Scenario], Input_Scenario_Modeled)) -> 5.665772 | K7: =IF(Input_Scenario_Modeled="Custom", SUMIFS(Custom_Stock_MPG[Vehicle Stock],Custom_Stock_MPG[Year],Calculations!K$4, Custom_Stock_MPG[[ Technology Type]], $B7, Custom_Stock_MPG[Vehicle Type], $A7, Custom_Stock_MPG[Scenario], Input_Scenario_Modeled), SUMIFS(Vehicle_Projections[Vehicle Stock],Vehicle_Projections[Year],Calculations!K$4, Vehicle_Projections[[ Technology Type]], $B7, Vehicle_Projections[Vehicle Type], $A7, Vehicle_Projections[Scenario], Input_Scenario_Modeled)) -> 6.013466 | L7: =IF(Input_Scenario_Modeled="Custom", SUMIFS(Custom_Stock_MPG[Vehicle Stock],Custom_Stock_MPG[Year],Calculations!L$4, Custom_Stock_MPG[[ Technology Type]], $B7, Custom_Stock_MPG[Vehicle Type], $A7, Custom_Stock_MPG[Scenario], Input_Scenario_Modeled), SUMIFS(Vehicle_Projections[Vehicle Stock],Vehicle_Projections[Year],Calculations!L$4, Vehicle_Projections[[ Technology Type]], $B7, Vehicle_Projections[Vehicle Type], $A7, Vehicle_Projections[Scenario], Input_Scenario_Modeled)) -> 6.364937 | M7: =IF(Input_Scenario_Modeled="Custom", SUMIFS(Custom_Stock_MPG[Vehicle Stock],Custom_Stock_MPG[Year],Calculations!M$4, Custom_Stock_MPG[[ Technology Type]], $B7, Custom_Stock_MPG[Vehicle Type], $A7, Custom_Stock_MPG[Scenario], Input_Scenario_Modeled), SUMIFS(Vehicle_Projections[Vehicle Stock],Vehicle_Projections[Year],Calculations!M$4, Vehicle_Projections[[ Technology Type]], $B7, Vehicle_Projections[Vehicle Type], $A7, Vehicle_Projections[Scenario], Input_Scenario_Modeled)) -> 6.703647 | N7: =IF(Input_Scenario_Modeled="Custom", SUMIFS(Custom_Stock_MPG[Vehicle Stock],Custom_Stock_MPG[Year],Calculations!N$4, Custom_Stock_MPG[[ Technology Type]], $B7, Custom_Stock_MPG[Vehicle Type], $A7, Custom_Stock_MPG[Scenario], Input_Scenario_Modeled), SUMIFS(Vehicle_Projections[Vehicle Stock],Vehicle_Projections[Year],Calculations!N$4, Vehicle_Projections[[ Technology Type]], $B7, Vehicle_Projections[Vehicle Type], $A7, Vehicle_Projections[Scenario], Input_Scenario_Modeled)) -> 7.046333 | O7: =IF(Input_Scenario_Modeled="Custom", SUMIFS(Custom_Stock_MPG[Vehicle Stock],Custom_Stock_MPG[Year],Calculations!O$4, Custom_Stock_MPG[[ Technology Type]], $B7, Custom_Stock_MPG[Vehicle Type], $A7, Custom_Stock_MPG[Scenario], Input_Scenario_Modeled), SUMIFS(Vehicle_Projections[Vehicle Stock],Vehicle_Projections[Year],Calculations!O$4, Vehicle_Projections[[ Technology Type]], $B7, Vehicle_Projections[Vehicle Type], $A7, Vehicle_Projections[Scenario], Input_Scenario_Modeled)) -> 7.395318 | P7: =IF(Input_Scenario_Modeled="Custom", SUMIFS(Custom_Stock_MPG[Vehicle Stock],Custom_Stock_MPG[Year],Calculations!P$4, Custom_Stock_MPG[[ Technology Type]], $B7, Custom_Stock_MPG[Vehicle Type], $A7, Custom_Stock_MPG[Scenario], Input_Scenario_Modeled), SUMIFS(Vehicle_Projections[Vehicle Stock],Vehicle_Projections[Year],Calculations!P$4, Vehicle_Projections[[ Technology Type]], $B7, Vehicle_Projections[Vehicle Type], $A7, Vehicle_Projections[Scenario], Input_Scenario_Modeled)) -> 7.749272 | Q7: =IF(Input_Scenario_Modeled="Custom", SUMIFS(Custom_Stock_MPG[Vehicle Stock],Custom_Stock_MPG[Year],Calculations!Q$4, Custom_Stock_MPG[[ Technology Type]], $B7, Custom_Stock_MPG[Vehicle Type], $A7, Custom_Stock_MPG[Scenario], Input_Scenario_Modeled), SUMIFS(Vehicle_Projections[Vehicle Stock],Vehicle_Projections[Year],Calculations!Q$4, Vehicle_Projections[[ Technology Type]], $B7, Vehicle_Projections[Vehicle Type], $A7, Vehicle_Projections[Scenario], Input_Scenario_Modeled)) -> 8.110472 | R7: =IF(Input_Scenario_Modeled="Custom", SUMIFS(Custom_Stock_MPG[Vehicle Stock],Custom_Stock_MPG[Year],Calculations!R$4, Custom_Stock_MPG[[ Technology Type]], $B7, Custom_Stock_MPG[Vehicle Type], $A7, Custom_Stock_MPG[Scenario], Input_Scenario_Modeled), SUMIFS(Vehicle_Projections[Vehicle Stock],Vehicle_Projections[Year],Calculations!R$4, Vehicle_Projections[[ Technology Type]], $B7, Vehicle_Projections[Vehicle Type], $A7, Vehicle_Projections[Scenario], Input_Scenario_Modeled)) -> 8.47981 | S7: =IF(Input_Scenario_Modeled="Custom", SUMIFS(Custom_Stock_MPG[Vehicle Stock],Custom_Stock_MPG[Year],Calculations!S$4, Custom_Stock_MPG[[ Technology Type]], $B7, Custom_Stock_MPG[Vehicle Type], $A7, Custom_Stock_MPG[Scenario], Input_Scenario_Modeled), SUMIFS(Vehicle_Projections[Vehicle Stock],Vehicle_Projections[Year],Calculations!S$4, Vehicle_Projections[[ Technology Type]], $B7, Vehicle_Projections[Vehicle Type], $A7, Vehicle_Projections[Scenario], Input_Scenario_Modeled)) -> 8.859372 | T7: =IF(Input_Scenario_Modeled="Custom", SUMIFS(Custom_Stock_MPG[Vehicle Stock],Custom_Stock_MPG[Year],Calculations!T$4, Custom_Stock_MPG[[ Technology Type]], $B7, Custom_Stock_MPG[Vehicle Type], $A7, Custom_Stock_MPG[Scenario], Input_Scenario_Modeled), SUMIFS(Vehicle_Projections[Vehicle Stock],Vehicle_Projections[Year],Calculations!T$4, Vehicle_Projections[[ Technology Type]], $B7, Vehicle_Projections[Vehicle Type], $A7, Vehicle_Projections[Scenario], Input_Scenario_Modeled)) -> 9.236145 | U7: =IF(Input_Scenario_Modeled="Custom", SUMIFS(Custom_Stock_MPG[Vehicle Stock],Custom_Stock_MPG[Year],Calculations!U$4, Custom_Stock_MPG[[ Technology Type]], $B7, Custom_Stock_MPG[Vehicle Type], $A7, Custom_Stock_MPG[Scenario], Input_Scenario_Modeled), SUMIFS(Vehicle_Projections[Vehicle Stock],Vehicle_Projections[Year],Calculations!U$4, Vehicle_Projections[[ Technology Type]], $B7, Vehicle_Projections[Vehicle Type], $A7, Vehicle_Projections[Scenario], Input_Scenario_Modeled)) -> 9.608261 | V7: =IF(Input_Scenario_Modeled="Custom", SUMIFS(Custom_Stock_MPG[Vehicle Stock],Custom_Stock_MPG[Year],Calculations!V$4, Custom_Stock_MPG[[ Technology Type]], $B7, Custom_Stock_MPG[Vehicle Type], $A7, Custom_Stock_MPG[Scenario], Input_Scenario_Modeled), SUMIFS(Vehicle_Projections[Vehicle Stock],Vehicle_Projections[Year],Calculations!V$4, Vehicle_Projections[[ Technology Type]], $B7, Vehicle_Projections[Vehicle Type], $A7, Vehicle_Projections[Scenario], Input_Scenario_Modeled)) -> 9.971205 | W7: =IF(Input_Scenario_Modeled="Custom", SUMIFS(Custom_Stock_MPG[Vehicle Stock],Custom_Stock_MPG[Year],Calculations!W$4, Custom_Stock_MPG[[ Technology Type]], $B7, Custom_Stock_MPG[Vehicle Type], $A7, Custom_Stock_MPG[Scenario], Input_Scenario_Modeled), SUMIFS(Vehicle_Projections[Vehicle Stock],Vehicle_Projections[Year],Calculations!W$4, Vehicle_Projections[[ Technology Type]], $B7, Vehicle_Projections[Vehicle Type], $A7, Vehicle_Projections[Scenario], Input_Scenario_Modeled)) -> 10.323838 | X7: =IF(Input_Scenario_Modeled="Custom", SUMIFS(Custom_Stock_MPG[Vehicle Stock],Custom_Stock_MPG[Year],Calculations!X$4, Custom_Stock_MPG[[ Technology Type]], $B7, Custom_Stock_MPG[Vehicle Type], $A7, Custom_Stock_MPG[Scenario], Input_Scenario_Modeled), SUMIFS(Vehicle_Projections[Vehicle Stock],Vehicle_Projections[Year],Calculations!X$4, Vehicle_Projections[[ Technology Type]], $B7, Vehicle_Projections[Vehicle Type], $A7, Vehicle_Projections[Scenario], Input_Scenario_Modeled)) -> 10.665428 | Y7: =IF(Input_Scenario_Modeled="Custom", SUMIFS(Custom_Stock_MPG[Vehicle Stock],Custom_Stock_MPG[Year],Calculations!Y$4, Custom_Stock_MPG[[ Technology Type]], $B7, Custom_Stock_MPG[Vehicle Type], $A7, Custom_Stock_MPG[Scenario], Input_Scenario_Modeled), SUMIFS(Vehicle_Projections[Vehicle Stock],Vehicle_Projections[Year],Calculations!Y$4, Vehicle_Projections[[ Technology Type]], $B7, Vehicle_Projections[Vehicle Type], $A7, Vehicle_Projections[Scenario], Input_Scenario_Modeled)) -> 10.998904 | Z7: =IF(Input_Scenario_Modeled="Custom", SUMIFS(Custom_Stock_MPG[Vehicle Stock],Custom_Stock_MPG[Year],Calculations!Z$4, Custom_Stock_MPG[[ Technology Type]], $B7, Custom_Stock_MPG[Vehicle Type], $A7, Custom_Stock_MPG[Scenario], Input_Scenario_Modeled), SUMIFS(Vehicle_Projections[Vehicle Stock],Vehicle_Projections[Year],Calculations!Z$4, Vehicle_Projections[[ Technology Type]], $B7, Vehicle_Projections[Vehicle Type], $A7, Vehicle_Projections[Scenario], Input_Scenario_Modeled)) -> 11.323565 | AA7: =IF(Input_Scenario_Modeled="Custom", SUMIFS(Custom_Stock_MPG[Vehicle Stock],Custom_Stock_MPG[Year],Calculations!AA$4, Custom_Stock_MPG[[ Technology Type]], $B7, Custom_Stock_MPG[Vehicle Type], $A7, Custom_Stock_MPG[Scenario], Input_Scenario_Modeled), SUMIFS(Vehicle_Projections[Vehicle Stock],Vehicle_Projections[Year],Calculations!AA$4, Vehicle_Projections[[ Technology Type]], $B7, Vehicle_Projections[Vehicle Type], $A7, Vehicle_Projections[Scenario], Input_Scenario_Modeled)) -> 11.633993 | AB7: =IF(Input_Scenario_Modeled="Custom", SUMIFS(Custom_Stock_MPG[Vehicle Stock],Custom_Stock_MPG[Year],Calculations!AB$4, Custom_Stock_MPG[[ Technology Type]], $B7, Custom_Stock_MPG[Vehicle Type], $A7, Custom_Stock_MPG[Scenario], Input_Scenario_Modeled), SUMIFS(Vehicle_Projections[Vehicle Stock],Vehicle_Projections[Year],Calculations!AB$4, Vehicle_Projections[[ Technology Type]], $B7, Vehicle_Projections[Vehicle Type], $A7, Vehicle_Projections[Scenario], Input_Scenario_Modeled)) -> 11.931743 | AC7: =IF(Input_Scenario_Modeled="Custom", SUMIFS(Custom_Stock_MPG[Vehicle Stock],Custom_Stock_MPG[Year],Calculations!AC$4, Custom_Stock_MPG[[ Technology Type]], $B7, Custom_Stock_MPG[Vehicle Type], $A7, Custom_Stock_MPG[Scenario], Input_Scenario_Modeled), SUMIFS(Vehicle_Projections[Vehicle Stock],Vehicle_Projections[Year],Calculations!AC$4, Vehicle_Projections[[ Technology Type]], $B7, Vehicle_Projections[Vehicle Type], $A7, Vehicle_Projections[Scenario], Input_Scenario_Modeled)) -> 12.21639 | AD7: =IF(Input_Scenario_Modeled="Custom", SUMIFS(Custom_Stock_MPG[Vehicle Stock],Custom_Stock_MPG[Year],Calculations!AD$4, Custom_Stock_MPG[[ Technology Type]], $B7, Custom_Stock_MPG[Vehicle Type], $A7, Custom_Stock_MPG[Scenario], Input_Scenario_Modeled), SUMIFS(Vehicle_Projections[Vehicle Stock],Vehicle_Projections[Year],Calculations!AD$4, Vehicle_Projections[[ Technology Type]], $B7, Vehicle_Projections[Vehicle Type], $A7, Vehicle_Projections[Scenario], Input_Scenario_Modeled)) -> 12.484378 | AE7: =IF(Input_Scenario_Modeled="Custom", SUMIFS(Custom_Stock_MPG[Vehicle Stock],Custom_Stock_MPG[Year],Calculations!AE$4, Custom_Stock_MPG[[ Technology Type]], $B7, Custom_Stock_MPG[Vehicle Type], $A7, Custom_Stock_MPG[Scenario], Input_Scenario_Modeled), SUMIFS(Vehicle_Projections[Vehicle Stock],Vehicle_Projections[Year],Calculations!AE$4, Vehicle_Projections[[ Technology Type]], $B7, Vehicle_Projections[Vehicle Type], $A7, Vehicle_Projections[Scenario], Input_Scenario_Modeled)) -> 12.734292 | AF7: =IF(Input_Scenario_Modeled="Custom", SUMIFS(Custom_Stock_MPG[Vehicle Stock],Custom_Stock_MPG[Year],Calculations!AF$4, Custom_Stock_MPG[[ Technology Type]], $B7, Custom_Stock_MPG[Vehicle Type], $A7, Custom_Stock_MPG[Scenario], Input_Scenario_Modeled), SUMIFS(Vehicle_Projections[Vehicle Stock],Vehicle_Projections[Year],Calculations!AF$4, Vehicle_Projections[[ Technology Type]], $B7, Vehicle_Projections[Vehicle Type], $A7, Vehicle_Projections[Scenario], Input_Scenario_Modeled)) -> 12.967894 | AG7: =IF(Input_Scenario_Modeled="Custom", SUMIFS(Custom_Stock_MPG[Vehicle Stock],Custom_Stock_MPG[Year],Calculations!AG$4, Custom_Stock_MPG[[ Technology Type]], $B7, Custom_Stock_MPG[Vehicle Type], $A7, Custom_Stock_MPG[Scenario], Input_Scenario_Modeled), SUMIFS(Vehicle_Projections[Vehicle Stock],Vehicle_Projections[Year],Calculations!AG$4, Vehicle_Projections[[ Technology Type]], $B7, Vehicle_Projections[Vehicle Type], $A7, Vehicle_Projections[Scenario], Input_Scenario_Modeled)) -> 13.183614 | AH7: =IF(Input_Scenario_Modeled="Custom", SUMIFS(Custom_Stock_MPG[Vehicle Stock],Custom_Stock_MPG[Year],Calculations!AH$4, Custom_Stock_MPG[[ Technology Type]], $B7, Custom_Stock_MPG[Vehicle Type], $A7, Custom_Stock_MPG[Scenario], Input_Scenario_Modeled), SUMIFS(Vehicle_Projections[Vehicle Stock],Vehicle_Projections[Year],Calculations!AH$4, Vehicle_Projections[[ Technology Type]], $B7, Vehicle_Projections[Vehicle Type], $A7, Vehicle_Projections[Scenario], Input_Scenario_Modeled)) -> 13.379957 | AI7: =IF(Input_Scenario_Modeled="Custom", SUMIFS(Custom_Stock_MPG[Vehicle Stock],Custom_Stock_MPG[Year],Calculations!AI$4, Custom_Stock_MPG[[ Technology Type]], $B7, Custom_Stock_MPG[Vehicle Type], $A7, Custom_Stock_MPG[Scenario], Input_Scenario_Modeled), SUMIFS(Vehicle_Projections[Vehicle Stock],Vehicle_Projections[Year],Calculations!AI$4, Vehicle_Projections[[ Technology Type]], $B7, Vehicle_Projections[Vehicle Type], $A7, Vehicle_Projections[Scenario], Input_Scenario_Modeled)) -> 13.55348 | AJ7: =IF(Input_Scenario_Modeled="Custom", SUMIFS(Custom_Stock_MPG[Vehicle Stock],Custom_Stock_MPG[Year],Calculations!AJ$4, Custom_Stock_MPG[[ Technology Type]], $B7, Custom_Stock_MPG[Vehicle Type], $A7, Custom_Stock_MPG[Scenario], Input_Scenario_Modeled), SUMIFS(Vehicle_Projections[Vehicle Stock],Vehicle_Projections[Year],Calculations!AJ$4, Vehicle_Projections[[ Technology Type]], $B7, Vehicle_Projections[Vehicle Type], $A7, Vehicle_Projections[Scenario], Input_Scenario_Modeled)) -> 13.70423 | AK7: =IF(Input_Scenario_Modeled="Custom", SUMIFS(Custom_Stock_MPG[Vehicle Stock],Custom_Stock_MPG[Year],Calculations!AK$4, Custom_Stock_MPG[[ Technology Type]], $B7, Custom_Stock_MPG[Vehicle Type], $A7, Custom_Stock_MPG[Scenario], Input_Scenario_Modeled), SUMIFS(Vehicle_Projections[Vehicle Stock],Vehicle_Projections[Year],Calculations!AK$4, Vehicle_Projections[[ Technology Type]], $B7, Vehicle_Projections[Vehicle Type], $A7, Vehicle_Projections[Scenario], Input_Scenario_Modeled)) -> 13.834745 | AL7: =IF(Input_Scenario_Modeled="Custom", SUMIFS(Custom_Stock_MPG[Vehicle Stock],Custom_Stock_MPG[Year],Calculations!AL$4, Custom_Stock_MPG[[ Technology Type]], $B7, Custom_Stock_MPG[Vehicle Type], $A7, Custom_Stock_MPG[Scenario], Input_Scenario_Modeled), SUMIFS(Vehicle_Projections[Vehicle Stock],Vehicle_Projections[Year],Calculations!AL$4, Vehicle_Projections[[ Technology Type]], $B7, Vehicle_Projections[Vehicle Type], $A7, Vehicle_Projections[Scenario], Input_Scenario_Modeled)) -> 13.944232
A8: Passenger Cars | B8: TDI Diesel ICE | C8: Diesel | D8: Stock | E8: =IF(Input_Scenario_Modeled="Custom", SUMIFS(Custom_Stock_MPG[Vehicle Stock],Custom_Stock_MPG[Year],Calculations!E$4, Custom_Stock_MPG[[ Technology Type]], $B8, Custom_Stock_MPG[Vehicle Type], $A8, Custom_Stock_MPG[Scenario], Input_Scenario_Modeled), SUMIFS(Vehicle_Projections[Vehicle Stock],Vehicle_Projections[Year],Calculations!E$4, Vehicle_Projections[[ Technology Type]], $B8, Vehicle_Projections[Vehicle Type], $A8, Vehicle_Projections[Scenario], Input_Scenario_Modeled)) -> 0.803633 | F8: =IF(Input_Scenario_Modeled="Custom", SUMIFS(Custom_Stock_MPG[Vehicle Stock],Custom_Stock_MPG[Year],Calculations!F$4, Custom_Stock_MPG[[ Technology Type]], $B8, Custom_Stock_MPG[Vehicle Type], $A8, Custom_Stock_MPG[Scenario], Input_Scenario_Modeled), SUMIFS(Vehicle_Projections[Vehicle Stock],Vehicle_Projections[Year],Calculations!F$4, Vehicle_Projections[[ Technology Type]], $B8, Vehicle_Projections[Vehicle Type], $A8, Vehicle_Projections[Scenario], Input_Scenario_Modeled)) -> 0.777678 | G8: =IF(Input_Scenario_Modeled="Custom", SUMIFS(Custom_Stock_MPG[Vehicle Stock],Custom_Stock_MPG[Year],Calculations!G$4, Custom_Stock_MPG[[ Technology Type]], $B8, Custom_Stock_MPG[Vehicle Type], $A8, Custom_Stock_MPG[Scenario], Input_Scenario_Modeled), SUMIFS(Vehicle_Projections[Vehicle Stock],Vehicle_Projections[Year],Calculations!G$4, Vehicle_Projections[[ Technology Type]], $B8, Vehicle_Projections[Vehicle Type], $A8, Vehicle_Projections[Scenario], Input_Scenario_Modeled)) -> 0.766264 | H8: =IF(Input_Scenario_Modeled="Custom", SUMIFS(Custom_Stock_MPG[Vehicle Stock],Custom_Stock_MPG[Year],Calculations!H$4, Custom_Stock_MPG[[ Technology Type]], $B8, Custom_Stock_MPG[Vehicle Type], $A8, Custom_Stock_MPG[Scenario], Input_Scenario_Modeled), SUMIFS(Vehicle_Projections[Vehicle Stock],Vehicle_Projections[Year],Calculations!H$4, Vehicle_Projections[[ Technology Type]], $B8, Vehicle_Projections[Vehicle Type], $A8, Vehicle_Projections[Scenario], Input_Scenario_Modeled)) -> 0.770079 | I8: =IF(Input_Scenario_Modeled="Custom", SUMIFS(Custom_Stock_MPG[Vehicle Stock],Custom_Stock_MPG[Year],Calculations!I$4, Custom_Stock_MPG[[ Technology Type]], $B8, Custom_Stock_MPG[Vehicle Type], $A8, Custom_Stock_MPG[Scenario], Input_Scenario_Modeled), SUMIFS(Vehicle_Projections[Vehicle Stock],Vehicle_Projections[Year],Calculations!I$4, Vehicle_Projections[[ Technology Type]], $B8, Vehicle_Projections[Vehicle Type], $A8, Vehicle_Projections[Scenario], Input_Scenario_Modeled)) -> 0.778114 | J8: =IF(Input_Scenario_Modeled="Custom", SUMIFS(Custom_Stock_MPG[Vehicle Stock],Custom_Stock_MPG[Year],Calculations!J$4, Custom_Stock_MPG[[ Technology Type]], $B8, Custom_Stock_MPG[Vehicle Type], $A8, Custom_Stock_MPG[Scenario], Input_Scenario_Modeled), SUMIFS(Vehicle_Projections[Vehicle Stock],Vehicle_Projections[Year],Calculations!J$4, Vehicle_Projections[[ Technology Type]], $B8, Vehicle_Projections[Vehicle Type], $A8, Vehicle_Projections[Scenario], Input_Scenario_Modeled)) -> 0.792951 | K8: =IF(Input_Scenario_Modeled="Custom", SUMIFS(Custom_Stock_MPG[Vehicle Stock],Custom_Stock_MPG[Year],Calculations!K$4, Custom_Stock_MPG[[ Technology Type]], $B8, Custom_Stock_MPG[Vehicle Type], $A8, Custom_Stock_MPG[Scenario], Input_Scenario_Modeled), SUMIFS(Vehicle_Projections[Vehicle Stock],Vehicle_Projections[Year],Calculations!K$4, Vehicle_Projections[[ Technology Type]], $B8, Vehicle_Projections[Vehicle Type], $A8, Vehicle_Projections[Scenario], Input_Scenario_Modeled)) -> 0.816763 | L8: =IF(Input_Scenario_Modeled="Custom", SUMIFS(Custom_Stock_MPG[Vehicle Stock],Custom_Stock_MPG[Year],Calculations!L$4, Custom_Stock_MPG[[ Technology Type]], $B8, Custom_Stock_MPG[Vehicle Type], $A8, Custom_Stock_MPG[Scenario], Input_Scenario_Modeled), SUMIFS(Vehicle_Projections[Vehicle Stock],Vehicle_Projections[Year],Calculations!L$4, Vehicle_Projections[[ Technology Type]], $B8, Vehicle_Projections[Vehicle Type], $A8, Vehicle_Projections[Scenario], Input_Scenario_Modeled)) -> 0.849333 | M8: =IF(Input_Scenario_Modeled="Custom", SUMIFS(Custom_Stock_MPG[Vehicle Stock],Custom_Stock_MPG[Year],Calculations!M$4, Custom_Stock_MPG[[ Technology Type]], $B8, Custom_Stock_MPG[Vehicle Type], $A8, Custom_Stock_MPG[Scenario], Input_Scenario_Modeled), SUMIFS(Vehicle_Projections[Vehicle Stock],Vehicle_Projections[Year],Calculations!M$4, Vehicle_Projections[[ Technology Type]], $B8, Vehicle_Projections[Vehicle Type], $A8, Vehicle_Projections[Scenario], Input_Scenario_Modeled)) -> 0.893797 | N8: =IF(Input_Scenario_Modeled="Custom", SUMIFS(Custom_Stock_MPG[Vehicle Stock],Custom_Stock_MPG[Year],Calculations!N$4, Custom_Stock_MPG[[ Technology Type]], $B8, Custom_Stock_MPG[Vehicle Type], $A8, Custom_Stock_MPG[Scenario], Input_Scenario_Modeled), SUMIFS(Vehicle_Projections[Vehicle Stock],Vehicle_Projections[Year],Calculations!N$4, Vehicle_Projections[[ Technology Type]], $B8, Vehicle_Projections[Vehicle Type], $A8, Vehicle_Projections[Scenario], Input_Scenario_Modeled)) -> 0.952299 | O8: =IF(Input_Scenario_Modeled="Custom", SUMIFS(Custom_Stock_MPG[Vehicle Stock],Custom_Stock_MPG[Year],Calculations!O$4, Custom_Stock_MPG[[ Technology Type]], $B8, Custom_Stock_MPG[Vehicle Type], $A8, Custom_Stock_MPG[Scenario], Input_Scenario_Modeled), SUMIFS(Vehicle_Projections[Vehicle Stock],Vehicle_Projections[Year],Calculations!O$4, Vehicle_Projections[[ Technology Type]], $B8, Vehicle_Projections[Vehicle Type], $A8, Vehicle_Projections[Scenario], Input_Scenario_Modeled)) -> 1.026648 | P8: =IF(Input_Scenario_Modeled="Custom", SUMIFS(Custom_Stock_MPG[Vehicle Stock],Custom_Stock_MPG[Year],Calculations!P$4, Custom_Stock_MPG[[ Technology Type]], $B8, Custom_Stock_MPG[Vehicle Type], $A8, Custom_Stock_MPG[Scenario], Input_Scenario_Modeled), SUMIFS(Vehicle_Projections[Vehicle Stock],Vehicle_Projections[Year],Calculations!P$4, Vehicle_Projections[[ Technology Type]], $B8, Vehicle_Projections[Vehicle Type], $A8, Vehicle_Projections[Scenario], Input_Scenario_Modeled)) -> 1.123837 | Q8: =IF(Input_Scenario_Modeled="Custom", SUMIFS(Custom_Stock_MPG[Vehicle Stock],Custom_Stock_MPG[Year],Calculations!Q$4, Custom_Stock_MPG[[ Technology Type]], $B8, Custom_Stock_MPG[Vehicle Type], $A8, Custom_Stock_MPG[Scenario], Input_Scenario_Modeled), SUMIFS(Vehicle_Projections[Vehicle Stock],Vehicle_Projections[Year],Calculations!Q$4, Vehicle_Projections[[ Technology Type]], $B8, Vehicle_Projections[Vehicle Type], $A8, Vehicle_Projections[Scenario], Input_Scenario_Modeled)) -> 1.23531 | R8: =IF(Input_Scenario_Modeled="Custom", SUMIFS(Custom_Stock_MPG[Vehicle Stock],Custom_Stock_MPG[Year],Calculations!R$4, Custom_Stock_MPG[[ Technology Type]], $B8, Custom_Stock_MPG[Vehicle Type], $A8, Custom_Stock_MPG[Scenario], Input_Scenario_Modeled), SUMIFS(Vehicle_Projections[Vehicle Stock],Vehicle_Projections[Year],Calculations!R$4, Vehicle_Projections[[ Technology Type]], $B8, Vehicle_Projections[Vehicle Type], $A8, Vehicle_Projections[Scenario], Input_Scenario_Modeled)) -> 1.363965 | S8: =IF(Input_Scenario_Modeled="Custom", SUMIFS(Custom_Stock_MPG[Vehicle Stock],Custom_Stock_MPG[Year],Calculations!S$4, Custom_Stock_MPG[[ Technology Type]], $B8, Custom_Stock_MPG[Vehicle Type], $A8, Custom_Stock_MPG[Scenario], Input_Scenario_Modeled), SUMIFS(Vehicle_Projections[Vehicle Stock],Vehicle_Projections[Year],Calculations!S$4, Vehicle_Projections[[ Technology Type]], $B8, Vehicle_Projections[Vehicle Type], $A8, Vehicle_Projections[Scenario], Input_Scenario_Modeled)) -> 1.498988 | T8: =IF(Input_Scenario_Modeled="Custom", SUMIFS(Custom_Stock_MPG[Vehicle Stock],Custom_Stock_MPG[Year],Calculations!T$4, Custom_Stock_MPG[[ Technology Type]], $B8, Custom_Stock_MPG[Vehicle Type], $A8, Custom_Stock_MPG[Scenario], Input_Scenario_Modeled), SUMIFS(Vehicle_Projections[Vehicle Stock],Vehicle_Projections[Year],Calculations!T$4, Vehicle_Projections[[ Technology Type]], $B8, Vehicle_Projections[Vehicle Type], $A8, Vehicle_Projections[Scenario], Input_Scenario_Modeled)) -> 1.636628 | U8: =IF(Input_Scenario_Modeled="Custom", SUMIFS(Custom_Stock_MPG[Vehicle Stock],Custom_Stock_MPG[Year],Calculations!U$4, Custom_Stock_MPG[[ Technology Type]], $B8, Custom_Stock_MPG[Vehicle Type], $A8, Custom_Stock_MPG[Scenario], Input_Scenario_Modeled), SUMIFS(Vehicle_Projections[Vehicle Stock],Vehicle_Projections[Year],Calculations!U$4, Vehicle_Projections[[ Technology Type]], $B8, Vehicle_Projections[Vehicle Type], $A8, Vehicle_Projections[Scenario], Input_Scenario_Modeled)) -> 1.771043 | V8: =IF(Input_Scenario_Modeled="Custom", SUMIFS(Custom_Stock_MPG[Vehicle Stock],Custom_Stock_MPG[Year],Calculations!V$4, Custom_Stock_MPG[[ Technology Type]], $B8, Custom_Stock_MPG[Vehicle Type], $A8, Custom_Stock_MPG[Scenario], Input_Scenario_Modeled), SUMIFS(Vehicle_Projections[Vehicle Stock],Vehicle_Projections[Year],Calculations!V$4, Vehicle_Projections[[ Technology Type]], $B8, Vehicle_Projections[Vehicle Type], $A8, Vehicle_Projections[Scenario], Input_Scenario_Modeled)) -> 1.910757 | W8: =IF(Input_Scenario_Modeled="Custom", SUMIFS(Custom_Stock_MPG[Vehicle Stock],Custom_Stock_MPG[Year],Calculations!W$4, Custom_Stock_MPG[[ Technology Type]], $B8, Custom_Stock_MPG[Vehicle Type], $A8, Custom_Stock_MPG[Scenario], Input_Scenario_Modeled), SUMIFS(Vehicle_Projections[Vehicle Stock],Vehicle_Projections[Year],Calculations!W$4, Vehicle_Projections[[ Technology Type]], $B8, Vehicle_Projections[Vehicle Type], $A8, Vehicle_Projections[Scenario], Input_Scenario_Modeled)) -> 2.043822 | X8: =IF(Input_Scenario_Modeled="Custom", SUMIFS(Custom_Stock_MPG[Vehicle Stock],Custom_Stock_MPG[Year],Calculations!X$4, Custom_Stock_MPG[[ Technology Type]], $B8, Custom_Stock_MPG[Vehicle Type], $A8, Custom_Stock_MPG[Scenario], Input_Scenario_Modeled), SUMIFS(Vehicle_Projections[Vehicle Stock],Vehicle_Projections[Year],Calculations!X$4, Vehicle_Projections[[ Technology Type]], $B8, Vehicle_Projections[Vehicle Type], $A8, Vehicle_Projections[Scenario], Input_Scenario_Modeled)) -> 2.168493 | Y8: =IF(Input_Scenario_Modeled="Custom", SUMIFS(Custom_Stock_MPG[Vehicle Stock],Custom_Stock_MPG[Year],Calculations!Y$4, Custom_Stock_MPG[[ Technology Type]], $B8, Custom_Stock_MPG[Vehicle Type], $A8, Custom_Stock_MPG[Scenario], Input_Scenario_Modeled), SUMIFS(Vehicle_Projections[Vehicle Stock],Vehicle_Projections[Year],Calculations!Y$4, Vehicle_Projections[[ Technology Type]], $B8, Vehicle_Projections[Vehicle Type], $A8, Vehicle_Projections[Scenario], Input_Scenario_Modeled)) -> 2.287811 | Z8: =IF(Input_Scenario_Modeled="Custom", SUMIFS(Custom_Stock_MPG[Vehicle Stock],Custom_Stock_MPG[Year],Calculations!Z$4, Custom_Stock_MPG[[ Technology Type]], $B8, Custom_Stock_MPG[Vehicle Type], $A8, Custom_Stock_MPG[Scenario], Input_Scenario_Modeled), SUMIFS(Vehicle_Projections[Vehicle Stock],Vehicle_Projections[Year],Calculations!Z$4, Vehicle_Projections[[ Technology Type]], $B8, Vehicle_Projections[Vehicle Type], $A8, Vehicle_Projections[Scenario], Input_Scenario_Modeled)) -> 2.399066 | AA8: =IF(Input_Scenario_Modeled="Custom", SUMIFS(Custom_Stock_MPG[Vehicle Stock],Custom_Stock_MPG[Year],Calculations!AA$4, Custom_Stock_MPG[[ Technology Type]], $B8, Custom_Stock_MPG[Vehicle Type], $A8, Custom_Stock_MPG[Scenario], Input_Scenario_Modeled), SUMIFS(Vehicle_Projections[Vehicle Stock],Vehicle_Projections[Year],Calculations!AA$4, Vehicle_Projections[[ Technology Type]], $B8, Vehicle_Projections[Vehicle Type], $A8, Vehicle_Projections[Scenario], Input_Scenario_Modeled)) -> 2.501343 | AB8: =IF(Input_Scenario_Modeled="Custom", SUMIFS(Custom_Stock_MPG[Vehicle Stock],Custom_Stock_MPG[Year],Calculations!AB$4, Custom_Stock_MPG[[ Technology Type]], $B8, Custom_Stock_MPG[Vehicle Type], $A8, Custom_Stock_MPG[Scenario], Input_Scenario_Modeled), SUMIFS(Vehicle_Projections[Vehicle Stock],Vehicle_Projections[Year],Calculations!AB$4, Vehicle_Projections[[ Technology Type]], $B8, Vehicle_Projections[Vehicle Type], $A8, Vehicle_Projections[Scenario], Input_Scenario_Modeled)) -> 2.594395 | AC8: =IF(Input_Scenario_Modeled="Custom", SUMIFS(Custom_Stock_MPG[Vehicle Stock],Custom_Stock_MPG[Year],Calculations!AC$4, Custom_Stock_MPG[[ Technology Type]], $B8, Custom_Stock_MPG[Vehicle Type], $A8, Custom_Stock_MPG[Scenario], Input_Scenario_Modeled), SUMIFS(Vehicle_Projections[Vehicle Stock],Vehicle_Projections[Year],Calculations!AC$4, Vehicle_Projections[[ Technology Type]], $B8, Vehicle_Projections[Vehicle Type], $A8, Vehicle_Projections[Scenario], Input_Scenario_Modeled)) -> 2.677506 | AD8: =IF(Input_Scenario_Modeled="Custom", SUMIFS(Custom_Stock_MPG[Vehicle Stock],Custom_Stock_MPG[Year],Calculations!AD$4, Custom_Stock_MPG[[ Technology Type]], $B8, Custom_Stock_MPG[Vehicle Type], $A8, Custom_Stock_MPG[Scenario], Input_Scenario_Modeled), SUMIFS(Vehicle_Projections[Vehicle Stock],Vehicle_Projections[Year],Calculations!AD$4, Vehicle_Projections[[ Technology Type]], $B8, Vehicle_Projections[Vehicle Type], $A8, Vehicle_Projections[Scenario], Input_Scenario_Modeled)) -> 2.748384 | AE8: =IF(Input_Scenario_Modeled="Custom", SUMIFS(Custom_Stock_MPG[Vehicle Stock],Custom_Stock_MPG[Year],Calculations!AE$4, Custom_Stock_MPG[[ Technology Type]], $B8, Custom_Stock_MPG[Vehicle Type], $A8, Custom_Stock_MPG[Scenario], Input_Scenario_Modeled), SUMIFS(Vehicle_Projections[Vehicle Stock],Vehicle_Projections[Year],Calculations!AE$4, Vehicle_Projections[[ Technology Type]], $B8, Vehicle_Projections[Vehicle Type], $A8, Vehicle_Projections[Scenario], Input_Scenario_Modeled)) -> 2.807142 | AF8: =IF(Input_Scenario_Modeled="Custom", SUMIFS(Custom_Stock_MPG[Vehicle Stock],Custom_Stock_MPG[Year],Calculations!AF$4, Custom_Stock_MPG[[ Technology Type]], $B8, Custom_Stock_MPG[Vehicle Type], $A8, Custom_Stock_MPG[Scenario], Input_Scenario_Modeled), SUMIFS(Vehicle_Projections[Vehicle Stock],Vehicle_Projections[Year],Calculations!AF$4, Vehicle_Projections[[ Technology Type]], $B8, Vehicle_Projections[Vehicle Type], $A8, Vehicle_Projections[Scenario], Input_Scenario_Modeled)) -> 2.85537 | AG8: =IF(Input_Scenario_Modeled="Custom", SUMIFS(Custom_Stock_MPG[Vehicle Stock],Custom_Stock_MPG[Year],Calculations!AG$4, Custom_Stock_MPG[[ Technology Type]], $B8, Custom_Stock_MPG[Vehicle Type], $A8, Custom_Stock_MPG[Scenario], Input_Scenario_Modeled), SUMIFS(Vehicle_Projections[Vehicle Stock],Vehicle_Projections[Year],Calculations!AG$4, Vehicle_Projections[[ Technology Type]], $B8, Vehicle_Projections[Vehicle Type], $A8, Vehicle_Projections[Scenario], Input_Scenario_Modeled)) -> 2.891941 | AH8: =IF(Input_Scenario_Modeled="Custom", SUMIFS(Custom_Stock_MPG[Vehicle Stock],Custom_Stock_MPG[Year],Calculations!AH$4, Custom_Stock_MPG[[ Technology Type]], $B8, Custom_Stock_MPG[Vehicle Type], $A8, Custom_Stock_MPG[Scenario], Input_Scenario_Modeled), SUMIFS(Vehicle_Projections[Vehicle Stock],Vehicle_Projections[Year],Calculations!AH$4, Vehicle_Projections[[ Technology Type]], $B8, Vehicle_Projections[Vehicle Type], $A8, Vehicle_Projections[Scenario], Input_Scenario_Modeled)) -> 2.920111 | AI8: =IF(Input_Scenario_Modeled="Custom", SUMIFS(Custom_Stock_MPG[Vehicle Stock],Custom_Stock_MPG[Year],Calculations!AI$4, Custom_Stock_MPG[[ Technology Type]], $B8, Custom_Stock_MPG[Vehicle Type], $A8, Custom_Stock_MPG[Scenario], Input_Scenario_Modeled), SUMIFS(Vehicle_Projections[Vehicle Stock],Vehicle_Projections[Year],Calculations!AI$4, Vehicle_Projections[[ Technology Type]], $B8, Vehicle_Projections[Vehicle Type], $A8, Vehicle_Projections[Scenario], Input_Scenario_Modeled)) -> 2.939851 | AJ8: =IF(Input_Scenario_Modeled="Custom", SUMIFS(Custom_Stock_MPG[Vehicle Stock],Custom_Stock_MPG[Year],Calculations!AJ$4, Custom_Stock_MPG[[ Technology Type]], $B8, Custom_Stock_MPG[Vehicle Type], $A8, Custom_Stock_MPG[Scenario], Input_Scenario_Modeled), SUMIFS(Vehicle_Projections[Vehicle Stock],Vehicle_Projections[Year],Calculations!AJ$4, Vehicle_Projections[[ Technology Type]], $B8, Vehicle_Projections[Vehicle Type], $A8, Vehicle_Projections[Scenario], Input_Scenario_Modeled)) -> 2.950457 | AK8: =IF(Input_Scenario_Modeled="Custom", SUMIFS(Custom_Stock_MPG[Vehicle Stock],Custom_Stock_MPG[Year],Calculations!AK$4, Custom_Stock_MPG[[ Technology Type]], $B8, Custom_Stock_MPG[Vehicle Type], $A8, Custom_Stock_MPG[Scenario], Input_Scenario_Modeled), SUMIFS(Vehicle_Projections[Vehicle Stock],Vehicle_Projections[Year],Calculations!AK$4, Vehicle_Projections[[ Technology Type]], $B8, Vehicle_Projections[Vehicle Type], $A8, Vehicle_Projections[Scenario], Input_Scenario_Modeled)) -> 2.953688 | AL8: =IF(Input_Scenario_Modeled="Custom", SUMIFS(Custom_Stock_MPG[Vehicle Stock],Custom_Stock_MPG[Year],Calculations!AL$4, Custom_Stock_MPG[[ Technology Type]], $B8, Custom_Stock_MPG[Vehicle Type], $A8, Custom_Stock_MPG[Scenario], Input_Scenario_Modeled), SUMIFS(Vehicle_Projections[Vehicle Stock],Vehicle_Projections[Year],Calculations!AL$4, Vehicle_Projections[[ Technology Type]], $B8, Vehicle_Projections[Vehicle Type], $A8, Vehicle_Projections[Scenario], Input_Scenario_Modeled)) -> 2.949322
A9: Passenger Cars | B9: Electric-Diesel Hybrid | C9: Diesel | D9: Stock | E9: =IF(Input_Scenario_Modeled="Custom", SUMIFS(Custom_Stock_MPG[Vehicle Stock],Custom_Stock_MPG[Year],Calculations!E$4, Custom_Stock_MPG[[ Technology Type]], $B9, Custom_Stock_MPG[Vehicle Type], $A9, Custom_Stock_MPG[Scenario], Input_Scenario_Modeled), SUMIFS(Vehicle_Projections[Vehicle Stock],Vehicle_Projections[Year],Calculations!E$4, Vehicle_Projections[[ Technology Type]], $B9, Vehicle_Projections[Vehicle Type], $A9, Vehicle_Projections[Scenario], Input_Scenario_Modeled)) -> 0 | F9: =IF(Input_Scenario_Modeled="Custom", SUMIFS(Custom_Stock_MPG[Vehicle Stock],Custom_Stock_MPG[Year],Calculations!F$4, Custom_Stock_MPG[[ Technology Type]], $B9, Custom_Stock_MPG[Vehicle Type], $A9, Custom_Stock_MPG[Scenario], Input_Scenario_Modeled), SUMIFS(Vehicle_Projections[Vehicle Stock],Vehicle_Projections[Year],Calculations!F$4, Vehicle_Projections[[ Technology Type]], $B9, Vehicle_Projections[Vehicle Type], $A9, Vehicle_Projections[Scenario], Input_Scenario_Modeled)) -> 0 | G9: =IF(Input_Scenario_Modeled="Custom", SUMIFS(Custom_Stock_MPG[Vehicle Stock],Custom_Stock_MPG[Year],Calculations!G$4, Custom_Stock_MPG[[ Technology Type]], $B9, Custom_Stock_MPG[Vehicle Type], $A9, Custom_Stock_MPG[Scenario], Input_Scenario_Modeled), SUMIFS(Vehicle_Projections[Vehicle Stock],Vehicle_Projections[Year],Calculations!G$4, Vehicle_Projections[[ Technology Type]], $B9, Vehicle_Projections[Vehicle Type], $A9, Vehicle_Projections[Scenario], Input_Scenario_Modeled)) -> 0 | H9: =IF(Input_Scenario_Modeled="Custom", SUMIFS(Custom_Stock_MPG[Vehicle Stock],Custom_Stock_MPG[Year],Calculations!H$4, Custom_Stock_MPG[[ Technology Type]], $B9, Custom_Stock_MPG[Vehicle Type], $A9, Custom_Stock_MPG[Scenario], Input_Scenario_Modeled), SUMIFS(Vehicle_Projections[Vehicle Stock],Vehicle_Projections[Year],Calculations!H$4, Vehicle_Projections[[ Technology Type]], $B9, Vehicle_Projections[Vehicle Type], $A9, Vehicle_Projections[Scenario], Input_Scenario_Modeled)) -> 0 | I9: =IF(Input_Scenario_Modeled="Custom", SUMIFS(Custom_Stock_MPG[Vehicle Stock],Custom_Stock_MPG[Year],Calculations!I$4, Custom_Stock_MPG[[ Technology Type]], $B9, Custom_Stock_MPG[Vehicle Type], $A9, Custom_Stock_MPG[Scenario], Input_Scenario_Modeled), SUMIFS(Vehicle_Projections[Vehicle Stock],Vehicle_Projections[Year],Calculations!I$4, Vehicle_Projections[[ Technology Type]], $B9, Vehicle_Projections[Vehicle Type], $A9, Vehicle_Projections[Scenario], Input_Scenario_Modeled)) -> 0 | J9: =IF(Input_Scenario_Modeled="Custom", SUMIFS(Custom_Stock_MPG[Vehicle Stock],Custom_Stock_MPG[Year],Calculations!J$4, Custom_Stock_MPG[[ Technology Type]], $B9, Custom_Stock_MPG[Vehicle Type], $A9, Custom_Stock_MPG[Scenario], Input_Scenario_Modeled), SUMIFS(Vehicle_Projections[Vehicle Stock],Vehicle_Projections[Year],Calculations!J$4, Vehicle_Projections[[ Technology Type]], $B9, Vehicle_Projections[Vehicle Type], $A9, Vehicle_Projections[Scenario], Input_Scenario_Modeled)) -> 0 | K9: =IF(Input_Scenario_Modeled="Custom", SUMIFS(Custom_Stock_MPG[Vehicle Stock],Custom_Stock_MPG[Year],Calculations!K$4, Custom_Stock_MPG[[ Technology Type]], $B9, Custom_Stock_MPG[Vehicle Type], $A9, Custom_Stock_MPG[Scenario], Input_Scenario_Modeled), SUMIFS(Vehicle_Projections[Vehicle Stock],Vehicle_Projections[Year],Calculations!K$4, Vehicle_Projections[[ Technology Type]], $B9, Vehicle_Projections[Vehicle Type], $A9, Vehicle_Projections[Scenario], Input_Scenario_Modeled)) -> 0 | L9: =IF(Input_Scenario_Modeled="Custom", SUMIFS(Custom_Stock_MPG[Vehicle Stock],Custom_Stock_MPG[Year],Calculations!L$4, Custom_Stock_MPG[[ Technology Type]], $B9, Custom_Stock_MPG[Vehicle Type], $A9, Custom_Stock_MPG[Scenario], Input_Scenario_Modeled), SUMIFS(Vehicle_Projections[Vehicle Stock],Vehicle_Projections[Year],Calculations!L$4, Vehicle_Projections[[ Technology Type]], $B9, Vehicle_Projections[Vehicle Type], $A9, Vehicle_Projections[Scenario], Input_Scenario_Modeled)) -> 0 | M9: =IF(Input_Scenario_Modeled="Custom", SUMIFS(Custom_Stock_MPG[Vehicle Stock],Custom_Stock_MPG[Year],Calculations!M$4, Custom_Stock_MPG[[ Technology Type]], $B9, Custom_Stock_MPG[Vehicle Type], $A9, Custom_Stock_MPG[Scenario], Input_Scenario_Modeled), SUMIFS(Vehicle_Projections[Vehicle Stock],Vehicle_Projections[Year],Calculations!M$4, Vehicle_Projections[[ Technology Type]], $B9, Vehicle_Projections[Vehicle Type], $A9, Vehicle_Projections[Scenario], Input_Scenario_Modeled)) -> 0 | N9: =IF(Input_Scenario_Modeled="Custom", SUMIFS(Custom_Stock_MPG[Vehicle Stock],Custom_Stock_MPG[Year],Calculations!N$4, Custom_Stock_MPG[[ Technology Type]], $B9, Custom_Stock_MPG[Vehicle Type], $A9, Custom_Stock_MPG[Scenario], Input_Scenario_Modeled), SUMIFS(Vehicle_Projections[Vehicle Stock],Vehicle_Projections[Year],Calculations!N$4, Vehicle_Projections[[ Technology Type]], $B9, Vehicle_Projections[Vehicle Type], $A9, Vehicle_Projections[Scenario], Input_Scenario_Modeled)) -> 0 | O9: =IF(Input_Scenario_Modeled="Custom", SUMIFS(Custom_Stock_MPG[Vehicle Stock],Custom_Stock_MPG[Year],Calculations!O$4, Custom_Stock_MPG[[ Technology Type]], $B9, Custom_Stock_MPG[Vehicle Type], $A9, Custom_Stock_MPG[Scenario], Input_Scenario_Modeled), SUMIFS(Vehicle_Projections[Vehicle Stock],Vehicle_Projections[Year],Calculations!O$4, Vehicle_Projections[[ Technology Type]], $B9, Vehicle_Projections[Vehicle Type], $A9, Vehicle_Projections[Scenario], Input_Scenario_Modeled)) -> 0 | P9: =IF(Input_Scenario_Modeled="Custom", SUMIFS(Custom_Stock_MPG[Vehicle Stock],Custom_Stock_MPG[Year],Calculations!P$4, Custom_Stock_MPG[[ Technology Type]], $B9, Custom_Stock_MPG[Vehicle Type], $A9, Custom_Stock_MPG[Scenario], Input_Scenario_Modeled), SUMIFS(Vehicle_Projections[Vehicle Stock],Vehicle_Projections[Year],Calculations!P$4, Vehicle_Projections[[ Technology Type]], $B9, Vehicle_Projections[Vehicle Type], $A9, Vehicle_Projections[Scenario], Input_Scenario_Modeled)) -> 0 | Q9: =IF(Input_Scenario_Modeled="Custom", SUMIFS(Custom_Stock_MPG[Vehicle Stock],Custom_Stock_MPG[Year],Calculations!Q$4, Custom_Stock_MPG[[ Technology Type]], $B9, Custom_Stock_MPG[Vehicle Type], $A9, Custom_Stock_MPG[Scenario], Input_Scenario_Modeled), SUMIFS(Vehicle_Projections[Vehicle Stock],Vehicle_Projections[Year],Calculations!Q$4, Vehicle_Projections[[ Technology Type]], $B9, Vehicle_Projections[Vehicle Type], $A9, Vehicle_Projections[Scenario], Input_Scenario_Modeled)) -> 0 | R9: =IF(Input_Scenario_Modeled="Custom", SUMIFS(Custom_Stock_MPG[Vehicle Stock],Custom_Stock_MPG[Year],Calculations!R$4, Custom_Stock_MPG[[ Technology Type]], $B9, Custom_Stock_MPG[Vehicle Type], $A9, Custom_Stock_MPG[Scenario], Input_Scenario_Modeled), SUMIFS(Vehicle_Projections[Vehicle Stock],Vehicle_Projections[Year],Calculations!R$4, Vehicle_Projections[[ Technology Type]], $B9, Vehicle_Projections[Vehicle Type], $A9, Vehicle_Projections[Scenario], Input_Scenario_Modeled)) -> 0.001106 | S9: =IF(Input_Scenario_Modeled="Custom", SUMIFS(Custom_Stock_MPG[Vehicle Stock],Custom_Stock_MPG[Year],Calculations!S$4, Custom_Stock_MPG[[ Technology Type]], $B9, Custom_Stock_MPG[Vehicle Type], $A9, Custom_Stock_MPG[Scenario], Input_Scenario_Modeled), SUMIFS(Vehicle_Projections[Vehicle Stock],Vehicle_Projections[Year],Calculations!S$4, Vehicle_Projections[[ Technology Type]], $B9, Vehicle_Projections[Vehicle Type], $A9, Vehicle_Projections[Scenario], Input_Scenario_Modeled)) -> 0.006045 | T9: =IF(Input_Scenario_Modeled="Custom", SUMIFS(Custom_Stock_MPG[Vehicle Stock],Custom_Stock_MPG[Year],Calculations!T$4, Custom_Stock_MPG[[ Technology Type]], $B9, Custom_Stock_MPG[Vehicle Type], $A9, Custom_Stock_MPG[Scenario], Input_Scenario_Modeled), SUMIFS(Vehicle_Projections[Vehicle Stock],Vehicle_Projections[Year],Calculations!T$4, Vehicle_Projections[[ Technology Type]], $B9, Vehicle_Projections[Vehicle Type], $A9, Vehicle_Projections[Scenario], Input_Scenario_Modeled)) -> 0.014296 | U9: =IF(Input_Scenario_Modeled="Custom", SUMIFS(Custom_Stock_MPG[Vehicle Stock],Custom_Stock_MPG[Year],Calculations!U$4, Custom_Stock_MPG[[ Technology Type]], $B9, Custom_Stock_MPG[Vehicle Type], $A9, Custom_Stock_MPG[Scenario], Input_Scenario_Modeled), SUMIFS(Vehicle_Projections[Vehicle Stock],Vehicle_Projections[Year],Calculations!U$4, Vehicle_Projections[[ Technology Type]], $B9, Vehicle_Projections[Vehicle Type], $A9, Vehicle_Projections[Scenario], Input_Scenario_Modeled)) -> 0.024435 | V9: =IF(Input_Scenario_Modeled="Custom", SUMIFS(Custom_Stock_MPG[Vehicle Stock],Custom_Stock_MPG[Year],Calculations!V$4, Custom_Stock_MPG[[ Technology Type]], $B9, Custom_Stock_MPG[Vehicle Type], $A9, Custom_Stock_MPG[Scenario], Input_Scenario_Modeled), SUMIFS(Vehicle_Projections[Vehicle Stock],Vehicle_Projections[Year],Calculations!V$4, Vehicle_Projections[[ Technology Type]], $B9, Vehicle_Projections[Vehicle Type], $A9, Vehicle_Projections[Scenario], Input_Scenario_Modeled)) -> 0.035563 | W9: =IF(Input_Scenario_Modeled="Custom", SUMIFS(Custom_Stock_MPG[Vehicle Stock],Custom_Stock_MPG[Year],Calculations!W$4, Custom_Stock_MPG[[ Technology Type]], $B9, Custom_Stock_MPG[Vehicle Type], $A9, Custom_Stock_MPG[Scenario], Input_Scenario_Modeled), SUMIFS(Vehicle_Projections[Vehicle Stock],Vehicle_Projections[Year],Calculations!W$4, Vehicle_Projections[[ Technology Type]], $B9, Vehicle_Projections[Vehicle Type], $A9, Vehicle_Projections[Scenario], Input_Scenario_Modeled)) -> 0.047097 | X9: =IF(Input_Scenario_Modeled="Custom", SUMIFS(Custom_Stock_MPG[Vehicle Stock],Custom_Stock_MPG[Year],Calculations!X$4, Custom_Stock_MPG[[ Technology Type]], $B9, Custom_Stock_MPG[Vehicle Type], $A9, Custom_Stock_MPG[Scenario], Input_Scenario_Modeled), SUMIFS(Vehicle_Projections[Vehicle Stock],Vehicle_Projections[Year],Calculations!X$4, Vehicle_Projections[[ Technology Type]], $B9, Vehicle_Projections[Vehicle Type], $A9, Vehicle_Projections[Scenario], Input_Scenario_Modeled)) -> 0.058716 | Y9: =IF(Input_Scenario_Modeled="Custom", SUMIFS(Custom_Stock_MPG[Vehicle Stock],Custom_Stock_MPG[Year],Calculations!Y$4, Custom_Stock_MPG[[ Technology Type]], $B9, Custom_Stock_MPG[Vehicle Type], $A9, Custom_Stock_MPG[Scenario], Input_Scenario_Modeled), SUMIFS(Vehicle_Projections[Vehicle Stock],Vehicle_Projections[Year],Calculations!Y$4, Vehicle_Projections[[ Technology Type]], $B9, Vehicle_Projections[Vehicle Type], $A9, Vehicle_Projections[Scenario], Input_Scenario_Modeled)) -> 0.070455 | Z9: =IF(Input_Scenario_Modeled="Custom", SUMIFS(Custom_Stock_MPG[Vehicle Stock],Custom_Stock_MPG[Year],Calculations!Z$4, Custom_Stock_MPG[[ Technology Type]], $B9, Custom_Stock_MPG[Vehicle Type], $A9, Custom_Stock_MPG[Scenario], Input_Scenario_Modeled), SUMIFS(Vehicle_Projections[Vehicle Stock],Vehicle_Projections[Year],Calculations!Z$4, Vehicle_Projections[[ Technology Type]], $B9, Vehicle_Projections[Vehicle Type], $A9, Vehicle_Projections[Scenario], Input_Scenario_Modeled)) -> 0.08217 | AA9: =IF(Input_Scenario_Modeled="Custom", SUMIFS(Custom_Stock_MPG[Vehicle Stock],Custom_Stock_MPG[Year],Calculations!AA$4, Custom_Stock_MPG[[ Technology Type]], $B9, Custom_Stock_MPG[Vehicle Type], $A9, Custom_Stock_MPG[Scenario], Input_Scenario_Modeled), SUMIFS(Vehicle_Projections[Vehicle Stock],Vehicle_Projections[Year],Calculations!AA$4, Vehicle_Projections[[ Technology Type]], $B9, Vehicle_Projections[Vehicle Type], $A9, Vehicle_Projections[Scenario], Input_Scenario_Modeled)) -> 0.093822 | AB9: =IF(Input_Scenario_Modeled="Custom", SUMIFS(Custom_Stock_MPG[Vehicle Stock],Custom_Stock_MPG[Year],Calculations!AB$4, Custom_Stock_MPG[[ Technology Type]], $B9, Custom_Stock_MPG[Vehicle Type], $A9, Custom_Stock_MPG[Scenario], Input_Scenario_Modeled), SUMIFS(Vehicle_Projections[Vehicle Stock],Vehicle_Projections[Year],Calculations!AB$4, Vehicle_Projections[[ Technology Type]], $B9, Vehicle_Projections[Vehicle Type], $A9, Vehicle_Projections[Scenario], Input_Scenario_Modeled)) -> 0.105484 | AC9: =IF(Input_Scenario_Modeled="Custom", SUMIFS(Custom_Stock_MPG[Vehicle Stock],Custom_Stock_MPG[Year],Calculations!AC$4, Custom_Stock_MPG[[ Technology Type]], $B9, Custom_Stock_MPG[Vehicle Type], $A9, Custom_Stock_MPG[Scenario], Input_Scenario_Modeled), SUMIFS(Vehicle_Projections[Vehicle Stock],Vehicle_Projections[Year],Calculations!AC$4, Vehicle_Projections[[ Technology Type]], $B9, Vehicle_Projections[Vehicle Type], $A9, Vehicle_Projections[Scenario], Input_Scenario_Modeled)) -> 0.117164 | AD9: =IF(Input_Scenario_Modeled="Custom", SUMIFS(Custom_Stock_MPG[Vehicle Stock],Custom_Stock_MPG[Year],Calculations!AD$4, Custom_Stock_MPG[[ Technology Type]], $B9, Custom_Stock_MPG[Vehicle Type], $A9, Custom_Stock_MPG[Scenario], Input_Scenario_Modeled), SUMIFS(Vehicle_Projections[Vehicle Stock],Vehicle_Projections[Year],Calculations!AD$4, Vehicle_Projections[[ Technology Type]], $B9, Vehicle_Projections[Vehicle Type], $A9, Vehicle_Projections[Scenario], Input_Scenario_Modeled)) -> 0.128677 | AE9: =IF(Input_Scenario_Modeled="Custom", SUMIFS(Custom_Stock_MPG[Vehicle Stock],Custom_Stock_MPG[Year],Calculations!AE$4, Custom_Stock_MPG[[ Technology Type]], $B9, Custom_Stock_MPG[Vehicle Type], $A9, Custom_Stock_MPG[Scenario], Input_Scenario_Modeled), SUMIFS(Vehicle_Projections[Vehicle Stock],Vehicle_Projections[Year],Calculations!AE$4, Vehicle_Projections[[ Technology Type]], $B9, Vehicle_Projections[Vehicle Type], $A9, Vehicle_Projections[Scenario], Input_Scenario_Modeled)) -> 0.139957 | AF9: =IF(Input_Scenario_Modeled="Custom", SUMIFS(Custom_Stock_MPG[Vehicle Stock],Custom_Stock_MPG[Year],Calculations!AF$4, Custom_Stock_MPG[[ Technology Type]], $B9, Custom_Stock_MPG[Vehicle Type], $A9, Custom_Stock_MPG[Scenario], Input_Scenario_Modeled), SUMIFS(Vehicle_Projections[Vehicle Stock],Vehicle_Projections[Year],Calculations!AF$4, Vehicle_Projections[[ Technology Type]], $B9, Vehicle_Projections[Vehicle Type], $A9, Vehicle_Projections[Scenario], Input_Scenario_Modeled)) -> 0.15096 | AG9: =IF(Input_Scenario_Modeled="Custom", SUMIFS(Custom_Stock_MPG[Vehicle Stock],Custom_Stock_MPG[Year],Calculations!AG$4, Custom_Stock_MPG[[ Technology Type]], $B9, Custom_Stock_MPG[Vehicle Type], $A9, Custom_Stock_MPG[Scenario], Input_Scenario_Modeled), SUMIFS(Vehicle_Projections[Vehicle Stock],Vehicle_Projections[Year],Calculations!AG$4, Vehicle_Projections[[ Technology Type]], $B9, Vehicle_Projections[Vehicle Type], $A9, Vehicle_Projections[Scenario], Input_Scenario_Modeled)) -> 0.161474 | AH9: =IF(Input_Scenario_Modeled="Custom", SUMIFS(Custom_Stock_MPG[Vehicle Stock],Custom_Stock_MPG[Year],Calculations!AH$4, Custom_Stock_MPG[[ Technology Type]], $B9, Custom_Stock_MPG[Vehicle Type], $A9, Custom_Stock_MPG[Scenario], Input_Scenario_Modeled), SUMIFS(Vehicle_Projections[Vehicle Stock],Vehicle_Projections[Year],Calculations!AH$4, Vehicle_Projections[[ Technology Type]], $B9, Vehicle_Projections[Vehicle Type], $A9, Vehicle_Projections[Scenario], Input_Scenario_Modeled)) -> 0.171426 | AI9: =IF(Input_Scenario_Modeled="Custom", SUMIFS(Custom_Stock_MPG[Vehicle Stock],Custom_Stock_MPG[Year],Calculations!AI$4, Custom_Stock_MPG[[ Technology Type]], $B9, Custom_Stock_MPG[Vehicle Type], $A9, Custom_Stock_MPG[Scenario], Input_Scenario_Modeled), SUMIFS(Vehicle_Projections[Vehicle Stock],Vehicle_Projections[Year],Calculations!AI$4, Vehicle_Projections[[ Technology Type]], $B9, Vehicle_Projections[Vehicle Type], $A9, Vehicle_Projections[Scenario], Input_Scenario_Modeled)) -> 0.180641 | AJ9: =IF(Input_Scenario_Modeled="Custom", SUMIFS(Custom_Stock_MPG[Vehicle Stock],Custom_Stock_MPG[Year],Calculations!AJ$4, Custom_Stock_MPG[[ Technology Type]], $B9, Custom_Stock_MPG[Vehicle Type], $A9, Custom_Stock_MPG[Scenario], Input_Scenario_Modeled), SUMIFS(Vehicle_Projections[Vehicle Stock],Vehicle_Projections[Year],Calculations!AJ$4, Vehicle_Projections[[ Technology Type]], $B9, Vehicle_Projections[Vehicle Type], $A9, Vehicle_Projections[Scenario], Input_Scenario_Modeled)) -> 0.188912 | AK9: =IF(Input_Scenario_Modeled="Custom", SUMIFS(Custom_Stock_MPG[Vehicle Stock],Custom_Stock_MPG[Year],Calculations!AK$4, Custom_Stock_MPG[[ Technology Type]], $B9, Custom_Stock_MPG[Vehicle Type], $A9, Custom_Stock_MPG[Scenario], Input_Scenario_Modeled), SUMIFS(Vehicle_Projections[Vehicle Stock],Vehicle_Projections[Year],Calculations!AK$4, Vehicle_Projections[[ Technology Type]], $B9, Vehicle_Projections[Vehicle Type], $A9, Vehicle_Projections[Scenario], Input_Scenario_Modeled)) -> 0.196291 | AL9: =IF(Input_Scenario_Modeled="Custom", SUMIFS(Custom_Stock_MPG[Vehicle Stock],Custom_Stock_MPG[Year],Calculations!AL$4, Custom_Stock_MPG[[ Technology Type]], $B9, Custom_Stock_MPG[Vehicle Type], $A9, Custom_Stock_MPG[Scenario], Input_Scenario_Modeled), SUMIFS(Vehicle_Projections[Vehicle Stock],Vehicle_Projections[Year],Calculations!AL$4, Vehicle_Projections[[ Technology Type]], $B9, Vehicle_Projections[Vehicle Type], $A9, Vehicle_Projections[Scenario], Input_Scenario_Modeled)) -> 0.202719
A10: Passenger Cars | B10: 100 Mile Electric Vehicle | C10: Electricity | D10: Stock | E10: =IF(Input_Scenario_Modeled="Custom", SUMIFS(Custom_Stock_MPG[Vehicle Stock],Custom_Stock_MPG[Year],Calculations!E$4, Custom_Stock_MPG[[ Technology Type]], $B10, Custom_Stock_MPG[Vehicle Type], $A10, Custom_Stock_MPG[Scenario], Input_Scenario_Modeled), SUMIFS(Vehicle_Projections[Vehicle Stock],Vehicle_Projections[Year],Calculations!E$4, Vehicle_Projections[[ Technology Type]], $B10, Vehicle_Projections[Vehicle Type], $A10, Vehicle_Projections[Scenario], Input_Scenario_Modeled)) -> 0.195882 | F10: =IF(Input_Scenario_Modeled="Custom", SUMIFS(Custom_Stock_MPG[Vehicle Stock],Custom_Stock_MPG[Year],Calculations!F$4, Custom_Stock_MPG[[ Technology Type]], $B10, Custom_Stock_MPG[Vehicle Type], $A10, Custom_Stock_MPG[Scenario], Input_Scenario_Modeled), SUMIFS(Vehicle_Projections[Vehicle Stock],Vehicle_Projections[Year],Calculations!F$4, Vehicle_Projections[[ Technology Type]], $B10, Vehicle_Projections[Vehicle Type], $A10, Vehicle_Projections[Scenario], Input_Scenario_Modeled)) -> 0.208961 | G10: =IF(Input_Scenario_Modeled="Custom", SUMIFS(Custom_Stock_MPG[Vehicle Stock],Custom_Stock_MPG[Year],Calculations!G$4, Custom_Stock_MPG[[ Technology Type]], $B10, Custom_Stock_MPG[Vehicle Type], $A10, Custom_Stock_MPG[Scenario], Input_Scenario_Modeled), SUMIFS(Vehicle_Projections[Vehicle Stock],Vehicle_Projections[Year],Calculations!G$4, Vehicle_Projections[[ Technology Type]], $B10, Vehicle_Projections[Vehicle Type], $A10, Vehicle_Projections[Scenario], Input_Scenario_Modeled)) -> 0.260034 | H10: =IF(Input_Scenario_Modeled="Custom", SUMIFS(Custom_Stock_MPG[Vehicle Stock],Custom_Stock_MPG[Year],Calculations!H$4, Custom_Stock_MPG[[ Technology Type]], $B10, Custom_Stock_MPG[Vehicle Type], $A10, Custom_Stock_MPG[Scenario], Input_Scenario_Modeled), SUMIFS(Vehicle_Projections[Vehicle Stock],Vehicle_Projections[Year],Calculations!H$4, Vehicle_Projections[[ Technology Type]], $B10, Vehicle_Projections[Vehicle Type], $A10, Vehicle_Projections[Scenario], Input_Scenario_Modeled)) -> 0.313793 | I10: =IF(Input_Scenario_Modeled="Custom", SUMIFS(Custom_Stock_MPG[Vehicle Stock],Custom_Stock_MPG[Year],Calculations!I$4, Custom_Stock_MPG[[ Technology Type]], $B10, Custom_Stock_MPG[Vehicle Type], $A10, Custom_Stock_MPG[Scenario], Input_Scenario_Modeled), SUMIFS(Vehicle_Projections[Vehicle Stock],Vehicle_Projections[Year],Calculations!I$4, Vehicle_Projections[[ Technology Type]], $B10, Vehicle_Projections[Vehicle Type], $A10, Vehicle_Projections[Scenario], Input_Scenario_Modeled)) -> 0.372325 | J10: =IF(Input_Scenario_Modeled="Custom", SUMIFS(Custom_Stock_MPG[Vehicle Stock],Custom_Stock_MPG[Year],Calculations!J$4, Custom_Stock_MPG[[ Technology Type]], $B10, Custom_Stock_MPG[Vehicle Type], $A10, Custom_Stock_MPG[Scenario], Input_Scenario_Modeled), SUMIFS(Vehicle_Projections[Vehicle Stock],Vehicle_Projections[Year],Calculations!J$4, Vehicle_Projections[[ Technology Type]], $B10, Vehicle_Projections[Vehicle Type], $A10, Vehicle_Projections[Scenario], Input_Scenario_Modeled)) -> 0.440716 | K10: =IF(Input_Scenario_Modeled="Custom", SUMIFS(Custom_Stock_MPG[Vehicle Stock],Custom_Stock_MPG[Year],Calculations!K$4, Custom_Stock_MPG[[ Technology Type]], $B10, Custom_Stock_MPG[Vehicle Type], $A10, Custom_Stock_MPG[Scenario], Input_Scenario_Modeled), SUMIFS(Vehicle_Projections[Vehicle Stock],Vehicle_Projections[Year],Calculations!K$4, Vehicle_Projections[[ Technology Type]], $B10, Vehicle_Projections[Vehicle Type], $A10, Vehicle_Projections[Scenario], Input_Scenario_Modeled)) -> 0.513588 | L10: =IF(Input_Scenario_Modeled="Custom", SUMIFS(Custom_Stock_MPG[Vehicle Stock],Custom_Stock_MPG[Year],Calculations!L$4, Custom_Stock_MPG[[ Technology Type]], $B10, Custom_Stock_MPG[Vehicle Type], $A10, Custom_Stock_MPG[Scenario], Input_Scenario_Modeled), SUMIFS(Vehicle_Projections[Vehicle Stock],Vehicle_Projections[Year],Calculations!L$4, Vehicle_Projections[[ Technology Type]], $B10, Vehicle_Projections[Vehicle Type], $A10, Vehicle_Projections[Scenario], Input_Scenario_Modeled)) -> 0.595387 | M10: =IF(Input_Scenario_Modeled="Custom", SUMIFS(Custom_Stock_MPG[Vehicle Stock],Custom_Stock_MPG[Year],Calculations!M$4, Custom_Stock_MPG[[ Technology Type]], $B10, Custom_Stock_MPG[Vehicle Type], $A10, Custom_Stock_MPG[Scenario], Input_Scenario_Modeled), SUMIFS(Vehicle_Projections[Vehicle Stock],Vehicle_Projections[Year],Calculations!M$4, Vehicle_Projections[[ Technology Type]], $B10, Vehicle_Projections[Vehicle Type], $A10, Vehicle_Projections[Scenario], Input_Scenario_Modeled)) -> 0.680871 | N10: =IF(Input_Scenario_Modeled="Custom", SUMIFS(Custom_Stock_MPG[Vehicle Stock],Custom_Stock_MPG[Year],Calculations!N$4, Custom_Stock_MPG[[ Technology Type]], $B10, Custom_Stock_MPG[Vehicle Type], $A10, Custom_Stock_MPG[Scenario], Input_Scenario_Modeled), SUMIFS(Vehicle_Projections[Vehicle Stock],Vehicle_Projections[Year],Calculations!N$4, Vehicle_Projections[[ Technology Type]], $B10, Vehicle_Projections[Vehicle Type], $A10, Vehicle_Projections[Scenario], Input_Scenario_Modeled)) -> 0.760109 | O10: =IF(Input_Scenario_Modeled="Custom", SUMIFS(Custom_Stock_MPG[Vehicle Stock],Custom_Stock_MPG[Year],Calculations!O$4, Custom_Stock_MPG[[ Technology Type]], $B10, Custom_Stock_MPG[Vehicle Type], $A10, Custom_Stock_MPG[Scenario], Input_Scenario_Modeled), SUMIFS(Vehicle_Projections[Vehicle Stock],Vehicle_Projections[Year],Calculations!O$4, Vehicle_Projections[[ Technology Type]], $B10, Vehicle_Projections[Vehicle Type], $A10, Vehicle_Projections[Scenario], Input_Scenario_Modeled)) -> 0.837168 | P10: =IF(Input_Scenario_Modeled="Custom", SUMIFS(Custom_Stock_MPG[Vehicle Stock],Custom_Stock_MPG[Year],Calculations!P$4, Custom_Stock_MPG[[ Technology Type]], $B10, Custom_Stock_MPG[Vehicle Type], $A10, Custom_Stock_MPG[Scenario], Input_Scenario_Modeled), SUMIFS(Vehicle_Projections[Vehicle Stock],Vehicle_Projections[Year],Calculations!P$4, Vehicle_Projections[[ Technology Type]], $B10, Vehicle_Projections[Vehicle Type], $A10, Vehicle_Projections[Scenario], Input_Scenario_Modeled)) -> 0.906489 | Q10: =IF(Input_Scenario_Modeled="Custom", SUMIFS(Custom_Stock_MPG[Vehicle Stock],Custom_Stock_MPG[Year],Calculations!Q$4, Custom_Stock_MPG[[ Technology Type]], $B10, Custom_Stock_MPG[Vehicle Type], $A10, Custom_Stock_MPG[Scenario], Input_Scenario_Modeled), SUMIFS(Vehicle_Projections[Vehicle Stock],Vehicle_Projections[Year],Calculations!Q$4, Vehicle_Projections[[ Technology Type]], $B10, Vehicle_Projections[Vehicle Type], $A10, Vehicle_Projections[Scenario], Input_Scenario_Modeled)) -> 0.972457 | R10: =IF(Input_Scenario_Modeled="Custom", SUMIFS(Custom_Stock_MPG[Vehicle Stock],Custom_Stock_MPG[Year],Calculations!R$4, Custom_Stock_MPG[[ Technology Type]], $B10, Custom_Stock_MPG[Vehicle Type], $A10, Custom_Stock_MPG[Scenario], Input_Scenario_Modeled), SUMIFS(Vehicle_Projections[Vehicle Stock],Vehicle_Projections[Year],Calculations!R$4, Vehicle_Projections[[ Technology Type]], $B10, Vehicle_Projections[Vehicle Type], $A10, Vehicle_Projections[Scenario], Input_Scenario_Modeled)) -> 1.033574 | S10: =IF(Input_Scenario_Modeled="Custom", SUMIFS(Custom_Stock_MPG[Vehicle Stock],Custom_Stock_MPG[Year],Calculations!S$4, Custom_Stock_MPG[[ Technology Type]], $B10, Custom_Stock_MPG[Vehicle Type], $A10, Custom_Stock_MPG[Scenario], Input_Scenario_Modeled), SUMIFS(Vehicle_Projections[Vehicle Stock],Vehicle_Projections[Year],Calculations!S$4, Vehicle_Projections[[ Technology Type]], $B10, Vehicle_Projections[Vehicle Type], $A10, Vehicle_Projections[Scenario], Input_Scenario_Modeled)) -> 1.092179 | T10: =IF(Input_Scenario_Modeled="Custom", SUMIFS(Custom_Stock_MPG[Vehicle Stock],Custom_Stock_MPG[Year],Calculations!T$4, Custom_Stock_MPG[[ Technology Type]], $B10, Custom_Stock_MPG[Vehicle Type], $A10, Custom_Stock_MPG[Scenario], Input_Scenario_Modeled), SUMIFS(Vehicle_Projections[Vehicle Stock],Vehicle_Projections[Year],Calculations!T$4, Vehicle_Projections[[ Technology Type]], $B10, Vehicle_Projections[Vehicle Type], $A10, Vehicle_Projections[Scenario], Input_Scenario_Modeled)) -> 1.143182 | U10: =IF(Input_Scenario_Modeled="Custom", SUMIFS(Custom_Stock_MPG[Vehicle Stock],Custom_Stock_MPG[Year],Calculations!U$4, Custom_Stock_MPG[[ Technology Type]], $B10, Custom_Stock_MPG[Vehicle Type], $A10, Custom_Stock_MPG[Scenario], Input_Scenario_Modeled), SUMIFS(Vehicle_Projections[Vehicle Stock],Vehicle_Projections[Year],Calculations!U$4, Vehicle_Projections[[ Technology Type]], $B10, Vehicle_Projections[Vehicle Type], $A10, Vehicle_Projections[Scenario], Input_Scenario_Modeled)) -> 1.191302 | V10: =IF(Input_Scenario_Modeled="Custom", SUMIFS(Custom_Stock_MPG[Vehicle Stock],Custom_Stock_MPG[Year],Calculations!V$4, Custom_Stock_MPG[[ Technology Type]], $B10, Custom_Stock_MPG[Vehicle Type], $A10, Custom_Stock_MPG[Scenario], Input_Scenario_Modeled), SUMIFS(Vehicle_Projections[Vehicle Stock],Vehicle_Projections[Year],Calculations!V$4, Vehicle_Projections[[ Technology Type]], $B10, Vehicle_Projections[Vehicle Type], $A10, Vehicle_Projections[Scenario], Input_Scenario_Modeled)) -> 1.236534 | W10: =IF(Input_Scenario_Modeled="Custom", SUMIFS(Custom_Stock_MPG[Vehicle Stock],Custom_Stock_MPG[Year],Calculations!W$4, Custom_Stock_MPG[[ Technology Type]], $B10, Custom_Stock_MPG[Vehicle Type], $A10, Custom_Stock_MPG[Scenario], Input_Scenario_Modeled), SUMIFS(Vehicle_Projections[Vehicle Stock],Vehicle_Projections[Year],Calculations!W$4, Vehicle_Projections[[ Technology Type]], $B10, Vehicle_Projections[Vehicle Type], $A10, Vehicle_Projections[Scenario], Input_Scenario_Modeled)) -> 1.278813 | X10: =IF(Input_Scenario_Modeled="Custom", SUMIFS(Custom_Stock_MPG[Vehicle Stock],Custom_Stock_MPG[Year],Calculations!X$4, Custom_Stock_MPG[[ Technology Type]], $B10, Custom_Stock_MPG[Vehicle Type], $A10, Custom_Stock_MPG[Scenario], Input_Scenario_Modeled), SUMIFS(Vehicle_Projections[Vehicle Stock],Vehicle_Projections[Year],Calculations!X$4, Vehicle_Projections[[ Technology Type]], $B10, Vehicle_Projections[Vehicle Type], $A10, Vehicle_Projections[Scenario], Input_Scenario_Modeled)) -> 1.317466 | Y10: =IF(Input_Scenario_Modeled="Custom", SUMIFS(Custom_Stock_MPG[Vehicle Stock],Custom_Stock_MPG[Year],Calculations!Y$4, Custom_Stock_MPG[[ Technology Type]], $B10, Custom_Stock_MPG[Vehicle Type], $A10, Custom_Stock_MPG[Scenario], Input_Scenario_Modeled), SUMIFS(Vehicle_Projections[Vehicle Stock],Vehicle_Projections[Year],Calculations!Y$4, Vehicle_Projections[[ Technology Type]], $B10, Vehicle_Projections[Vehicle Type], $A10, Vehicle_Projections[Scenario], Input_Scenario_Modeled)) -> 1.351504 | Z10: =IF(Input_Scenario_Modeled="Custom", SUMIFS(Custom_Stock_MPG[Vehicle Stock],Custom_Stock_MPG[Year],Calculations!Z$4, Custom_Stock_MPG[[ Technology Type]], $B10, Custom_Stock_MPG[Vehicle Type], $A10, Custom_Stock_MPG[Scenario], Input_Scenario_Modeled), SUMIFS(Vehicle_Projections[Vehicle Stock],Vehicle_Projections[Year],Calculations!Z$4, Vehicle_Projections[[ Technology Type]], $B10, Vehicle_Projections[Vehicle Type], $A10, Vehicle_Projections[Scenario], Input_Scenario_Modeled)) -> 1.382852 | AA10: =IF(Input_Scenario_Modeled="Custom", SUMIFS(Custom_Stock_MPG[Vehicle Stock],Custom_Stock_MPG[Year],Calculations!AA$4, Custom_Stock_MPG[[ Technology Type]], $B10, Custom_Stock_MPG[Vehicle Type], $A10, Custom_Stock_MPG[Scenario], Input_Scenario_Modeled), SUMIFS(Vehicle_Projections[Vehicle Stock],Vehicle_Projections[Year],Calculations!AA$4, Vehicle_Projections[[ Technology Type]], $B10, Vehicle_Projections[Vehicle Type], $A10, Vehicle_Projections[Scenario], Input_Scenario_Modeled)) -> 1.412077 | AB10: =IF(Input_Scenario_Modeled="Custom", SUMIFS(Custom_Stock_MPG[Vehicle Stock],Custom_Stock_MPG[Year],Calculations!AB$4, Custom_Stock_MPG[[ Technology Type]], $B10, Custom_Stock_MPG[Vehicle Type], $A10, Custom_Stock_MPG[Scenario], Input_Scenario_Modeled), SUMIFS(Vehicle_Projections[Vehicle Stock],Vehicle_Projections[Year],Calculations!AB$4, Vehicle_Projections[[ Technology Type]], $B10, Vehicle_Projections[Vehicle Type], $A10, Vehicle_Projections[Scenario], Input_Scenario_Modeled)) -> 1.439353 | AC10: =IF(Input_Scenario_Modeled="Custom", SUMIFS(Custom_Stock_MPG[Vehicle Stock],Custom_Stock_MPG[Year],Calculations!AC$4, Custom_Stock_MPG[[ Technology Type]], $B10, Custom_Stock_MPG[Vehicle Type], $A10, Custom_Stock_MPG[Scenario], Input_Scenario_Modeled), SUMIFS(Vehicle_Projections[Vehicle Stock],Vehicle_Projections[Year],Calculations!AC$4, Vehicle_Projections[[ Technology Type]], $B10, Vehicle_Projections[Vehicle Type], $A10, Vehicle_Projections[Scenario], Input_Scenario_Modeled)) -> 1.463613 | AD10: =IF(Input_Scenario_Modeled="Custom", SUMIFS(Custom_Stock_MPG[Vehicle Stock],Custom_Stock_MPG[Year],Calculations!AD$4, Custom_Stock_MPG[[ Technology Type]], $B10, Custom_Stock_MPG[Vehicle Type], $A10, Custom_Stock_MPG[Scenario], Input_Scenario_Modeled), SUMIFS(Vehicle_Projections[Vehicle Stock],Vehicle_Projections[Year],Calculations!AD$4, Vehicle_Projections[[ Technology Type]], $B10, Vehicle_Projections[Vehicle Type], $A10, Vehicle_Projections[Scenario], Input_Scenario_Modeled)) -> 1.486122 | AE10: =IF(Input_Scenario_Modeled="Custom", SUMIFS(Custom_Stock_MPG[Vehicle Stock],Custom_Stock_MPG[Year],Calculations!AE$4, Custom_Stock_MPG[[ Technology Type]], $B10, Custom_Stock_MPG[Vehicle Type], $A10, Custom_Stock_MPG[Scenario], Input_Scenario_Modeled), SUMIFS(Vehicle_Projections[Vehicle Stock],Vehicle_Projections[Year],Calculations!AE$4, Vehicle_Projections[[ Technology Type]], $B10, Vehicle_Projections[Vehicle Type], $A10, Vehicle_Projections[Scenario], Input_Scenario_Modeled)) -> 1.507143 | AF10: =IF(Input_Scenario_Modeled="Custom", SUMIFS(Custom_Stock_MPG[Vehicle Stock],Custom_Stock_MPG[Year],Calculations!AF$4, Custom_Stock_MPG[[ Technology Type]], $B10, Custom_Stock_MPG[Vehicle Type], $A10, Custom_Stock_MPG[Scenario], Input_Scenario_Modeled), SUMIFS(Vehicle_Projections[Vehicle Stock],Vehicle_Projections[Year],Calculations!AF$4, Vehicle_Projections[[ Technology Type]], $B10, Vehicle_Projections[Vehicle Type], $A10, Vehicle_Projections[Scenario], Input_Scenario_Modeled)) -> 1.527547 | AG10: =IF(Input_Scenario_Modeled="Custom", SUMIFS(Custom_Stock_MPG[Vehicle Stock],Custom_Stock_MPG[Year],Calculations!AG$4, Custom_Stock_MPG[[ Technology Type]], $B10, Custom_Stock_MPG[Vehicle Type], $A10, Custom_Stock_MPG[Scenario], Input_Scenario_Modeled), SUMIFS(Vehicle_Projections[Vehicle Stock],Vehicle_Projections[Year],Calculations!AG$4, Vehicle_Projections[[ Technology Type]], $B10, Vehicle_Projections[Vehicle Type], $A10, Vehicle_Projections[Scenario], Input_Scenario_Modeled)) -> 1.547346 | AH10: =IF(Input_Scenario_Modeled="Custom", SUMIFS(Custom_Stock_MPG[Vehicle Stock],Custom_Stock_MPG[Year],Calculations!AH$4, Custom_Stock_MPG[[ Technology Type]], $B10, Custom_Stock_MPG[Vehicle Type], $A10, Custom_Stock_MPG[Scenario], Input_Scenario_Modeled), SUMIFS(Vehicle_Projections[Vehicle Stock],Vehicle_Projections[Year],Calculations!AH$4, Vehicle_Projections[[ Technology Type]], $B10, Vehicle_Projections[Vehicle Type], $A10, Vehicle_Projections[Scenario], Input_Scenario_Modeled)) -> 1.566476 | AI10: =IF(Input_Scenario_Modeled="Custom", SUMIFS(Custom_Stock_MPG[Vehicle Stock],Custom_Stock_MPG[Year],Calculations!AI$4, Custom_Stock_MPG[[ Technology Type]], $B10, Custom_Stock_MPG[Vehicle Type], $A10, Custom_Stock_MPG[Scenario], Input_Scenario_Modeled), SUMIFS(Vehicle_Projections[Vehicle Stock],Vehicle_Projections[Year],Calculations!AI$4, Vehicle_Projections[[ Technology Type]], $B10, Vehicle_Projections[Vehicle Type], $A10, Vehicle_Projections[Scenario], Input_Scenario_Modeled)) -> 1.585167 | AJ10: =IF(Input_Scenario_Modeled="Custom", SUMIFS(Custom_Stock_MPG[Vehicle Stock],Custom_Stock_MPG[Year],Calculations!AJ$4, Custom_Stock_MPG[[ Technology Type]], $B10, Custom_Stock_MPG[Vehicle Type], $A10, Custom_Stock_MPG[Scenario], Input_Scenario_Modeled), SUMIFS(Vehicle_Projections[Vehicle Stock],Vehicle_Projections[Year],Calculations!AJ$4, Vehicle_Projections[[ Technology Type]], $B10, Vehicle_Projections[Vehicle Type], $A10, Vehicle_Projections[Scenario], Input_Scenario_Modeled)) -> 1.604149 | AK10: =IF(Input_Scenario_Modeled="Custom", SUMIFS(Custom_Stock_MPG[Vehicle Stock],Custom_Stock_MPG[Year],Calculations!AK$4, Custom_Stock_MPG[[ Technology Type]], $B10, Custom_Stock_MPG[Vehicle Type], $A10, Custom_Stock_MPG[Scenario], Input_Scenario_Modeled), SUMIFS(Vehicle_Projections[Vehicle Stock],Vehicle_Projections[Year],Calculations!AK$4, Vehicle_Projections[[ Technology Type]], $B10, Vehicle_Projections[Vehicle Type], $A10, Vehicle_Projections[Scenario], Input_Scenario_Modeled)) -> 1.623101 | AL10: =IF(Input_Scenario_Modeled="Custom", SUMIFS(Custom_Stock_MPG[Vehicle Stock],Custom_Stock_MPG[Year],Calculations!AL$4, Custom_Stock_MPG[[ Technology Type]], $B10, Custom_Stock_MPG[Vehicle Type], $A10, Custom_Stock_MPG[Scenario], Input_Scenario_Modeled), SUMIFS(Vehicle_Projections[Vehicle Stock],Vehicle_Projections[Year],Calculations!AL$4, Vehicle_Projections[[ Technology Type]], $B10, Vehicle_Projections[Vehicle Type], $A10, Vehicle_Projections[Scenario], Input_Scenario_Modeled)) -> 1.642135
A11: Passenger Cars | B11: 200 Mile Electric Vehicle | C11: Electricity | D11: Stock | E11: =IF(Input_Scenario_Modeled="Custom", SUMIFS(Custom_Stock_MPG[Vehicle Stock],Custom_Stock_MPG[Year],Calculations!E$4, Custom_Stock_MPG[[ Technology Type]], $B11, Custom_Stock_MPG[Vehicle Type], $A11, Custom_Stock_MPG[Scenario], Input_Scenario_Modeled), SUMIFS(Vehicle_Projections[Vehicle Stock],Vehicle_Projections[Year],Calculations!E$4, Vehicle_Projections[[ Technology Type]], $B11, Vehicle_Projections[Vehicle Type], $A11, Vehicle_Projections[Scenario], Input_Scenario_Modeled)) -> 0.134602 | F11: =IF(Input_Scenario_Modeled="Custom", SUMIFS(Custom_Stock_MPG[Vehicle Stock],Custom_Stock_MPG[Year],Calculations!F$4, Custom_Stock_MPG[[ Technology Type]], $B11, Custom_Stock_MPG[Vehicle Type], $A11, Custom_Stock_MPG[Scenario], Input_Scenario_Modeled), SUMIFS(Vehicle_Projections[Vehicle Stock],Vehicle_Projections[Year],Calculations!F$4, Vehicle_Projections[[ Technology Type]], $B11, Vehicle_Projections[Vehicle Type], $A11, Vehicle_Projections[Scenario], Input_Scenario_Modeled)) -> 0.1797 | G11: =IF(Input_Scenario_Modeled="Custom", SUMIFS(Custom_Stock_MPG[Vehicle Stock],Custom_Stock_MPG[Year],Calculations!G$4, Custom_Stock_MPG[[ Technology Type]], $B11, Custom_Stock_MPG[Vehicle Type], $A11, Custom_Stock_MPG[Scenario], Input_Scenario_Modeled), SUMIFS(Vehicle_Projections[Vehicle Stock],Vehicle_Projections[Year],Calculations!G$4, Vehicle_Projections[[ Technology Type]], $B11, Vehicle_Projections[Vehicle Type], $A11, Vehicle_Projections[Scenario], Input_Scenario_Modeled)) -> 0.346257 | H11: =IF(Input_Scenario_Modeled="Custom", SUMIFS(Custom_Stock_MPG[Vehicle Stock],Custom_Stock_MPG[Year],Calculations!H$4, Custom_Stock_MPG[[ Technology Type]], $B11, Custom_Stock_MPG[Vehicle Type], $A11, Custom_Stock_MPG[Scenario], Input_Scenario_Modeled), SUMIFS(Vehicle_Projections[Vehicle Stock],Vehicle_Projections[Year],Calculations!H$4, Vehicle_Projections[[ Technology Type]], $B11, Vehicle_Projections[Vehicle Type], $A11, Vehicle_Projections[Scenario], Input_Scenario_Modeled)) -> 0.556082 | I11: =IF(Input_Scenario_Modeled="Custom", SUMIFS(Custom_Stock_MPG[Vehicle Stock],Custom_Stock_MPG[Year],Calculations!I$4, Custom_Stock_MPG[[ Technology Type]], $B11, Custom_Stock_MPG[Vehicle Type], $A11, Custom_Stock_MPG[Scenario], Input_Scenario_Modeled), SUMIFS(Vehicle_Projections[Vehicle Stock],Vehicle_Projections[Year],Calculations!I$4, Vehicle_Projections[[ Technology Type]], $B11, Vehicle_Projections[Vehicle Type], $A11, Vehicle_Projections[Scenario], Input_Scenario_Modeled)) -> 0.776677 | J11: =IF(Input_Scenario_Modeled="Custom", SUMIFS(Custom_Stock_MPG[Vehicle Stock],Custom_Stock_MPG[Year],Calculations!J$4, Custom_Stock_MPG[[ Technology Type]], $B11, Custom_Stock_MPG[Vehicle Type], $A11, Custom_Stock_MPG[Scenario], Input_Scenario_Modeled), SUMIFS(Vehicle_Projections[Vehicle Stock],Vehicle_Projections[Year],Calculations!J$4, Vehicle_Projections[[ Technology Type]], $B11, Vehicle_Projections[Vehicle Type], $A11, Vehicle_Projections[Scenario], Input_Scenario_Modeled)) -> 1.003166 | K11: =IF(Input_Scenario_Modeled="Custom", SUMIFS(Custom_Stock_MPG[Vehicle Stock],Custom_Stock_MPG[Year],Calculations!K$4, Custom_Stock_MPG[[ Technology Type]], $B11, Custom_Stock_MPG[Vehicle Type], $A11, Custom_Stock_MPG[Scenario], Input_Scenario_Modeled), SUMIFS(Vehicle_Projections[Vehicle Stock],Vehicle_Projections[Year],Calculations!K$4, Vehicle_Projections[[ Technology Type]], $B11, Vehicle_Projections[Vehicle Type], $A11, Vehicle_Projections[Scenario], Input_Scenario_Modeled)) -> 1.249311 | L11: =IF(Input_Scenario_Modeled="Custom", SUMIFS(Custom_Stock_MPG[Vehicle Stock],Custom_Stock_MPG[Year],Calculations!L$4, Custom_Stock_MPG[[ Technology Type]], $B11, Custom_Stock_MPG[Vehicle Type], $A11, Custom_Stock_MPG[Scenario], Input_Scenario_Modeled), SUMIFS(Vehicle_Projections[Vehicle Stock],Vehicle_Projections[Year],Calculations!L$4, Vehicle_Projections[[ Technology Type]], $B11, Vehicle_Projections[Vehicle Type], $A11, Vehicle_Projections[Scenario], Input_Scenario_Modeled)) -> 1.523463 | M11: =IF(Input_Scenario_Modeled="Custom", SUMIFS(Custom_Stock_MPG[Vehicle Stock],Custom_Stock_MPG[Year],Calculations!M$4, Custom_Stock_MPG[[ Technology Type]], $B11, Custom_Stock_MPG[Vehicle Type], $A11, Custom_Stock_MPG[Scenario], Input_Scenario_Modeled), SUMIFS(Vehicle_Projections[Vehicle Stock],Vehicle_Projections[Year],Calculations!M$4, Vehicle_Projections[[ Technology Type]], $B11, Vehicle_Projections[Vehicle Type], $A11, Vehicle_Projections[Scenario], Input_Scenario_Modeled)) -> 1.820851 | N11: =IF(Input_Scenario_Modeled="Custom", SUMIFS(Custom_Stock_MPG[Vehicle Stock],Custom_Stock_MPG[Year],Calculations!N$4, Custom_Stock_MPG[[ Technology Type]], $B11, Custom_Stock_MPG[Vehicle Type], $A11, Custom_Stock_MPG[Scenario], Input_Scenario_Modeled), SUMIFS(Vehicle_Projections[Vehicle Stock],Vehicle_Projections[Year],Calculations!N$4, Vehicle_Projections[[ Technology Type]], $B11, Vehicle_Projections[Vehicle Type], $A11, Vehicle_Projections[Scenario], Input_Scenario_Modeled)) -> 2.114036 | O11: =IF(Input_Scenario_Modeled="Custom", SUMIFS(Custom_Stock_MPG[Vehicle Stock],Custom_Stock_MPG[Year],Calculations!O$4, Custom_Stock_MPG[[ Technology Type]], $B11, Custom_Stock_MPG[Vehicle Type], $A11, Custom_Stock_MPG[Scenario], Input_Scenario_Modeled), SUMIFS(Vehicle_Projections[Vehicle Stock],Vehicle_Projections[Year],Calculations!O$4, Vehicle_Projections[[ Technology Type]], $B11, Vehicle_Projections[Vehicle Type], $A11, Vehicle_Projections[Scenario], Input_Scenario_Modeled)) -> 2.406856 | P11: =IF(Input_Scenario_Modeled="Custom", SUMIFS(Custom_Stock_MPG[Vehicle Stock],Custom_Stock_MPG[Year],Calculations!P$4, Custom_Stock_MPG[[ Technology Type]], $B11, Custom_Stock_MPG[Vehicle Type], $A11, Custom_Stock_MPG[Scenario], Input_Scenario_Modeled), SUMIFS(Vehicle_Projections[Vehicle Stock],Vehicle_Projections[Year],Calculations!P$4, Vehicle_Projections[[ Technology Type]], $B11, Vehicle_Projections[Vehicle Type], $A11, Vehicle_Projections[Scenario], Input_Scenario_Modeled)) -> 2.700799 | Q11: =IF(Input_Scenario_Modeled="Custom", SUMIFS(Custom_Stock_MPG[Vehicle Stock],Custom_Stock_MPG[Year],Calculations!Q$4, Custom_Stock_MPG[[ Technology Type]], $B11, Custom_Stock_MPG[Vehicle Type], $A11, Custom_Stock_MPG[Scenario], Input_Scenario_Modeled), SUMIFS(Vehicle_Projections[Vehicle Stock],Vehicle_Projections[Year],Calculations!Q$4, Vehicle_Projections[[ Technology Type]], $B11, Vehicle_Projections[Vehicle Type], $A11, Vehicle_Projections[Scenario], Input_Scenario_Modeled)) -> 3.004122 | R11: =IF(Input_Scenario_Modeled="Custom", SUMIFS(Custom_Stock_MPG[Vehicle Stock],Custom_Stock_MPG[Year],Calculations!R$4, Custom_Stock_MPG[[ Technology Type]], $B11, Custom_Stock_MPG[Vehicle Type], $A11, Custom_Stock_MPG[Scenario], Input_Scenario_Modeled), SUMIFS(Vehicle_Projections[Vehicle Stock],Vehicle_Projections[Year],Calculations!R$4, Vehicle_Projections[[ Technology Type]], $B11, Vehicle_Projections[Vehicle Type], $A11, Vehicle_Projections[Scenario], Input_Scenario_Modeled)) -> 3.305918 | S11: =IF(Input_Scenario_Modeled="Custom", SUMIFS(Custom_Stock_MPG[Vehicle Stock],Custom_Stock_MPG[Year],Calculations!S$4, Custom_Stock_MPG[[ Technology Type]], $B11, Custom_Stock_MPG[Vehicle Type], $A11, Custom_Stock_MPG[Scenario], Input_Scenario_Modeled), SUMIFS(Vehicle_Projections[Vehicle Stock],Vehicle_Projections[Year],Calculations!S$4, Vehicle_Projections[[ Technology Type]], $B11, Vehicle_Projections[Vehicle Type], $A11, Vehicle_Projections[Scenario], Input_Scenario_Modeled)) -> 3.623039 | T11: =IF(Input_Scenario_Modeled="Custom", SUMIFS(Custom_Stock_MPG[Vehicle Stock],Custom_Stock_MPG[Year],Calculations!T$4, Custom_Stock_MPG[[ Technology Type]], $B11, Custom_Stock_MPG[Vehicle Type], $A11, Custom_Stock_MPG[Scenario], Input_Scenario_Modeled), SUMIFS(Vehicle_Projections[Vehicle Stock],Vehicle_Projections[Year],Calculations!T$4, Vehicle_Projections[[ Technology Type]], $B11, Vehicle_Projections[Vehicle Type], $A11, Vehicle_Projections[Scenario], Input_Scenario_Modeled)) -> 3.954119 | U11: =IF(Input_Scenario_Modeled="Custom", SUMIFS(Custom_Stock_MPG[Vehicle Stock],Custom_Stock_MPG[Year],Calculations!U$4, Custom_Stock_MPG[[ Technology Type]], $B11, Custom_Stock_MPG[Vehicle Type], $A11, Custom_Stock_MPG[Scenario], Input_Scenario_Modeled), SUMIFS(Vehicle_Projections[Vehicle Stock],Vehicle_Projections[Year],Calculations!U$4, Vehicle_Projections[[ Technology Type]], $B11, Vehicle_Projections[Vehicle Type], $A11, Vehicle_Projections[Scenario], Input_Scenario_Modeled)) -> 4.301428 | V11: =IF(Input_Scenario_Modeled="Custom", SUMIFS(Custom_Stock_MPG[Vehicle Stock],Custom_Stock_MPG[Year],Calculations!V$4, Custom_Stock_MPG[[ Technology Type]], $B11, Custom_Stock_MPG[Vehicle Type], $A11, Custom_Stock_MPG[Scenario], Input_Scenario_Modeled), SUMIFS(Vehicle_Projections[Vehicle Stock],Vehicle_Projections[Year],Calculations!V$4, Vehicle_Projections[[ Technology Type]], $B11, Vehicle_Projections[Vehicle Type], $A11, Vehicle_Projections[Scenario], Input_Scenario_Modeled)) -> 4.665046 | W11: =IF(Input_Scenario_Modeled="Custom", SUMIFS(Custom_Stock_MPG[Vehicle Stock],Custom_Stock_MPG[Year],Calculations!W$4, Custom_Stock_MPG[[ Technology Type]], $B11, Custom_Stock_MPG[Vehicle Type], $A11, Custom_Stock_MPG[Scenario], Input_Scenario_Modeled), SUMIFS(Vehicle_Projections[Vehicle Stock],Vehicle_Projections[Year],Calculations!W$4, Vehicle_Projections[[ Technology Type]], $B11, Vehicle_Projections[Vehicle Type], $A11, Vehicle_Projections[Scenario], Input_Scenario_Modeled)) -> 5.042279 | X11: =IF(Input_Scenario_Modeled="Custom", SUMIFS(Custom_Stock_MPG[Vehicle Stock],Custom_Stock_MPG[Year],Calculations!X$4, Custom_Stock_MPG[[ Technology Type]], $B11, Custom_Stock_MPG[Vehicle Type], $A11, Custom_Stock_MPG[Scenario], Input_Scenario_Modeled), SUMIFS(Vehicle_Projections[Vehicle Stock],Vehicle_Projections[Year],Calculations!X$4, Vehicle_Projections[[ Technology Type]], $B11, Vehicle_Projections[Vehicle Type], $A11, Vehicle_Projections[Scenario], Input_Scenario_Modeled)) -> 5.432127 | Y11: =IF(Input_Scenario_Modeled="Custom", SUMIFS(Custom_Stock_MPG[Vehicle Stock],Custom_Stock_MPG[Year],Calculations!Y$4, Custom_Stock_MPG[[ Technology Type]], $B11, Custom_Stock_MPG[Vehicle Type], $A11, Custom_Stock_MPG[Scenario], Input_Scenario_Modeled), SUMIFS(Vehicle_Projections[Vehicle Stock],Vehicle_Projections[Year],Calculations!Y$4, Vehicle_Projections[[ Technology Type]], $B11, Vehicle_Projections[Vehicle Type], $A11, Vehicle_Projections[Scenario], Input_Scenario_Modeled)) -> 5.833308 | Z11: =IF(Input_Scenario_Modeled="Custom", SUMIFS(Custom_Stock_MPG[Vehicle Stock],Custom_Stock_MPG[Year],Calculations!Z$4, Custom_Stock_MPG[[ Technology Type]], $B11, Custom_Stock_MPG[Vehicle Type], $A11, Custom_Stock_MPG[Scenario], Input_Scenario_Modeled), SUMIFS(Vehicle_Projections[Vehicle Stock],Vehicle_Projections[Year],Calculations!Z$4, Vehicle_Projections[[ Technology Type]], $B11, Vehicle_Projections[Vehicle Type], $A11, Vehicle_Projections[Scenario], Input_Scenario_Modeled)) -> 6.250597 | AA11: =IF(Input_Scenario_Modeled="Custom", SUMIFS(Custom_Stock_MPG[Vehicle Stock],Custom_Stock_MPG[Year],Calculations!AA$4, Custom_Stock_MPG[[ Technology Type]], $B11, Custom_Stock_MPG[Vehicle Type], $A11, Custom_Stock_MPG[Scenario], Input_Scenario_Modeled), SUMIFS(Vehicle_Projections[Vehicle Stock],Vehicle_Projections[Year],Calculations!AA$4, Vehicle_Projections[[ Technology Type]], $B11, Vehicle_Projections[Vehicle Type], $A11, Vehicle_Projections[Scenario], Input_Scenario_Modeled)) -> 6.684587 | AB11: =IF(Input_Scenario_Modeled="Custom", SUMIFS(Custom_Stock_MPG[Vehicle Stock],Custom_Stock_MPG[Year],Calculations!AB$4, Custom_Stock_MPG[[ Technology Type]], $B11, Custom_Stock_MPG[Vehicle Type], $A11, Custom_Stock_MPG[Scenario], Input_Scenario_Modeled), SUMIFS(Vehicle_Projections[Vehicle Stock],Vehicle_Projections[Year],Calculations!AB$4, Vehicle_Projections[[ Technology Type]], $B11, Vehicle_Projections[Vehicle Type], $A11, Vehicle_Projections[Scenario], Input_Scenario_Modeled)) -> 7.137063 | AC11: =IF(Input_Scenario_Modeled="Custom", SUMIFS(Custom_Stock_MPG[Vehicle Stock],Custom_Stock_MPG[Year],Calculations!AC$4, Custom_Stock_MPG[[ Technology Type]], $B11, Custom_Stock_MPG[Vehicle Type], $A11, Custom_Stock_MPG[Scenario], Input_Scenario_Modeled), SUMIFS(Vehicle_Projections[Vehicle Stock],Vehicle_Projections[Year],Calculations!AC$4, Vehicle_Projections[[ Technology Type]], $B11, Vehicle_Projections[Vehicle Type], $A11, Vehicle_Projections[Scenario], Input_Scenario_Modeled)) -> 7.591192 | AD11: =IF(Input_Scenario_Modeled="Custom", SUMIFS(Custom_Stock_MPG[Vehicle Stock],Custom_Stock_MPG[Year],Calculations!AD$4, Custom_Stock_MPG[[ Technology Type]], $B11, Custom_Stock_MPG[Vehicle Type], $A11, Custom_Stock_MPG[Scenario], Input_Scenario_Modeled), SUMIFS(Vehicle_Projections[Vehicle Stock],Vehicle_Projections[Year],Calculations!AD$4, Vehicle_Projections[[ Technology Type]], $B11, Vehicle_Projections[Vehicle Type], $A11, Vehicle_Projections[Scenario], Input_Scenario_Modeled)) -> 8.045319 | AE11: =IF(Input_Scenario_Modeled="Custom", SUMIFS(Custom_Stock_MPG[Vehicle Stock],Custom_Stock_MPG[Year],Calculations!AE$4, Custom_Stock_MPG[[ Technology Type]], $B11, Custom_Stock_MPG[Vehicle Type], $A11, Custom_Stock_MPG[Scenario], Input_Scenario_Modeled), SUMIFS(Vehicle_Projections[Vehicle Stock],Vehicle_Projections[Year],Calculations!AE$4, Vehicle_Projections[[ Technology Type]], $B11, Vehicle_Projections[Vehicle Type], $A11, Vehicle_Projections[Scenario], Input_Scenario_Modeled)) -> 8.497761 | AF11: =IF(Input_Scenario_Modeled="Custom", SUMIFS(Custom_Stock_MPG[Vehicle Stock],Custom_Stock_MPG[Year],Calculations!AF$4, Custom_Stock_MPG[[ Technology Type]], $B11, Custom_Stock_MPG[Vehicle Type], $A11, Custom_Stock_MPG[Scenario], Input_Scenario_Modeled), SUMIFS(Vehicle_Projections[Vehicle Stock],Vehicle_Projections[Year],Calculations!AF$4, Vehicle_Projections[[ Technology Type]], $B11, Vehicle_Projections[Vehicle Type], $A11, Vehicle_Projections[Scenario], Input_Scenario_Modeled)) -> 8.949951 | AG11: =IF(Input_Scenario_Modeled="Custom", SUMIFS(Custom_Stock_MPG[Vehicle Stock],Custom_Stock_MPG[Year],Calculations!AG$4, Custom_Stock_MPG[[ Technology Type]], $B11, Custom_Stock_MPG[Vehicle Type], $A11, Custom_Stock_MPG[Scenario], Input_Scenario_Modeled), SUMIFS(Vehicle_Projections[Vehicle Stock],Vehicle_Projections[Year],Calculations!AG$4, Vehicle_Projections[[ Technology Type]], $B11, Vehicle_Projections[Vehicle Type], $A11, Vehicle_Projections[Scenario], Input_Scenario_Modeled)) -> 9.400811 | AH11: =IF(Input_Scenario_Modeled="Custom", SUMIFS(Custom_Stock_MPG[Vehicle Stock],Custom_Stock_MPG[Year],Calculations!AH$4, Custom_Stock_MPG[[ Technology Type]], $B11, Custom_Stock_MPG[Vehicle Type], $A11, Custom_Stock_MPG[Scenario], Input_Scenario_Modeled), SUMIFS(Vehicle_Projections[Vehicle Stock],Vehicle_Projections[Year],Calculations!AH$4, Vehicle_Projections[[ Technology Type]], $B11, Vehicle_Projections[Vehicle Type], $A11, Vehicle_Projections[Scenario], Input_Scenario_Modeled)) -> 9.849263 | AI11: =IF(Input_Scenario_Modeled="Custom", SUMIFS(Custom_Stock_MPG[Vehicle Stock],Custom_Stock_MPG[Year],Calculations!AI$4, Custom_Stock_MPG[[ Technology Type]], $B11, Custom_Stock_MPG[Vehicle Type], $A11, Custom_Stock_MPG[Scenario], Input_Scenario_Modeled), SUMIFS(Vehicle_Projections[Vehicle Stock],Vehicle_Projections[Year],Calculations!AI$4, Vehicle_Projections[[ Technology Type]], $B11, Vehicle_Projections[Vehicle Type], $A11, Vehicle_Projections[Scenario], Input_Scenario_Modeled)) -> 10.290888 | AJ11: =IF(Input_Scenario_Modeled="Custom", SUMIFS(Custom_Stock_MPG[Vehicle Stock],Custom_Stock_MPG[Year],Calculations!AJ$4, Custom_Stock_MPG[[ Technology Type]], $B11, Custom_Stock_MPG[Vehicle Type], $A11, Custom_Stock_MPG[Scenario], Input_Scenario_Modeled), SUMIFS(Vehicle_Projections[Vehicle Stock],Vehicle_Projections[Year],Calculations!AJ$4, Vehicle_Projections[[ Technology Type]], $B11, Vehicle_Projections[Vehicle Type], $A11, Vehicle_Projections[Scenario], Input_Scenario_Modeled)) -> 10.725594 | AK11: =IF(Input_Scenario_Modeled="Custom", SUMIFS(Custom_Stock_MPG[Vehicle Stock],Custom_Stock_MPG[Year],Calculations!AK$4, Custom_Stock_MPG[[ Technology Type]], $B11, Custom_Stock_MPG[Vehicle Type], $A11, Custom_Stock_MPG[Scenario], Input_Scenario_Modeled), SUMIFS(Vehicle_Projections[Vehicle Stock],Vehicle_Projections[Year],Calculations!AK$4, Vehicle_Projections[[ Technology Type]], $B11, Vehicle_Projections[Vehicle Type], $A11, Vehicle_Projections[Scenario], Input_Scenario_Modeled)) -> 11.15103 | AL11: =IF(Input_Scenario_Modeled="Custom", SUMIFS(Custom_Stock_MPG[Vehicle Stock],Custom_Stock_MPG[Year],Calculations!AL$4, Custom_Stock_MPG[[ Technology Type]], $B11, Custom_Stock_MPG[Vehicle Type], $A11, Custom_Stock_MPG[Scenario], Input_Scenario_Modeled), SUMIFS(Vehicle_Projections[Vehicle Stock],Vehicle_Projections[Year],Calculations!AL$4, Vehicle_Projections[[ Technology Type]], $B11, Vehicle_Projections[Vehicle Type], $A11, Vehicle_Projections[Scenario], Input_Scenario_Modeled)) -> 11.564273
A12: Passenger Cars | B12: 300 Mile Electric Vehicle | C12: Electricity | D12: Stock | E12: =IF(Input_Scenario_Modeled="Custom", SUMIFS(Custom_Stock_MPG[Vehicle Stock],Custom_Stock_MPG[Year],Calculations!E$4, Custom_Stock_MPG[[ Technology Type]], $B12, Custom_Stock_MPG[Vehicle Type], $A12, Custom_Stock_MPG[Scenario], Input_Scenario_Modeled), SUMIFS(Vehicle_Projections[Vehicle Stock],Vehicle_Projections[Year],Calculations!E$4, Vehicle_Projections[[ Technology Type]], $B12, Vehicle_Projections[Vehicle Type], $A12, Vehicle_Projections[Scenario], Input_Scenario_Modeled)) -> 0.03085 | F12: =IF(Input_Scenario_Modeled="Custom", SUMIFS(Custom_Stock_MPG[Vehicle Stock],Custom_Stock_MPG[Year],Calculations!F$4, Custom_Stock_MPG[[ Technology Type]], $B12, Custom_Stock_MPG[Vehicle Type], $A12, Custom_Stock_MPG[Scenario], Input_Scenario_Modeled), SUMIFS(Vehicle_Projections[Vehicle Stock],Vehicle_Projections[Year],Calculations!F$4, Vehicle_Projections[[ Technology Type]], $B12, Vehicle_Projections[Vehicle Type], $A12, Vehicle_Projections[Scenario], Input_Scenario_Modeled)) -> 0.166121 | G12: =IF(Input_Scenario_Modeled="Custom", SUMIFS(Custom_Stock_MPG[Vehicle Stock],Custom_Stock_MPG[Year],Calculations!G$4, Custom_Stock_MPG[[ Technology Type]], $B12, Custom_Stock_MPG[Vehicle Type], $A12, Custom_Stock_MPG[Scenario], Input_Scenario_Modeled), SUMIFS(Vehicle_Projections[Vehicle Stock],Vehicle_Projections[Year],Calculations!G$4, Vehicle_Projections[[ Technology Type]], $B12, Vehicle_Projections[Vehicle Type], $A12, Vehicle_Projections[Scenario], Input_Scenario_Modeled)) -> 0.382303 | H12: =IF(Input_Scenario_Modeled="Custom", SUMIFS(Custom_Stock_MPG[Vehicle Stock],Custom_Stock_MPG[Year],Calculations!H$4, Custom_Stock_MPG[[ Technology Type]], $B12, Custom_Stock_MPG[Vehicle Type], $A12, Custom_Stock_MPG[Scenario], Input_Scenario_Modeled), SUMIFS(Vehicle_Projections[Vehicle Stock],Vehicle_Projections[Year],Calculations!H$4, Vehicle_Projections[[ Technology Type]], $B12, Vehicle_Projections[Vehicle Type], $A12, Vehicle_Projections[Scenario], Input_Scenario_Modeled)) -> 0.664127 | I12: =IF(Input_Scenario_Modeled="Custom", SUMIFS(Custom_Stock_MPG[Vehicle Stock],Custom_Stock_MPG[Year],Calculations!I$4, Custom_Stock_MPG[[ Technology Type]], $B12, Custom_Stock_MPG[Vehicle Type], $A12, Custom_Stock_MPG[Scenario], Input_Scenario_Modeled), SUMIFS(Vehicle_Projections[Vehicle Stock],Vehicle_Projections[Year],Calculations!I$4, Vehicle_Projections[[ Technology Type]], $B12, Vehicle_Projections[Vehicle Type], $A12, Vehicle_Projections[Scenario], Input_Scenario_Modeled)) -> 1.020759 | J12: =IF(Input_Scenario_Modeled="Custom", SUMIFS(Custom_Stock_MPG[Vehicle Stock],Custom_Stock_MPG[Year],Calculations!J$4, Custom_Stock_MPG[[ Technology Type]], $B12, Custom_Stock_MPG[Vehicle Type], $A12, Custom_Stock_MPG[Scenario], Input_Scenario_Modeled), SUMIFS(Vehicle_Projections[Vehicle Stock],Vehicle_Projections[Year],Calculations!J$4, Vehicle_Projections[[ Technology Type]], $B12, Vehicle_Projections[Vehicle Type], $A12, Vehicle_Projections[Scenario], Input_Scenario_Modeled)) -> 1.3958 | K12: =IF(Input_Scenario_Modeled="Custom", SUMIFS(Custom_Stock_MPG[Vehicle Stock],Custom_Stock_MPG[Year],Calculations!K$4, Custom_Stock_MPG[[ Technology Type]], $B12, Custom_Stock_MPG[Vehicle Type], $A12, Custom_Stock_MPG[Scenario], Input_Scenario_Modeled), SUMIFS(Vehicle_Projections[Vehicle Stock],Vehicle_Projections[Year],Calculations!K$4, Vehicle_Projections[[ Technology Type]], $B12, Vehicle_Projections[Vehicle Type], $A12, Vehicle_Projections[Scenario], Input_Scenario_Modeled)) -> 1.793634 | L12: =IF(Input_Scenario_Modeled="Custom", SUMIFS(Custom_Stock_MPG[Vehicle Stock],Custom_Stock_MPG[Year],Calculations!L$4, Custom_Stock_MPG[[ Technology Type]], $B12, Custom_Stock_MPG[Vehicle Type], $A12, Custom_Stock_MPG[Scenario], Input_Scenario_Modeled), SUMIFS(Vehicle_Projections[Vehicle Stock],Vehicle_Projections[Year],Calculations!L$4, Vehicle_Projections[[ Technology Type]], $B12, Vehicle_Projections[Vehicle Type], $A12, Vehicle_Projections[Scenario], Input_Scenario_Modeled)) -> 2.201296 | M12: =IF(Input_Scenario_Modeled="Custom", SUMIFS(Custom_Stock_MPG[Vehicle Stock],Custom_Stock_MPG[Year],Calculations!M$4, Custom_Stock_MPG[[ Technology Type]], $B12, Custom_Stock_MPG[Vehicle Type], $A12, Custom_Stock_MPG[Scenario], Input_Scenario_Modeled), SUMIFS(Vehicle_Projections[Vehicle Stock],Vehicle_Projections[Year],Calculations!M$4, Vehicle_Projections[[ Technology Type]], $B12, Vehicle_Projections[Vehicle Type], $A12, Vehicle_Projections[Scenario], Input_Scenario_Modeled)) -> 2.613906 | N12: =IF(Input_Scenario_Modeled="Custom", SUMIFS(Custom_Stock_MPG[Vehicle Stock],Custom_Stock_MPG[Year],Calculations!N$4, Custom_Stock_MPG[[ Technology Type]], $B12, Custom_Stock_MPG[Vehicle Type], $A12, Custom_Stock_MPG[Scenario], Input_Scenario_Modeled), SUMIFS(Vehicle_Projections[Vehicle Stock],Vehicle_Projections[Year],Calculations!N$4, Vehicle_Projections[[ Technology Type]], $B12, Vehicle_Projections[Vehicle Type], $A12, Vehicle_Projections[Scenario], Input_Scenario_Modeled)) -> 3.02542 | O12: =IF(Input_Scenario_Modeled="Custom", SUMIFS(Custom_Stock_MPG[Vehicle Stock],Custom_Stock_MPG[Year],Calculations!O$4, Custom_Stock_MPG[[ Technology Type]], $B12, Custom_Stock_MPG[Vehicle Type], $A12, Custom_Stock_MPG[Scenario], Input_Scenario_Modeled), SUMIFS(Vehicle_Projections[Vehicle Stock],Vehicle_Projections[Year],Calculations!O$4, Vehicle_Projections[[ Technology Type]], $B12, Vehicle_Projections[Vehicle Type], $A12, Vehicle_Projections[Scenario], Input_Scenario_Modeled)) -> 3.444076 | P12: =IF(Input_Scenario_Modeled="Custom", SUMIFS(Custom_Stock_MPG[Vehicle Stock],Custom_Stock_MPG[Year],Calculations!P$4, Custom_Stock_MPG[[ Technology Type]], $B12, Custom_Stock_MPG[Vehicle Type], $A12, Custom_Stock_MPG[Scenario], Input_Scenario_Modeled), SUMIFS(Vehicle_Projections[Vehicle Stock],Vehicle_Projections[Year],Calculations!P$4, Vehicle_Projections[[ Technology Type]], $B12, Vehicle_Projections[Vehicle Type], $A12, Vehicle_Projections[Scenario], Input_Scenario_Modeled)) -> 3.875262 | Q12: =IF(Input_Scenario_Modeled="Custom", SUMIFS(Custom_Stock_MPG[Vehicle Stock],Custom_Stock_MPG[Year],Calculations!Q$4, Custom_Stock_MPG[[ Technology Type]], $B12, Custom_Stock_MPG[Vehicle Type], $A12, Custom_Stock_MPG[Scenario], Input_Scenario_Modeled), SUMIFS(Vehicle_Projections[Vehicle Stock],Vehicle_Projections[Year],Calculations!Q$4, Vehicle_Projections[[ Technology Type]], $B12, Vehicle_Projections[Vehicle Type], $A12, Vehicle_Projections[Scenario], Input_Scenario_Modeled)) -> 4.321768 | R12: =IF(Input_Scenario_Modeled="Custom", SUMIFS(Custom_Stock_MPG[Vehicle Stock],Custom_Stock_MPG[Year],Calculations!R$4, Custom_Stock_MPG[[ Technology Type]], $B12, Custom_Stock_MPG[Vehicle Type], $A12, Custom_Stock_MPG[Scenario], Input_Scenario_Modeled), SUMIFS(Vehicle_Projections[Vehicle Stock],Vehicle_Projections[Year],Calculations!R$4, Vehicle_Projections[[ Technology Type]], $B12, Vehicle_Projections[Vehicle Type], $A12, Vehicle_Projections[Scenario], Input_Scenario_Modeled)) -> 4.798095 | S12: =IF(Input_Scenario_Modeled="Custom", SUMIFS(Custom_Stock_MPG[Vehicle Stock],Custom_Stock_MPG[Year],Calculations!S$4, Custom_Stock_MPG[[ Technology Type]], $B12, Custom_Stock_MPG[Vehicle Type], $A12, Custom_Stock_MPG[Scenario], Input_Scenario_Modeled), SUMIFS(Vehicle_Projections[Vehicle Stock],Vehicle_Projections[Year],Calculations!S$4, Vehicle_Projections[[ Technology Type]], $B12, Vehicle_Projections[Vehicle Type], $A12, Vehicle_Projections[Scenario], Input_Scenario_Modeled)) -> 5.305131 | T12: =IF(Input_Scenario_Modeled="Custom", SUMIFS(Custom_Stock_MPG[Vehicle Stock],Custom_Stock_MPG[Year],Calculations!T$4, Custom_Stock_MPG[[ Technology Type]], $B12, Custom_Stock_MPG[Vehicle Type], $A12, Custom_Stock_MPG[Scenario], Input_Scenario_Modeled), SUMIFS(Vehicle_Projections[Vehicle Stock],Vehicle_Projections[Year],Calculations!T$4, Vehicle_Projections[[ Technology Type]], $B12, Vehicle_Projections[Vehicle Type], $A12, Vehicle_Projections[Scenario], Input_Scenario_Modeled)) -> 5.836092 | U12: =IF(Input_Scenario_Modeled="Custom", SUMIFS(Custom_Stock_MPG[Vehicle Stock],Custom_Stock_MPG[Year],Calculations!U$4, Custom_Stock_MPG[[ Technology Type]], $B12, Custom_Stock_MPG[Vehicle Type], $A12, Custom_Stock_MPG[Scenario], Input_Scenario_Modeled), SUMIFS(Vehicle_Projections[Vehicle Stock],Vehicle_Projections[Year],Calculations!U$4, Vehicle_Projections[[ Technology Type]], $B12, Vehicle_Projections[Vehicle Type], $A12, Vehicle_Projections[Scenario], Input_Scenario_Modeled)) -> 6.386522 | V12: =IF(Input_Scenario_Modeled="Custom", SUMIFS(Custom_Stock_MPG[Vehicle Stock],Custom_Stock_MPG[Year],Calculations!V$4, Custom_Stock_MPG[[ Technology Type]], $B12, Custom_Stock_MPG[Vehicle Type], $A12, Custom_Stock_MPG[Scenario], Input_Scenario_Modeled), SUMIFS(Vehicle_Projections[Vehicle Stock],Vehicle_Projections[Year],Calculations!V$4, Vehicle_Projections[[ Technology Type]], $B12, Vehicle_Projections[Vehicle Type], $A12, Vehicle_Projections[Scenario], Input_Scenario_Modeled)) -> 6.950972 | W12: =IF(Input_Scenario_Modeled="Custom", SUMIFS(Custom_Stock_MPG[Vehicle Stock],Custom_Stock_MPG[Year],Calculations!W$4, Custom_Stock_MPG[[ Technology Type]], $B12, Custom_Stock_MPG[Vehicle Type], $A12, Custom_Stock_MPG[Scenario], Input_Scenario_Modeled), SUMIFS(Vehicle_Projections[Vehicle Stock],Vehicle_Projections[Year],Calculations!W$4, Vehicle_Projections[[ Technology Type]], $B12, Vehicle_Projections[Vehicle Type], $A12, Vehicle_Projections[Scenario], Input_Scenario_Modeled)) -> 7.521293 | X12: =IF(Input_Scenario_Modeled="Custom", SUMIFS(Custom_Stock_MPG[Vehicle Stock],Custom_Stock_MPG[Year],Calculations!X$4, Custom_Stock_MPG[[ Technology Type]], $B12, Custom_Stock_MPG[Vehicle Type], $A12, Custom_Stock_MPG[Scenario], Input_Scenario_Modeled), SUMIFS(Vehicle_Projections[Vehicle Stock],Vehicle_Projections[Year],Calculations!X$4, Vehicle_Projections[[ Technology Type]], $B12, Vehicle_Projections[Vehicle Type], $A12, Vehicle_Projections[Scenario], Input_Scenario_Modeled)) -> 8.09045 | Y12: =IF(Input_Scenario_Modeled="Custom", SUMIFS(Custom_Stock_MPG[Vehicle Stock],Custom_Stock_MPG[Year],Calculations!Y$4, Custom_Stock_MPG[[ Technology Type]], $B12, Custom_Stock_MPG[Vehicle Type], $A12, Custom_Stock_MPG[Scenario], Input_Scenario_Modeled), SUMIFS(Vehicle_Projections[Vehicle Stock],Vehicle_Projections[Year],Calculations!Y$4, Vehicle_Projections[[ Technology Type]], $B12, Vehicle_Projections[Vehicle Type], $A12, Vehicle_Projections[Scenario], Input_Scenario_Modeled)) -> 8.655412 | Z12: =IF(Input_Scenario_Modeled="Custom", SUMIFS(Custom_Stock_MPG[Vehicle Stock],Custom_Stock_MPG[Year],Calculations!Z$4, Custom_Stock_MPG[[ Technology Type]], $B12, Custom_Stock_MPG[Vehicle Type], $A12, Custom_Stock_MPG[Scenario], Input_Scenario_Modeled), SUMIFS(Vehicle_Projections[Vehicle Stock],Vehicle_Projections[Year],Calculations!Z$4, Vehicle_Projections[[ Technology Type]], $B12, Vehicle_Projections[Vehicle Type], $A12, Vehicle_Projections[Scenario], Input_Scenario_Modeled)) -> 9.212337 | AA12: =IF(Input_Scenario_Modeled="Custom", SUMIFS(Custom_Stock_MPG[Vehicle Stock],Custom_Stock_MPG[Year],Calculations!AA$4, Custom_Stock_MPG[[ Technology Type]], $B12, Custom_Stock_MPG[Vehicle Type], $A12, Custom_Stock_MPG[Scenario], Input_Scenario_Modeled), SUMIFS(Vehicle_Projections[Vehicle Stock],Vehicle_Projections[Year],Calculations!AA$4, Vehicle_Projections[[ Technology Type]], $B12, Vehicle_Projections[Vehicle Type], $A12, Vehicle_Projections[Scenario], Input_Scenario_Modeled)) -> 9.756588 | AB12: =IF(Input_Scenario_Modeled="Custom", SUMIFS(Custom_Stock_MPG[Vehicle Stock],Custom_Stock_MPG[Year],Calculations!AB$4, Custom_Stock_MPG[[ Technology Type]], $B12, Custom_Stock_MPG[Vehicle Type], $A12, Custom_Stock_MPG[Scenario], Input_Scenario_Modeled), SUMIFS(Vehicle_Projections[Vehicle Stock],Vehicle_Projections[Year],Calculations!AB$4, Vehicle_Projections[[ Technology Type]], $B12, Vehicle_Projections[Vehicle Type], $A12, Vehicle_Projections[Scenario], Input_Scenario_Modeled)) -> 10.286201 | AC12: =IF(Input_Scenario_Modeled="Custom", SUMIFS(Custom_Stock_MPG[Vehicle Stock],Custom_Stock_MPG[Year],Calculations!AC$4, Custom_Stock_MPG[[ Technology Type]], $B12, Custom_Stock_MPG[Vehicle Type], $A12, Custom_Stock_MPG[Scenario], Input_Scenario_Modeled), SUMIFS(Vehicle_Projections[Vehicle Stock],Vehicle_Projections[Year],Calculations!AC$4, Vehicle_Projections[[ Technology Type]], $B12, Vehicle_Projections[Vehicle Type], $A12, Vehicle_Projections[Scenario], Input_Scenario_Modeled)) -> 10.80535 | AD12: =IF(Input_Scenario_Modeled="Custom", SUMIFS(Custom_Stock_MPG[Vehicle Stock],Custom_Stock_MPG[Year],Calculations!AD$4, Custom_Stock_MPG[[ Technology Type]], $B12, Custom_Stock_MPG[Vehicle Type], $A12, Custom_Stock_MPG[Scenario], Input_Scenario_Modeled), SUMIFS(Vehicle_Projections[Vehicle Stock],Vehicle_Projections[Year],Calculations!AD$4, Vehicle_Projections[[ Technology Type]], $B12, Vehicle_Projections[Vehicle Type], $A12, Vehicle_Projections[Scenario], Input_Scenario_Modeled)) -> 11.314354 | AE12: =IF(Input_Scenario_Modeled="Custom", SUMIFS(Custom_Stock_MPG[Vehicle Stock],Custom_Stock_MPG[Year],Calculations!AE$4, Custom_Stock_MPG[[ Technology Type]], $B12, Custom_Stock_MPG[Vehicle Type], $A12, Custom_Stock_MPG[Scenario], Input_Scenario_Modeled), SUMIFS(Vehicle_Projections[Vehicle Stock],Vehicle_Projections[Year],Calculations!AE$4, Vehicle_Projections[[ Technology Type]], $B12, Vehicle_Projections[Vehicle Type], $A12, Vehicle_Projections[Scenario], Input_Scenario_Modeled)) -> 11.817442 | AF12: =IF(Input_Scenario_Modeled="Custom", SUMIFS(Custom_Stock_MPG[Vehicle Stock],Custom_Stock_MPG[Year],Calculations!AF$4, Custom_Stock_MPG[[ Technology Type]], $B12, Custom_Stock_MPG[Vehicle Type], $A12, Custom_Stock_MPG[Scenario], Input_Scenario_Modeled), SUMIFS(Vehicle_Projections[Vehicle Stock],Vehicle_Projections[Year],Calculations!AF$4, Vehicle_Projections[[ Technology Type]], $B12, Vehicle_Projections[Vehicle Type], $A12, Vehicle_Projections[Scenario], Input_Scenario_Modeled)) -> 12.315123 | AG12: =IF(Input_Scenario_Modeled="Custom", SUMIFS(Custom_Stock_MPG[Vehicle Stock],Custom_Stock_MPG[Year],Calculations!AG$4, Custom_Stock_MPG[[ Technology Type]], $B12, Custom_Stock_MPG[Vehicle Type], $A12, Custom_Stock_MPG[Scenario], Input_Scenario_Modeled), SUMIFS(Vehicle_Projections[Vehicle Stock],Vehicle_Projections[Year],Calculations!AG$4, Vehicle_Projections[[ Technology Type]], $B12, Vehicle_Projections[Vehicle Type], $A12, Vehicle_Projections[Scenario], Input_Scenario_Modeled)) -> 12.804375 | AH12: =IF(Input_Scenario_Modeled="Custom", SUMIFS(Custom_Stock_MPG[Vehicle Stock],Custom_Stock_MPG[Year],Calculations!AH$4, Custom_Stock_MPG[[ Technology Type]], $B12, Custom_Stock_MPG[Vehicle Type], $A12, Custom_Stock_MPG[Scenario], Input_Scenario_Modeled), SUMIFS(Vehicle_Projections[Vehicle Stock],Vehicle_Projections[Year],Calculations!AH$4, Vehicle_Projections[[ Technology Type]], $B12, Vehicle_Projections[Vehicle Type], $A12, Vehicle_Projections[Scenario], Input_Scenario_Modeled)) -> 13.284403 | AI12: =IF(Input_Scenario_Modeled="Custom", SUMIFS(Custom_Stock_MPG[Vehicle Stock],Custom_Stock_MPG[Year],Calculations!AI$4, Custom_Stock_MPG[[ Technology Type]], $B12, Custom_Stock_MPG[Vehicle Type], $A12, Custom_Stock_MPG[Scenario], Input_Scenario_Modeled), SUMIFS(Vehicle_Projections[Vehicle Stock],Vehicle_Projections[Year],Calculations!AI$4, Vehicle_Projections[[ Technology Type]], $B12, Vehicle_Projections[Vehicle Type], $A12, Vehicle_Projections[Scenario], Input_Scenario_Modeled)) -> 13.750421 | AJ12: =IF(Input_Scenario_Modeled="Custom", SUMIFS(Custom_Stock_MPG[Vehicle Stock],Custom_Stock_MPG[Year],Calculations!AJ$4, Custom_Stock_MPG[[ Technology Type]], $B12, Custom_Stock_MPG[Vehicle Type], $A12, Custom_Stock_MPG[Scenario], Input_Scenario_Modeled), SUMIFS(Vehicle_Projections[Vehicle Stock],Vehicle_Projections[Year],Calculations!AJ$4, Vehicle_Projections[[ Technology Type]], $B12, Vehicle_Projections[Vehicle Type], $A12, Vehicle_Projections[Scenario], Input_Scenario_Modeled)) -> 14.200466 | AK12: =IF(Input_Scenario_Modeled="Custom", SUMIFS(Custom_Stock_MPG[Vehicle Stock],Custom_Stock_MPG[Year],Calculations!AK$4, Custom_Stock_MPG[[ Technology Type]], $B12, Custom_Stock_MPG[Vehicle Type], $A12, Custom_Stock_MPG[Scenario], Input_Scenario_Modeled), SUMIFS(Vehicle_Projections[Vehicle Stock],Vehicle_Projections[Year],Calculations!AK$4, Vehicle_Projections[[ Technology Type]], $B12, Vehicle_Projections[Vehicle Type], $A12, Vehicle_Projections[Scenario], Input_Scenario_Modeled)) -> 14.636414 | AL12: =IF(Input_Scenario_Modeled="Custom", SUMIFS(Custom_Stock_MPG[Vehicle Stock],Custom_Stock_MPG[Year],Calculations!AL$4, Custom_Stock_MPG[[ Technology Type]], $B12, Custom_Stock_MPG[Vehicle Type], $A12, Custom_Stock_MPG[Scenario], Input_Scenario_Modeled), SUMIFS(Vehicle_Projections[Vehicle Stock],Vehicle_Projections[Year],Calculations!AL$4, Vehicle_Projections[[ Technology Type]], $B12, Vehicle_Projections[Vehicle Type], $A12, Vehicle_Projections[Scenario], Input_Scenario_Modeled)) -> 15.054511
A13: Passenger Cars | B13: Plug-in 10 Gasoline Hybrid | C13: Electricity | D13: Stock | E13: =IF(Input_Scenario_Modeled="Custom", SUMIFS(Custom_Stock_MPG[Vehicle Stock],Custom_Stock_MPG[Year],Calculations!E$4, Custom_Stock_MPG[[ Technology Type]], $B13, Custom_Stock_MPG[Vehicle Type], $A13, Custom_Stock_MPG[Scenario], Input_Scenario_Modeled), SUMIFS(Vehicle_Projections[Vehicle Stock],Vehicle_Projections[Year],Calculations!E$4, Vehicle_Projections[[ Technology Type]], $B13, Vehicle_Projections[Vehicle Type], $A13, Vehicle_Projections[Scenario], Input_Scenario_Modeled)) -> 0.166916 | F13: =IF(Input_Scenario_Modeled="Custom", SUMIFS(Custom_Stock_MPG[Vehicle Stock],Custom_Stock_MPG[Year],Calculations!F$4, Custom_Stock_MPG[[ Technology Type]], $B13, Custom_Stock_MPG[Vehicle Type], $A13, Custom_Stock_MPG[Scenario], Input_Scenario_Modeled), SUMIFS(Vehicle_Projections[Vehicle Stock],Vehicle_Projections[Year],Calculations!F$4, Vehicle_Projections[[ Technology Type]], $B13, Vehicle_Projections[Vehicle Type], $A13, Vehicle_Projections[Scenario], Input_Scenario_Modeled)) -> 0.194989 | G13: =IF(Input_Scenario_Modeled="Custom", SUMIFS(Custom_Stock_MPG[Vehicle Stock],Custom_Stock_MPG[Year],Calculations!G$4, Custom_Stock_MPG[[ Technology Type]], $B13, Custom_Stock_MPG[Vehicle Type], $A13, Custom_Stock_MPG[Scenario], Input_Scenario_Modeled), SUMIFS(Vehicle_Projections[Vehicle Stock],Vehicle_Projections[Year],Calculations!G$4, Vehicle_Projections[[ Technology Type]], $B13, Vehicle_Projections[Vehicle Type], $A13, Vehicle_Projections[Scenario], Input_Scenario_Modeled)) -> 0.225908 | H13: =IF(Input_Scenario_Modeled="Custom", SUMIFS(Custom_Stock_MPG[Vehicle Stock],Custom_Stock_MPG[Year],Calculations!H$4, Custom_Stock_MPG[[ Technology Type]], $B13, Custom_Stock_MPG[Vehicle Type], $A13, Custom_Stock_MPG[Scenario], Input_Scenario_Modeled), SUMIFS(Vehicle_Projections[Vehicle Stock],Vehicle_Projections[Year],Calculations!H$4, Vehicle_Projections[[ Technology Type]], $B13, Vehicle_Projections[Vehicle Type], $A13, Vehicle_Projections[Scenario], Input_Scenario_Modeled)) -> 0.261096 | I13: =IF(Input_Scenario_Modeled="Custom", SUMIFS(Custom_Stock_MPG[Vehicle Stock],Custom_Stock_MPG[Year],Calculations!I$4, Custom_Stock_MPG[[ Technology Type]], $B13, Custom_Stock_MPG[Vehicle Type], $A13, Custom_Stock_MPG[Scenario], Input_Scenario_Modeled), SUMIFS(Vehicle_Projections[Vehicle Stock],Vehicle_Projections[Year],Calculations!I$4, Vehicle_Projections[[ Technology Type]], $B13, Vehicle_Projections[Vehicle Type], $A13, Vehicle_Projections[Scenario], Input_Scenario_Modeled)) -> 0.311727 | J13: =IF(Input_Scenario_Modeled="Custom", SUMIFS(Custom_Stock_MPG[Vehicle Stock],Custom_Stock_MPG[Year],Calculations!J$4, Custom_Stock_MPG[[ Technology Type]], $B13, Custom_Stock_MPG[Vehicle Type], $A13, Custom_Stock_MPG[Scenario], Input_Scenario_Modeled), SUMIFS(Vehicle_Projections[Vehicle Stock],Vehicle_Projections[Year],Calculations!J$4, Vehicle_Projections[[ Technology Type]], $B13, Vehicle_Projections[Vehicle Type], $A13, Vehicle_Projections[Scenario], Input_Scenario_Modeled)) -> 0.370292 | K13: =IF(Input_Scenario_Modeled="Custom", SUMIFS(Custom_Stock_MPG[Vehicle Stock],Custom_Stock_MPG[Year],Calculations!K$4, Custom_Stock_MPG[[ Technology Type]], $B13, Custom_Stock_MPG[Vehicle Type], $A13, Custom_Stock_MPG[Scenario], Input_Scenario_Modeled), SUMIFS(Vehicle_Projections[Vehicle Stock],Vehicle_Projections[Year],Calculations!K$4, Vehicle_Projections[[ Technology Type]], $B13, Vehicle_Projections[Vehicle Type], $A13, Vehicle_Projections[Scenario], Input_Scenario_Modeled)) -> 0.432608 | L13: =IF(Input_Scenario_Modeled="Custom", SUMIFS(Custom_Stock_MPG[Vehicle Stock],Custom_Stock_MPG[Year],Calculations!L$4, Custom_Stock_MPG[[ Technology Type]], $B13, Custom_Stock_MPG[Vehicle Type], $A13, Custom_Stock_MPG[Scenario], Input_Scenario_Modeled), SUMIFS(Vehicle_Projections[Vehicle Stock],Vehicle_Projections[Year],Calculations!L$4, Vehicle_Projections[[ Technology Type]], $B13, Vehicle_Projections[Vehicle Type], $A13, Vehicle_Projections[Scenario], Input_Scenario_Modeled)) -> 0.498413 | M13: =IF(Input_Scenario_Modeled="Custom", SUMIFS(Custom_Stock_MPG[Vehicle Stock],Custom_Stock_MPG[Year],Calculations!M$4, Custom_Stock_MPG[[ Technology Type]], $B13, Custom_Stock_MPG[Vehicle Type], $A13, Custom_Stock_MPG[Scenario], Input_Scenario_Modeled), SUMIFS(Vehicle_Projections[Vehicle Stock],Vehicle_Projections[Year],Calculations!M$4, Vehicle_Projections[[ Technology Type]], $B13, Vehicle_Projections[Vehicle Type], $A13, Vehicle_Projections[Scenario], Input_Scenario_Modeled)) -> 0.568857 | N13: =IF(Input_Scenario_Modeled="Custom", SUMIFS(Custom_Stock_MPG[Vehicle Stock],Custom_Stock_MPG[Year],Calculations!N$4, Custom_Stock_MPG[[ Technology Type]], $B13, Custom_Stock_MPG[Vehicle Type], $A13, Custom_Stock_MPG[Scenario], Input_Scenario_Modeled), SUMIFS(Vehicle_Projections[Vehicle Stock],Vehicle_Projections[Year],Calculations!N$4, Vehicle_Projections[[ Technology Type]], $B13, Vehicle_Projections[Vehicle Type], $A13, Vehicle_Projections[Scenario], Input_Scenario_Modeled)) -> 0.63855 | O13: =IF(Input_Scenario_Modeled="Custom", SUMIFS(Custom_Stock_MPG[Vehicle Stock],Custom_Stock_MPG[Year],Calculations!O$4, Custom_Stock_MPG[[ Technology Type]], $B13, Custom_Stock_MPG[Vehicle Type], $A13, Custom_Stock_MPG[Scenario], Input_Scenario_Modeled), SUMIFS(Vehicle_Projections[Vehicle Stock],Vehicle_Projections[Year],Calculations!O$4, Vehicle_Projections[[ Technology Type]], $B13, Vehicle_Projections[Vehicle Type], $A13, Vehicle_Projections[Scenario], Input_Scenario_Modeled)) -> 0.707152 | P13: =IF(Input_Scenario_Modeled="Custom", SUMIFS(Custom_Stock_MPG[Vehicle Stock],Custom_Stock_MPG[Year],Calculations!P$4, Custom_Stock_MPG[[ Technology Type]], $B13, Custom_Stock_MPG[Vehicle Type], $A13, Custom_Stock_MPG[Scenario], Input_Scenario_Modeled), SUMIFS(Vehicle_Projections[Vehicle Stock],Vehicle_Projections[Year],Calculations!P$4, Vehicle_Projections[[ Technology Type]], $B13, Vehicle_Projections[Vehicle Type], $A13, Vehicle_Projections[Scenario], Input_Scenario_Modeled)) -> 0.773436 | Q13: =IF(Input_Scenario_Modeled="Custom", SUMIFS(Custom_Stock_MPG[Vehicle Stock],Custom_Stock_MPG[Year],Calculations!Q$4, Custom_Stock_MPG[[ Technology Type]], $B13, Custom_Stock_MPG[Vehicle Type], $A13, Custom_Stock_MPG[Scenario], Input_Scenario_Modeled), SUMIFS(Vehicle_Projections[Vehicle Stock],Vehicle_Projections[Year],Calculations!Q$4, Vehicle_Projections[[ Technology Type]], $B13, Vehicle_Projections[Vehicle Type], $A13, Vehicle_Projections[Scenario], Input_Scenario_Modeled)) -> 0.836693 | R13: =IF(Input_Scenario_Modeled="Custom", SUMIFS(Custom_Stock_MPG[Vehicle Stock],Custom_Stock_MPG[Year],Calculations!R$4, Custom_Stock_MPG[[ Technology Type]], $B13, Custom_Stock_MPG[Vehicle Type], $A13, Custom_Stock_MPG[Scenario], Input_Scenario_Modeled), SUMIFS(Vehicle_Projections[Vehicle Stock],Vehicle_Projections[Year],Calculations!R$4, Vehicle_Projections[[ Technology Type]], $B13, Vehicle_Projections[Vehicle Type], $A13, Vehicle_Projections[Scenario], Input_Scenario_Modeled)) -> 0.896938 | S13: =IF(Input_Scenario_Modeled="Custom", SUMIFS(Custom_Stock_MPG[Vehicle Stock],Custom_Stock_MPG[Year],Calculations!S$4, Custom_Stock_MPG[[ Technology Type]], $B13, Custom_Stock_MPG[Vehicle Type], $A13, Custom_Stock_MPG[Scenario], Input_Scenario_Modeled), SUMIFS(Vehicle_Projections[Vehicle Stock],Vehicle_Projections[Year],Calculations!S$4, Vehicle_Projections[[ Technology Type]], $B13, Vehicle_Projections[Vehicle Type], $A13, Vehicle_Projections[Scenario], Input_Scenario_Modeled)) -> 0.954492 | T13: =IF(Input_Scenario_Modeled="Custom", SUMIFS(Custom_Stock_MPG[Vehicle Stock],Custom_Stock_MPG[Year],Calculations!T$4, Custom_Stock_MPG[[ Technology Type]], $B13, Custom_Stock_MPG[Vehicle Type], $A13, Custom_Stock_MPG[Scenario], Input_Scenario_Modeled), SUMIFS(Vehicle_Projections[Vehicle Stock],Vehicle_Projections[Year],Calculations!T$4, Vehicle_Projections[[ Technology Type]], $B13, Vehicle_Projections[Vehicle Type], $A13, Vehicle_Projections[Scenario], Input_Scenario_Modeled)) -> 1.009833 | U13: =IF(Input_Scenario_Modeled="Custom", SUMIFS(Custom_Stock_MPG[Vehicle Stock],Custom_Stock_MPG[Year],Calculations!U$4, Custom_Stock_MPG[[ Technology Type]], $B13, Custom_Stock_MPG[Vehicle Type], $A13, Custom_Stock_MPG[Scenario], Input_Scenario_Modeled), SUMIFS(Vehicle_Projections[Vehicle Stock],Vehicle_Projections[Year],Calculations!U$4, Vehicle_Projections[[ Technology Type]], $B13, Vehicle_Projections[Vehicle Type], $A13, Vehicle_Projections[Scenario], Input_Scenario_Modeled)) -> 1.062623 | V13: =IF(Input_Scenario_Modeled="Custom", SUMIFS(Custom_Stock_MPG[Vehicle Stock],Custom_Stock_MPG[Year],Calculations!V$4, Custom_Stock_MPG[[ Technology Type]], $B13, Custom_Stock_MPG[Vehicle Type], $A13, Custom_Stock_MPG[Scenario], Input_Scenario_Modeled), SUMIFS(Vehicle_Projections[Vehicle Stock],Vehicle_Projections[Year],Calculations!V$4, Vehicle_Projections[[ Technology Type]], $B13, Vehicle_Projections[Vehicle Type], $A13, Vehicle_Projections[Scenario], Input_Scenario_Modeled)) -> 1.113106 | W13: =IF(Input_Scenario_Modeled="Custom", SUMIFS(Custom_Stock_MPG[Vehicle Stock],Custom_Stock_MPG[Year],Calculations!W$4, Custom_Stock_MPG[[ Technology Type]], $B13, Custom_Stock_MPG[Vehicle Type], $A13, Custom_Stock_MPG[Scenario], Input_Scenario_Modeled), SUMIFS(Vehicle_Projections[Vehicle Stock],Vehicle_Projections[Year],Calculations!W$4, Vehicle_Projections[[ Technology Type]], $B13, Vehicle_Projections[Vehicle Type], $A13, Vehicle_Projections[Scenario], Input_Scenario_Modeled)) -> 1.160533 | X13: =IF(Input_Scenario_Modeled="Custom", SUMIFS(Custom_Stock_MPG[Vehicle Stock],Custom_Stock_MPG[Year],Calculations!X$4, Custom_Stock_MPG[[ Technology Type]], $B13, Custom_Stock_MPG[Vehicle Type], $A13, Custom_Stock_MPG[Scenario], Input_Scenario_Modeled), SUMIFS(Vehicle_Projections[Vehicle Stock],Vehicle_Projections[Year],Calculations!X$4, Vehicle_Projections[[ Technology Type]], $B13, Vehicle_Projections[Vehicle Type], $A13, Vehicle_Projections[Scenario], Input_Scenario_Modeled)) -> 1.205132 | Y13: =IF(Input_Scenario_Modeled="Custom", SUMIFS(Custom_Stock_MPG[Vehicle Stock],Custom_Stock_MPG[Year],Calculations!Y$4, Custom_Stock_MPG[[ Technology Type]], $B13, Custom_Stock_MPG[Vehicle Type], $A13, Custom_Stock_MPG[Scenario], Input_Scenario_Modeled), SUMIFS(Vehicle_Projections[Vehicle Stock],Vehicle_Projections[Year],Calculations!Y$4, Vehicle_Projections[[ Technology Type]], $B13, Vehicle_Projections[Vehicle Type], $A13, Vehicle_Projections[Scenario], Input_Scenario_Modeled)) -> 1.246999 | Z13: =IF(Input_Scenario_Modeled="Custom", SUMIFS(Custom_Stock_MPG[Vehicle Stock],Custom_Stock_MPG[Year],Calculations!Z$4, Custom_Stock_MPG[[ Technology Type]], $B13, Custom_Stock_MPG[Vehicle Type], $A13, Custom_Stock_MPG[Scenario], Input_Scenario_Modeled), SUMIFS(Vehicle_Projections[Vehicle Stock],Vehicle_Projections[Year],Calculations!Z$4, Vehicle_Projections[[ Technology Type]], $B13, Vehicle_Projections[Vehicle Type], $A13, Vehicle_Projections[Scenario], Input_Scenario_Modeled)) -> 1.284144 | AA13: =IF(Input_Scenario_Modeled="Custom", SUMIFS(Custom_Stock_MPG[Vehicle Stock],Custom_Stock_MPG[Year],Calculations!AA$4, Custom_Stock_MPG[[ Technology Type]], $B13, Custom_Stock_MPG[Vehicle Type], $A13, Custom_Stock_MPG[Scenario], Input_Scenario_Modeled), SUMIFS(Vehicle_Projections[Vehicle Stock],Vehicle_Projections[Year],Calculations!AA$4, Vehicle_Projections[[ Technology Type]], $B13, Vehicle_Projections[Vehicle Type], $A13, Vehicle_Projections[Scenario], Input_Scenario_Modeled)) -> 1.318235 | AB13: =IF(Input_Scenario_Modeled="Custom", SUMIFS(Custom_Stock_MPG[Vehicle Stock],Custom_Stock_MPG[Year],Calculations!AB$4, Custom_Stock_MPG[[ Technology Type]], $B13, Custom_Stock_MPG[Vehicle Type], $A13, Custom_Stock_MPG[Scenario], Input_Scenario_Modeled), SUMIFS(Vehicle_Projections[Vehicle Stock],Vehicle_Projections[Year],Calculations!AB$4, Vehicle_Projections[[ Technology Type]], $B13, Vehicle_Projections[Vehicle Type], $A13, Vehicle_Projections[Scenario], Input_Scenario_Modeled)) -> 1.349379 | AC13: =IF(Input_Scenario_Modeled="Custom", SUMIFS(Custom_Stock_MPG[Vehicle Stock],Custom_Stock_MPG[Year],Calculations!AC$4, Custom_Stock_MPG[[ Technology Type]], $B13, Custom_Stock_MPG[Vehicle Type], $A13, Custom_Stock_MPG[Scenario], Input_Scenario_Modeled), SUMIFS(Vehicle_Projections[Vehicle Stock],Vehicle_Projections[Year],Calculations!AC$4, Vehicle_Projections[[ Technology Type]], $B13, Vehicle_Projections[Vehicle Type], $A13, Vehicle_Projections[Scenario], Input_Scenario_Modeled)) -> 1.377192 | AD13: =IF(Input_Scenario_Modeled="Custom", SUMIFS(Custom_Stock_MPG[Vehicle Stock],Custom_Stock_MPG[Year],Calculations!AD$4, Custom_Stock_MPG[[ Technology Type]], $B13, Custom_Stock_MPG[Vehicle Type], $A13, Custom_Stock_MPG[Scenario], Input_Scenario_Modeled), SUMIFS(Vehicle_Projections[Vehicle Stock],Vehicle_Projections[Year],Calculations!AD$4, Vehicle_Projections[[ Technology Type]], $B13, Vehicle_Projections[Vehicle Type], $A13, Vehicle_Projections[Scenario], Input_Scenario_Modeled)) -> 1.401889 | AE13: =IF(Input_Scenario_Modeled="Custom", SUMIFS(Custom_Stock_MPG[Vehicle Stock],Custom_Stock_MPG[Year],Calculations!AE$4, Custom_Stock_MPG[[ Technology Type]], $B13, Custom_Stock_MPG[Vehicle Type], $A13, Custom_Stock_MPG[Scenario], Input_Scenario_Modeled), SUMIFS(Vehicle_Projections[Vehicle Stock],Vehicle_Projections[Year],Calculations!AE$4, Vehicle_Projections[[ Technology Type]], $B13, Vehicle_Projections[Vehicle Type], $A13, Vehicle_Projections[Scenario], Input_Scenario_Modeled)) -> 1.423813 | AF13: =IF(Input_Scenario_Modeled="Custom", SUMIFS(Custom_Stock_MPG[Vehicle Stock],Custom_Stock_MPG[Year],Calculations!AF$4, Custom_Stock_MPG[[ Technology Type]], $B13, Custom_Stock_MPG[Vehicle Type], $A13, Custom_Stock_MPG[Scenario], Input_Scenario_Modeled), SUMIFS(Vehicle_Projections[Vehicle Stock],Vehicle_Projections[Year],Calculations!AF$4, Vehicle_Projections[[ Technology Type]], $B13, Vehicle_Projections[Vehicle Type], $A13, Vehicle_Projections[Scenario], Input_Scenario_Modeled)) -> 1.443546 | AG13: =IF(Input_Scenario_Modeled="Custom", SUMIFS(Custom_Stock_MPG[Vehicle Stock],Custom_Stock_MPG[Year],Calculations!AG$4, Custom_Stock_MPG[[ Technology Type]], $B13, Custom_Stock_MPG[Vehicle Type], $A13, Custom_Stock_MPG[Scenario], Input_Scenario_Modeled), SUMIFS(Vehicle_Projections[Vehicle Stock],Vehicle_Projections[Year],Calculations!AG$4, Vehicle_Projections[[ Technology Type]], $B13, Vehicle_Projections[Vehicle Type], $A13, Vehicle_Projections[Scenario], Input_Scenario_Modeled)) -> 1.46105 | AH13: =IF(Input_Scenario_Modeled="Custom", SUMIFS(Custom_Stock_MPG[Vehicle Stock],Custom_Stock_MPG[Year],Calculations!AH$4, Custom_Stock_MPG[[ Technology Type]], $B13, Custom_Stock_MPG[Vehicle Type], $A13, Custom_Stock_MPG[Scenario], Input_Scenario_Modeled), SUMIFS(Vehicle_Projections[Vehicle Stock],Vehicle_Projections[Year],Calculations!AH$4, Vehicle_Projections[[ Technology Type]], $B13, Vehicle_Projections[Vehicle Type], $A13, Vehicle_Projections[Scenario], Input_Scenario_Modeled)) -> 1.476283 | AI13: =IF(Input_Scenario_Modeled="Custom", SUMIFS(Custom_Stock_MPG[Vehicle Stock],Custom_Stock_MPG[Year],Calculations!AI$4, Custom_Stock_MPG[[ Technology Type]], $B13, Custom_Stock_MPG[Vehicle Type], $A13, Custom_Stock_MPG[Scenario], Input_Scenario_Modeled), SUMIFS(Vehicle_Projections[Vehicle Stock],Vehicle_Projections[Year],Calculations!AI$4, Vehicle_Projections[[ Technology Type]], $B13, Vehicle_Projections[Vehicle Type], $A13, Vehicle_Projections[Scenario], Input_Scenario_Modeled)) -> 1.489851 | AJ13: =IF(Input_Scenario_Modeled="Custom", SUMIFS(Custom_Stock_MPG[Vehicle Stock],Custom_Stock_MPG[Year],Calculations!AJ$4, Custom_Stock_MPG[[ Technology Type]], $B13, Custom_Stock_MPG[Vehicle Type], $A13, Custom_Stock_MPG[Scenario], Input_Scenario_Modeled), SUMIFS(Vehicle_Projections[Vehicle Stock],Vehicle_Projections[Year],Calculations!AJ$4, Vehicle_Projections[[ Technology Type]], $B13, Vehicle_Projections[Vehicle Type], $A13, Vehicle_Projections[Scenario], Input_Scenario_Modeled)) -> 1.502311 | AK13: =IF(Input_Scenario_Modeled="Custom", SUMIFS(Custom_Stock_MPG[Vehicle Stock],Custom_Stock_MPG[Year],Calculations!AK$4, Custom_Stock_MPG[[ Technology Type]], $B13, Custom_Stock_MPG[Vehicle Type], $A13, Custom_Stock_MPG[Scenario], Input_Scenario_Modeled), SUMIFS(Vehicle_Projections[Vehicle Stock],Vehicle_Projections[Year],Calculations!AK$4, Vehicle_Projections[[ Technology Type]], $B13, Vehicle_Projections[Vehicle Type], $A13, Vehicle_Projections[Scenario], Input_Scenario_Modeled)) -> 1.513587 | AL13: =IF(Input_Scenario_Modeled="Custom", SUMIFS(Custom_Stock_MPG[Vehicle Stock],Custom_Stock_MPG[Year],Calculations!AL$4, Custom_Stock_MPG[[ Technology Type]], $B13, Custom_Stock_MPG[Vehicle Type], $A13, Custom_Stock_MPG[Scenario], Input_Scenario_Modeled), SUMIFS(Vehicle_Projections[Vehicle Stock],Vehicle_Projections[Year],Calculations!AL$4, Vehicle_Projections[[ Technology Type]], $B13, Vehicle_Projections[Vehicle Type], $A13, Vehicle_Projections[Scenario], Input_Scenario_Modeled)) -> 1.524038
A14: Passenger Cars | B14: Plug-in 40 Gasoline Hybrid | C14: Electricity | D14: Stock | E14: =IF(Input_Scenario_Modeled="Custom", SUMIFS(Custom_Stock_MPG[Vehicle Stock],Custom_Stock_MPG[Year],Calculations!E$4, Custom_Stock_MPG[[ Technology Type]], $B14, Custom_Stock_MPG[Vehicle Type], $A14, Custom_Stock_MPG[Scenario], Input_Scenario_Modeled), SUMIFS(Vehicle_Projections[Vehicle Stock],Vehicle_Projections[Year],Calculations!E$4, Vehicle_Projections[[ Technology Type]], $B14, Vehicle_Projections[Vehicle Type], $A14, Vehicle_Projections[Scenario], Input_Scenario_Modeled)) -> 0.157999 | F14: =IF(Input_Scenario_Modeled="Custom", SUMIFS(Custom_Stock_MPG[Vehicle Stock],Custom_Stock_MPG[Year],Calculations!F$4, Custom_Stock_MPG[[ Technology Type]], $B14, Custom_Stock_MPG[Vehicle Type], $A14, Custom_Stock_MPG[Scenario], Input_Scenario_Modeled), SUMIFS(Vehicle_Projections[Vehicle Stock],Vehicle_Projections[Year],Calculations!F$4, Vehicle_Projections[[ Technology Type]], $B14, Vehicle_Projections[Vehicle Type], $A14, Vehicle_Projections[Scenario], Input_Scenario_Modeled)) -> 0.264722 | G14: =IF(Input_Scenario_Modeled="Custom", SUMIFS(Custom_Stock_MPG[Vehicle Stock],Custom_Stock_MPG[Year],Calculations!G$4, Custom_Stock_MPG[[ Technology Type]], $B14, Custom_Stock_MPG[Vehicle Type], $A14, Custom_Stock_MPG[Scenario], Input_Scenario_Modeled), SUMIFS(Vehicle_Projections[Vehicle Stock],Vehicle_Projections[Year],Calculations!G$4, Vehicle_Projections[[ Technology Type]], $B14, Vehicle_Projections[Vehicle Type], $A14, Vehicle_Projections[Scenario], Input_Scenario_Modeled)) -> 0.376923 | H14: =IF(Input_Scenario_Modeled="Custom", SUMIFS(Custom_Stock_MPG[Vehicle Stock],Custom_Stock_MPG[Year],Calculations!H$4, Custom_Stock_MPG[[ Technology Type]], $B14, Custom_Stock_MPG[Vehicle Type], $A14, Custom_Stock_MPG[Scenario], Input_Scenario_Modeled), SUMIFS(Vehicle_Projections[Vehicle Stock],Vehicle_Projections[Year],Calculations!H$4, Vehicle_Projections[[ Technology Type]], $B14, Vehicle_Projections[Vehicle Type], $A14, Vehicle_Projections[Scenario], Input_Scenario_Modeled)) -> 0.493695 | I14: =IF(Input_Scenario_Modeled="Custom", SUMIFS(Custom_Stock_MPG[Vehicle Stock],Custom_Stock_MPG[Year],Calculations!I$4, Custom_Stock_MPG[[ Technology Type]], $B14, Custom_Stock_MPG[Vehicle Type], $A14, Custom_Stock_MPG[Scenario], Input_Scenario_Modeled), SUMIFS(Vehicle_Projections[Vehicle Stock],Vehicle_Projections[Year],Calculations!I$4, Vehicle_Projections[[ Technology Type]], $B14, Vehicle_Projections[Vehicle Type], $A14, Vehicle_Projections[Scenario], Input_Scenario_Modeled)) -> 0.601855 | J14: =IF(Input_Scenario_Modeled="Custom", SUMIFS(Custom_Stock_MPG[Vehicle Stock],Custom_Stock_MPG[Year],Calculations!J$4, Custom_Stock_MPG[[ Technology Type]], $B14, Custom_Stock_MPG[Vehicle Type], $A14, Custom_Stock_MPG[Scenario], Input_Scenario_Modeled), SUMIFS(Vehicle_Projections[Vehicle Stock],Vehicle_Projections[Year],Calculations!J$4, Vehicle_Projections[[ Technology Type]], $B14, Vehicle_Projections[Vehicle Type], $A14, Vehicle_Projections[Scenario], Input_Scenario_Modeled)) -> 0.699711 | K14: =IF(Input_Scenario_Modeled="Custom", SUMIFS(Custom_Stock_MPG[Vehicle Stock],Custom_Stock_MPG[Year],Calculations!K$4, Custom_Stock_MPG[[ Technology Type]], $B14, Custom_Stock_MPG[Vehicle Type], $A14, Custom_Stock_MPG[Scenario], Input_Scenario_Modeled), SUMIFS(Vehicle_Projections[Vehicle Stock],Vehicle_Projections[Year],Calculations!K$4, Vehicle_Projections[[ Technology Type]], $B14, Vehicle_Projections[Vehicle Type], $A14, Vehicle_Projections[Scenario], Input_Scenario_Modeled)) -> 0.792376 | L14: =IF(Input_Scenario_Modeled="Custom", SUMIFS(Custom_Stock_MPG[Vehicle Stock],Custom_Stock_MPG[Year],Calculations!L$4, Custom_Stock_MPG[[ Technology Type]], $B14, Custom_Stock_MPG[Vehicle Type], $A14, Custom_Stock_MPG[Scenario], Input_Scenario_Modeled), SUMIFS(Vehicle_Projections[Vehicle Stock],Vehicle_Projections[Year],Calculations!L$4, Vehicle_Projections[[ Technology Type]], $B14, Vehicle_Projections[Vehicle Type], $A14, Vehicle_Projections[Scenario], Input_Scenario_Modeled)) -> 0.88319 | M14: =IF(Input_Scenario_Modeled="Custom", SUMIFS(Custom_Stock_MPG[Vehicle Stock],Custom_Stock_MPG[Year],Calculations!M$4, Custom_Stock_MPG[[ Technology Type]], $B14, Custom_Stock_MPG[Vehicle Type], $A14, Custom_Stock_MPG[Scenario], Input_Scenario_Modeled), SUMIFS(Vehicle_Projections[Vehicle Stock],Vehicle_Projections[Year],Calculations!M$4, Vehicle_Projections[[ Technology Type]], $B14, Vehicle_Projections[Vehicle Type], $A14, Vehicle_Projections[Scenario], Input_Scenario_Modeled)) -> 0.969069 | N14: =IF(Input_Scenario_Modeled="Custom", SUMIFS(Custom_Stock_MPG[Vehicle Stock],Custom_Stock_MPG[Year],Calculations!N$4, Custom_Stock_MPG[[ Technology Type]], $B14, Custom_Stock_MPG[Vehicle Type], $A14, Custom_Stock_MPG[Scenario], Input_Scenario_Modeled), SUMIFS(Vehicle_Projections[Vehicle Stock],Vehicle_Projections[Year],Calculations!N$4, Vehicle_Projections[[ Technology Type]], $B14, Vehicle_Projections[Vehicle Type], $A14, Vehicle_Projections[Scenario], Input_Scenario_Modeled)) -> 1.054026 | O14: =IF(Input_Scenario_Modeled="Custom", SUMIFS(Custom_Stock_MPG[Vehicle Stock],Custom_Stock_MPG[Year],Calculations!O$4, Custom_Stock_MPG[[ Technology Type]], $B14, Custom_Stock_MPG[Vehicle Type], $A14, Custom_Stock_MPG[Scenario], Input_Scenario_Modeled), SUMIFS(Vehicle_Projections[Vehicle Stock],Vehicle_Projections[Year],Calculations!O$4, Vehicle_Projections[[ Technology Type]], $B14, Vehicle_Projections[Vehicle Type], $A14, Vehicle_Projections[Scenario], Input_Scenario_Modeled)) -> 1.140216 | P14: =IF(Input_Scenario_Modeled="Custom", SUMIFS(Custom_Stock_MPG[Vehicle Stock],Custom_Stock_MPG[Year],Calculations!P$4, Custom_Stock_MPG[[ Technology Type]], $B14, Custom_Stock_MPG[Vehicle Type], $A14, Custom_Stock_MPG[Scenario], Input_Scenario_Modeled), SUMIFS(Vehicle_Projections[Vehicle Stock],Vehicle_Projections[Year],Calculations!P$4, Vehicle_Projections[[ Technology Type]], $B14, Vehicle_Projections[Vehicle Type], $A14, Vehicle_Projections[Scenario], Input_Scenario_Modeled)) -> 1.227819 | Q14: =IF(Input_Scenario_Modeled="Custom", SUMIFS(Custom_Stock_MPG[Vehicle Stock],Custom_Stock_MPG[Year],Calculations!Q$4, Custom_Stock_MPG[[ Technology Type]], $B14, Custom_Stock_MPG[Vehicle Type], $A14, Custom_Stock_MPG[Scenario], Input_Scenario_Modeled), SUMIFS(Vehicle_Projections[Vehicle Stock],Vehicle_Projections[Year],Calculations!Q$4, Vehicle_Projections[[ Technology Type]], $B14, Vehicle_Projections[Vehicle Type], $A14, Vehicle_Projections[Scenario], Input_Scenario_Modeled)) -> 1.322794 | R14: =IF(Input_Scenario_Modeled="Custom", SUMIFS(Custom_Stock_MPG[Vehicle Stock],Custom_Stock_MPG[Year],Calculations!R$4, Custom_Stock_MPG[[ Technology Type]], $B14, Custom_Stock_MPG[Vehicle Type], $A14, Custom_Stock_MPG[Scenario], Input_Scenario_Modeled), SUMIFS(Vehicle_Projections[Vehicle Stock],Vehicle_Projections[Year],Calculations!R$4, Vehicle_Projections[[ Technology Type]], $B14, Vehicle_Projections[Vehicle Type], $A14, Vehicle_Projections[Scenario], Input_Scenario_Modeled)) -> 1.419631 | S14: =IF(Input_Scenario_Modeled="Custom", SUMIFS(Custom_Stock_MPG[Vehicle Stock],Custom_Stock_MPG[Year],Calculations!S$4, Custom_Stock_MPG[[ Technology Type]], $B14, Custom_Stock_MPG[Vehicle Type], $A14, Custom_Stock_MPG[Scenario], Input_Scenario_Modeled), SUMIFS(Vehicle_Projections[Vehicle Stock],Vehicle_Projections[Year],Calculations!S$4, Vehicle_Projections[[ Technology Type]], $B14, Vehicle_Projections[Vehicle Type], $A14, Vehicle_Projections[Scenario], Input_Scenario_Modeled)) -> 1.517574 | T14: =IF(Input_Scenario_Modeled="Custom", SUMIFS(Custom_Stock_MPG[Vehicle Stock],Custom_Stock_MPG[Year],Calculations!T$4, Custom_Stock_MPG[[ Technology Type]], $B14, Custom_Stock_MPG[Vehicle Type], $A14, Custom_Stock_MPG[Scenario], Input_Scenario_Modeled), SUMIFS(Vehicle_Projections[Vehicle Stock],Vehicle_Projections[Year],Calculations!T$4, Vehicle_Projections[[ Technology Type]], $B14, Vehicle_Projections[Vehicle Type], $A14, Vehicle_Projections[Scenario], Input_Scenario_Modeled)) -> 1.615744 | U14: =IF(Input_Scenario_Modeled="Custom", SUMIFS(Custom_Stock_MPG[Vehicle Stock],Custom_Stock_MPG[Year],Calculations!U$4, Custom_Stock_MPG[[ Technology Type]], $B14, Custom_Stock_MPG[Vehicle Type], $A14, Custom_Stock_MPG[Scenario], Input_Scenario_Modeled), SUMIFS(Vehicle_Projections[Vehicle Stock],Vehicle_Projections[Year],Calculations!U$4, Vehicle_Projections[[ Technology Type]], $B14, Vehicle_Projections[Vehicle Type], $A14, Vehicle_Projections[Scenario], Input_Scenario_Modeled)) -> 1.712074 | V14: =IF(Input_Scenario_Modeled="Custom", SUMIFS(Custom_Stock_MPG[Vehicle Stock],Custom_Stock_MPG[Year],Calculations!V$4, Custom_Stock_MPG[[ Technology Type]], $B14, Custom_Stock_MPG[Vehicle Type], $A14, Custom_Stock_MPG[Scenario], Input_Scenario_Modeled), SUMIFS(Vehicle_Projections[Vehicle Stock],Vehicle_Projections[Year],Calculations!V$4, Vehicle_Projections[[ Technology Type]], $B14, Vehicle_Projections[Vehicle Type], $A14, Vehicle_Projections[Scenario], Input_Scenario_Modeled)) -> 1.807249 | W14: =IF(Input_Scenario_Modeled="Custom", SUMIFS(Custom_Stock_MPG[Vehicle Stock],Custom_Stock_MPG[Year],Calculations!W$4, Custom_Stock_MPG[[ Technology Type]], $B14, Custom_Stock_MPG[Vehicle Type], $A14, Custom_Stock_MPG[Scenario], Input_Scenario_Modeled), SUMIFS(Vehicle_Projections[Vehicle Stock],Vehicle_Projections[Year],Calculations!W$4, Vehicle_Projections[[ Technology Type]], $B14, Vehicle_Projections[Vehicle Type], $A14, Vehicle_Projections[Scenario], Input_Scenario_Modeled)) -> 1.900304 | X14: =IF(Input_Scenario_Modeled="Custom", SUMIFS(Custom_Stock_MPG[Vehicle Stock],Custom_Stock_MPG[Year],Calculations!X$4, Custom_Stock_MPG[[ Technology Type]], $B14, Custom_Stock_MPG[Vehicle Type], $A14, Custom_Stock_MPG[Scenario], Input_Scenario_Modeled), SUMIFS(Vehicle_Projections[Vehicle Stock],Vehicle_Projections[Year],Calculations!X$4, Vehicle_Projections[[ Technology Type]], $B14, Vehicle_Projections[Vehicle Type], $A14, Vehicle_Projections[Scenario], Input_Scenario_Modeled)) -> 1.993035 | Y14: =IF(Input_Scenario_Modeled="Custom", SUMIFS(Custom_Stock_MPG[Vehicle Stock],Custom_Stock_MPG[Year],Calculations!Y$4, Custom_Stock_MPG[[ Technology Type]], $B14, Custom_Stock_MPG[Vehicle Type], $A14, Custom_Stock_MPG[Scenario], Input_Scenario_Modeled), SUMIFS(Vehicle_Projections[Vehicle Stock],Vehicle_Projections[Year],Calculations!Y$4, Vehicle_Projections[[ Technology Type]], $B14, Vehicle_Projections[Vehicle Type], $A14, Vehicle_Projections[Scenario], Input_Scenario_Modeled)) -> 2.085741 | Z14: =IF(Input_Scenario_Modeled="Custom", SUMIFS(Custom_Stock_MPG[Vehicle Stock],Custom_Stock_MPG[Year],Calculations!Z$4, Custom_Stock_MPG[[ Technology Type]], $B14, Custom_Stock_MPG[Vehicle Type], $A14, Custom_Stock_MPG[Scenario], Input_Scenario_Modeled), SUMIFS(Vehicle_Projections[Vehicle Stock],Vehicle_Projections[Year],Calculations!Z$4, Vehicle_Projections[[ Technology Type]], $B14, Vehicle_Projections[Vehicle Type], $A14, Vehicle_Projections[Scenario], Input_Scenario_Modeled)) -> 2.179276 | AA14: =IF(Input_Scenario_Modeled="Custom", SUMIFS(Custom_Stock_MPG[Vehicle Stock],Custom_Stock_MPG[Year],Calculations!AA$4, Custom_Stock_MPG[[ Technology Type]], $B14, Custom_Stock_MPG[Vehicle Type], $A14, Custom_Stock_MPG[Scenario], Input_Scenario_Modeled), SUMIFS(Vehicle_Projections[Vehicle Stock],Vehicle_Projections[Year],Calculations!AA$4, Vehicle_Projections[[ Technology Type]], $B14, Vehicle_Projections[Vehicle Type], $A14, Vehicle_Projections[Scenario], Input_Scenario_Modeled)) -> 2.273645 | AB14: =IF(Input_Scenario_Modeled="Custom", SUMIFS(Custom_Stock_MPG[Vehicle Stock],Custom_Stock_MPG[Year],Calculations!AB$4, Custom_Stock_MPG[[ Technology Type]], $B14, Custom_Stock_MPG[Vehicle Type], $A14, Custom_Stock_MPG[Scenario], Input_Scenario_Modeled), SUMIFS(Vehicle_Projections[Vehicle Stock],Vehicle_Projections[Year],Calculations!AB$4, Vehicle_Projections[[ Technology Type]], $B14, Vehicle_Projections[Vehicle Type], $A14, Vehicle_Projections[Scenario], Input_Scenario_Modeled)) -> 2.369363 | AC14: =IF(Input_Scenario_Modeled="Custom", SUMIFS(Custom_Stock_MPG[Vehicle Stock],Custom_Stock_MPG[Year],Calculations!AC$4, Custom_Stock_MPG[[ Technology Type]], $B14, Custom_Stock_MPG[Vehicle Type], $A14, Custom_Stock_MPG[Scenario], Input_Scenario_Modeled), SUMIFS(Vehicle_Projections[Vehicle Stock],Vehicle_Projections[Year],Calculations!AC$4, Vehicle_Projections[[ Technology Type]], $B14, Vehicle_Projections[Vehicle Type], $A14, Vehicle_Projections[Scenario], Input_Scenario_Modeled)) -> 2.463845 | AD14: =IF(Input_Scenario_Modeled="Custom", SUMIFS(Custom_Stock_MPG[Vehicle Stock],Custom_Stock_MPG[Year],Calculations!AD$4, Custom_Stock_MPG[[ Technology Type]], $B14, Custom_Stock_MPG[Vehicle Type], $A14, Custom_Stock_MPG[Scenario], Input_Scenario_Modeled), SUMIFS(Vehicle_Projections[Vehicle Stock],Vehicle_Projections[Year],Calculations!AD$4, Vehicle_Projections[[ Technology Type]], $B14, Vehicle_Projections[Vehicle Type], $A14, Vehicle_Projections[Scenario], Input_Scenario_Modeled)) -> 2.557444 | AE14: =IF(Input_Scenario_Modeled="Custom", SUMIFS(Custom_Stock_MPG[Vehicle Stock],Custom_Stock_MPG[Year],Calculations!AE$4, Custom_Stock_MPG[[ Technology Type]], $B14, Custom_Stock_MPG[Vehicle Type], $A14, Custom_Stock_MPG[Scenario], Input_Scenario_Modeled), SUMIFS(Vehicle_Projections[Vehicle Stock],Vehicle_Projections[Year],Calculations!AE$4, Vehicle_Projections[[ Technology Type]], $B14, Vehicle_Projections[Vehicle Type], $A14, Vehicle_Projections[Scenario], Input_Scenario_Modeled)) -> 2.649464 | AF14: =IF(Input_Scenario_Modeled="Custom", SUMIFS(Custom_Stock_MPG[Vehicle Stock],Custom_Stock_MPG[Year],Calculations!AF$4, Custom_Stock_MPG[[ Technology Type]], $B14, Custom_Stock_MPG[Vehicle Type], $A14, Custom_Stock_MPG[Scenario], Input_Scenario_Modeled), SUMIFS(Vehicle_Projections[Vehicle Stock],Vehicle_Projections[Year],Calculations!AF$4, Vehicle_Projections[[ Technology Type]], $B14, Vehicle_Projections[Vehicle Type], $A14, Vehicle_Projections[Scenario], Input_Scenario_Modeled)) -> 2.739549 | AG14: =IF(Input_Scenario_Modeled="Custom", SUMIFS(Custom_Stock_MPG[Vehicle Stock],Custom_Stock_MPG[Year],Calculations!AG$4, Custom_Stock_MPG[[ Technology Type]], $B14, Custom_Stock_MPG[Vehicle Type], $A14, Custom_Stock_MPG[Scenario], Input_Scenario_Modeled), SUMIFS(Vehicle_Projections[Vehicle Stock],Vehicle_Projections[Year],Calculations!AG$4, Vehicle_Projections[[ Technology Type]], $B14, Vehicle_Projections[Vehicle Type], $A14, Vehicle_Projections[Scenario], Input_Scenario_Modeled)) -> 2.826879 | AH14: =IF(Input_Scenario_Modeled="Custom", SUMIFS(Custom_Stock_MPG[Vehicle Stock],Custom_Stock_MPG[Year],Calculations!AH$4, Custom_Stock_MPG[[ Technology Type]], $B14, Custom_Stock_MPG[Vehicle Type], $A14, Custom_Stock_MPG[Scenario], Input_Scenario_Modeled), SUMIFS(Vehicle_Projections[Vehicle Stock],Vehicle_Projections[Year],Calculations!AH$4, Vehicle_Projections[[ Technology Type]], $B14, Vehicle_Projections[Vehicle Type], $A14, Vehicle_Projections[Scenario], Input_Scenario_Modeled)) -> 2.910505 | AI14: =IF(Input_Scenario_Modeled="Custom", SUMIFS(Custom_Stock_MPG[Vehicle Stock],Custom_Stock_MPG[Year],Calculations!AI$4, Custom_Stock_MPG[[ Technology Type]], $B14, Custom_Stock_MPG[Vehicle Type], $A14, Custom_Stock_MPG[Scenario], Input_Scenario_Modeled), SUMIFS(Vehicle_Projections[Vehicle Stock],Vehicle_Projections[Year],Calculations!AI$4, Vehicle_Projections[[ Technology Type]], $B14, Vehicle_Projections[Vehicle Type], $A14, Vehicle_Projections[Scenario], Input_Scenario_Modeled)) -> 2.989496 | AJ14: =IF(Input_Scenario_Modeled="Custom", SUMIFS(Custom_Stock_MPG[Vehicle Stock],Custom_Stock_MPG[Year],Calculations!AJ$4, Custom_Stock_MPG[[ Technology Type]], $B14, Custom_Stock_MPG[Vehicle Type], $A14, Custom_Stock_MPG[Scenario], Input_Scenario_Modeled), SUMIFS(Vehicle_Projections[Vehicle Stock],Vehicle_Projections[Year],Calculations!AJ$4, Vehicle_Projections[[ Technology Type]], $B14, Vehicle_Projections[Vehicle Type], $A14, Vehicle_Projections[Scenario], Input_Scenario_Modeled)) -> 3.064125 | AK14: =IF(Input_Scenario_Modeled="Custom", SUMIFS(Custom_Stock_MPG[Vehicle Stock],Custom_Stock_MPG[Year],Calculations!AK$4, Custom_Stock_MPG[[ Technology Type]], $B14, Custom_Stock_MPG[Vehicle Type], $A14, Custom_Stock_MPG[Scenario], Input_Scenario_Modeled), SUMIFS(Vehicle_Projections[Vehicle Stock],Vehicle_Projections[Year],Calculations!AK$4, Vehicle_Projections[[ Technology Type]], $B14, Vehicle_Projections[Vehicle Type], $A14, Vehicle_Projections[Scenario], Input_Scenario_Modeled)) -> 3.133706 | AL14: =IF(Input_Scenario_Modeled="Custom", SUMIFS(Custom_Stock_MPG[Vehicle Stock],Custom_Stock_MPG[Year],Calculations!AL$4, Custom_Stock_MPG[[ Technology Type]], $B14, Custom_Stock_MPG[Vehicle Type], $A14, Custom_Stock_MPG[Scenario], Input_Scenario_Modeled), SUMIFS(Vehicle_Projections[Vehicle Stock],Vehicle_Projections[Year],Calculations!AL$4, Vehicle_Projections[[ Technology Type]], $B14, Vehicle_Projections[Vehicle Type], $A14, Vehicle_Projections[Scenario], Input_Scenario_Modeled)) -> 3.198083
A15: Light Trucks | B15: Gasoline ICE Vehicles | C15: Gasoline | D15: Stock | E15: =IF(Input_Scenario_Modeled="Custom", SUMIFS(Custom_Stock_MPG[Vehicle Stock],Custom_Stock_MPG[Year],Calculations!E$4, Custom_Stock_MPG[[ Technology Type]], $B15, Custom_Stock_MPG[Vehicle Type], $A15, Custom_Stock_MPG[Scenario], Input_Scenario_Modeled), SUMIFS(Vehicle_Projections[Vehicle Stock],Vehicle_Projections[Year],Calculations!E$4, Vehicle_Projections[[ Technology Type]], $B15, Vehicle_Projections[Vehicle Type], $A15, Vehicle_Projections[Scenario], Input_Scenario_Modeled)) -> 105.139511 | F15: =IF(Input_Scenario_Modeled="Custom", SUMIFS(Custom_Stock_MPG[Vehicle Stock],Custom_Stock_MPG[Year],Calculations!F$4, Custom_Stock_MPG[[ Technology Type]], $B15, Custom_Stock_MPG[Vehicle Type], $A15, Custom_Stock_MPG[Scenario], Input_Scenario_Modeled), SUMIFS(Vehicle_Projections[Vehicle Stock],Vehicle_Projections[Year],Calculations!F$4, Vehicle_Projections[[ Technology Type]], $B15, Vehicle_Projections[Vehicle Type], $A15, Vehicle_Projections[Scenario], Input_Scenario_Modeled)) -> 105.253494 | G15: =IF(Input_Scenario_Modeled="Custom", SUMIFS(Custom_Stock_MPG[Vehicle Stock],Custom_Stock_MPG[Year],Calculations!G$4, Custom_Stock_MPG[[ Technology Type]], $B15, Custom_Stock_MPG[Vehicle Type], $A15, Custom_Stock_MPG[Scenario], Input_Scenario_Modeled), SUMIFS(Vehicle_Projections[Vehicle Stock],Vehicle_Projections[Year],Calculations!G$4, Vehicle_Projections[[ Technology Type]], $B15, Vehicle_Projections[Vehicle Type], $A15, Vehicle_Projections[Scenario], Input_Scenario_Modeled)) -> 105.412773 | H15: =IF(Input_Scenario_Modeled="Custom", SUMIFS(Custom_Stock_MPG[Vehicle Stock],Custom_Stock_MPG[Year],Calculations!H$4, Custom_Stock_MPG[[ Technology Type]], $B15, Custom_Stock_MPG[Vehicle Type], $A15, Custom_Stock_MPG[Scenario], Input_Scenario_Modeled), SUMIFS(Vehicle_Projections[Vehicle Stock],Vehicle_Projections[Year],Calculations!H$4, Vehicle_Projections[[ Technology Type]], $B15, Vehicle_Projections[Vehicle Type], $A15, Vehicle_Projections[Scenario], Input_Scenario_Modeled)) -> 105.558807 | I15: =IF(Input_Scenario_Modeled="Custom", SUMIFS(Custom_Stock_MPG[Vehicle Stock],Custom_Stock_MPG[Year],Calculations!I$4, Custom_Stock_MPG[[ Technology Type]], $B15, Custom_Stock_MPG[Vehicle Type], $A15, Custom_Stock_MPG[Scenario], Input_Scenario_Modeled), SUMIFS(Vehicle_Projections[Vehicle Stock],Vehicle_Projections[Year],Calculations!I$4, Vehicle_Projections[[ Technology Type]], $B15, Vehicle_Projections[Vehicle Type], $A15, Vehicle_Projections[Scenario], Input_Scenario_Modeled)) -> 105.757477 | J15: =IF(Input_Scenario_Modeled="Custom", SUMIFS(Custom_Stock_MPG[Vehicle Stock],Custom_Stock_MPG[Year],Calculations!J$4, Custom_Stock_MPG[[ Technology Type]], $B15, Custom_Stock_MPG[Vehicle Type], $A15, Custom_Stock_MPG[Scenario], Input_Scenario_Modeled), SUMIFS(Vehicle_Projections[Vehicle Stock],Vehicle_Projections[Year],Calculations!J$4, Vehicle_Projections[[ Technology Type]], $B15, Vehicle_Projections[Vehicle Type], $A15, Vehicle_Projections[Scenario], Input_Scenario_Modeled)) -> 105.866913 | K15: =IF(Input_Scenario_Modeled="Custom", SUMIFS(Custom_Stock_MPG[Vehicle Stock],Custom_Stock_MPG[Year],Calculations!K$4, Custom_Stock_MPG[[ Technology Type]], $B15, Custom_Stock_MPG[Vehicle Type], $A15, Custom_Stock_MPG[Scenario], Input_Scenario_Modeled), SUMIFS(Vehicle_Projections[Vehicle Stock],Vehicle_Projections[Year],Calculations!K$4, Vehicle_Projections[[ Technology Type]], $B15, Vehicle_Projections[Vehicle Type], $A15, Vehicle_Projections[Scenario], Input_Scenario_Modeled)) -> 106.054359 | L15: =IF(Input_Scenario_Modeled="Custom", SUMIFS(Custom_Stock_MPG[Vehicle Stock],Custom_Stock_MPG[Year],Calculations!L$4, Custom_Stock_MPG[[ Technology Type]], $B15, Custom_Stock_MPG[Vehicle Type], $A15, Custom_Stock_MPG[Scenario], Input_Scenario_Modeled), SUMIFS(Vehicle_Projections[Vehicle Stock],Vehicle_Projections[Year],Calculations!L$4, Vehicle_Projections[[ Technology Type]], $B15, Vehicle_Projections[Vehicle Type], $A15, Vehicle_Projections[Scenario], Input_Scenario_Modeled)) -> 106.251083 | M15: =IF(Input_Scenario_Modeled="Custom", SUMIFS(Custom_Stock_MPG[Vehicle Stock],Custom_Stock_MPG[Year],Calculations!M$4, Custom_Stock_MPG[[ Technology Type]], $B15, Custom_Stock_MPG[Vehicle Type], $A15, Custom_Stock_MPG[Scenario], Input_Scenario_Modeled), SUMIFS(Vehicle_Projections[Vehicle Stock],Vehicle_Projections[Year],Calculations!M$4, Vehicle_Projections[[ Technology Type]], $B15, Vehicle_Projections[Vehicle Type], $A15, Vehicle_Projections[Scenario], Input_Scenario_Modeled)) -> 106.377174 | N15: =IF(Input_Scenario_Modeled="Custom", SUMIFS(Custom_Stock_MPG[Vehicle Stock],Custom_Stock_MPG[Year],Calculations!N$4, Custom_Stock_MPG[[ Technology Type]], $B15, Custom_Stock_MPG[Vehicle Type], $A15, Custom_Stock_MPG[Scenario], Input_Scenario_Modeled), SUMIFS(Vehicle_Projections[Vehicle Stock],Vehicle_Projections[Year],Calculations!N$4, Vehicle_Projections[[ Technology Type]], $B15, Vehicle_Projections[Vehicle Type], $A15, Vehicle_Projections[Scenario], Input_Scenario_Modeled)) -> 106.488991 | O15: =IF(Input_Scenario_Modeled="Custom", SUMIFS(Custom_Stock_MPG[Vehicle Stock],Custom_Stock_MPG[Year],Calculations!O$4, Custom_Stock_MPG[[ Technology Type]], $B15, Custom_Stock_MPG[Vehicle Type], $A15, Custom_Stock_MPG[Scenario], Input_Scenario_Modeled), SUMIFS(Vehicle_Projections[Vehicle Stock],Vehicle_Projections[Year],Calculations!O$4, Vehicle_Projections[[ Technology Type]], $B15, Vehicle_Projections[Vehicle Type], $A15, Vehicle_Projections[Scenario], Input_Scenario_Modeled)) -> 106.440292 | P15: =IF(Input_Scenario_Modeled="Custom", SUMIFS(Custom_Stock_MPG[Vehicle Stock],Custom_Stock_MPG[Year],Calculations!P$4, Custom_Stock_MPG[[ Technology Type]], $B15, Custom_Stock_MPG[Vehicle Type], $A15, Custom_Stock_MPG[Scenario], Input_Scenario_Modeled), SUMIFS(Vehicle_Projections[Vehicle Stock],Vehicle_Projections[Year],Calculations!P$4, Vehicle_Projections[[ Technology Type]], $B15, Vehicle_Projections[Vehicle Type], $A15, Vehicle_Projections[Scenario], Input_Scenario_Modeled)) -> 106.242165 | Q15: =IF(Input_Scenario_Modeled="Custom", SUMIFS(Custom_Stock_MPG[Vehicle Stock],Custom_Stock_MPG[Year],Calculations!Q$4, Custom_Stock_MPG[[ Technology Type]], $B15, Custom_Stock_MPG[Vehicle Type], $A15, Custom_Stock_MPG[Scenario], Input_Scenario_Modeled), SUMIFS(Vehicle_Projections[Vehicle Stock],Vehicle_Projections[Year],Calculations!Q$4, Vehicle_Projections[[ Technology Type]], $B15, Vehicle_Projections[Vehicle Type], $A15, Vehicle_Projections[Scenario], Input_Scenario_Modeled)) -> 105.843925 | R15: =IF(Input_Scenario_Modeled="Custom", SUMIFS(Custom_Stock_MPG[Vehicle Stock],Custom_Stock_MPG[Year],Calculations!R$4, Custom_Stock_MPG[[ Technology Type]], $B15, Custom_Stock_MPG[Vehicle Type], $A15, Custom_Stock_MPG[Scenario], Input_Scenario_Modeled), SUMIFS(Vehicle_Projections[Vehicle Stock],Vehicle_Projections[Year],Calculations!R$4, Vehicle_Projections[[ Technology Type]], $B15, Vehicle_Projections[Vehicle Type], $A15, Vehicle_Projections[Scenario], Input_Scenario_Modeled)) -> 105.324333 | S15: =IF(Input_Scenario_Modeled="Custom", SUMIFS(Custom_Stock_MPG[Vehicle Stock],Custom_Stock_MPG[Year],Calculations!S$4, Custom_Stock_MPG[[ Technology Type]], $B15, Custom_Stock_MPG[Vehicle Type], $A15, Custom_Stock_MPG[Scenario], Input_Scenario_Modeled), SUMIFS(Vehicle_Projections[Vehicle Stock],Vehicle_Projections[Year],Calculations!S$4, Vehicle_Projections[[ Technology Type]], $B15, Vehicle_Projections[Vehicle Type], $A15, Vehicle_Projections[Scenario], Input_Scenario_Modeled)) -> 104.768936 | T15: =IF(Input_Scenario_Modeled="Custom", SUMIFS(Custom_Stock_MPG[Vehicle Stock],Custom_Stock_MPG[Year],Calculations!T$4, Custom_Stock_MPG[[ Technology Type]], $B15, Custom_Stock_MPG[Vehicle Type], $A15, Custom_Stock_MPG[Scenario], Input_Scenario_Modeled), SUMIFS(Vehicle_Projections[Vehicle Stock],Vehicle_Projections[Year],Calculations!T$4, Vehicle_Projections[[ Technology Type]], $B15, Vehicle_Projections[Vehicle Type], $A15, Vehicle_Projections[Scenario], Input_Scenario_Modeled)) -> 104.129883 | U15: =IF(Input_Scenario_Modeled="Custom", SUMIFS(Custom_Stock_MPG[Vehicle Stock],Custom_Stock_MPG[Year],Calculations!U$4, Custom_Stock_MPG[[ Technology Type]], $B15, Custom_Stock_MPG[Vehicle Type], $A15, Custom_Stock_MPG[Scenario], Input_Scenario_Modeled), SUMIFS(Vehicle_Projections[Vehicle Stock],Vehicle_Projections[Year],Calculations!U$4, Vehicle_Projections[[ Technology Type]], $B15, Vehicle_Projections[Vehicle Type], $A15, Vehicle_Projections[Scenario], Input_Scenario_Modeled)) -> 103.454353 | V15: =IF(Input_Scenario_Modeled="Custom", SUMIFS(Custom_Stock_MPG[Vehicle Stock],Custom_Stock_MPG[Year],Calculations!V$4, Custom_Stock_MPG[[ Technology Type]], $B15, Custom_Stock_MPG[Vehicle Type], $A15, Custom_Stock_MPG[Scenario], Input_Scenario_Modeled), SUMIFS(Vehicle_Projections[Vehicle Stock],Vehicle_Projections[Year],Calculations!V$4, Vehicle_Projections[[ Technology Type]], $B15, Vehicle_Projections[Vehicle Type], $A15, Vehicle_Projections[Scenario], Input_Scenario_Modeled)) -> 102.716255 | W15: =IF(Input_Scenario_Modeled="Custom", SUMIFS(Custom_Stock_MPG[Vehicle Stock],Custom_Stock_MPG[Year],Calculations!W$4, Custom_Stock_MPG[[ Technology Type]], $B15, Custom_Stock_MPG[Vehicle Type], $A15, Custom_Stock_MPG[Scenario], Input_Scenario_Modeled), SUMIFS(Vehicle_Projections[Vehicle Stock],Vehicle_Projections[Year],Calculations!W$4, Vehicle_Projections[[ Technology Type]], $B15, Vehicle_Projections[Vehicle Type], $A15, Vehicle_Projections[Scenario], Input_Scenario_Modeled)) -> 101.894173 | X15: =IF(Input_Scenario_Modeled="Custom", SUMIFS(Custom_Stock_MPG[Vehicle Stock],Custom_Stock_MPG[Year],Calculations!X$4, Custom_Stock_MPG[[ Technology Type]], $B15, Custom_Stock_MPG[Vehicle Type], $A15, Custom_Stock_MPG[Scenario], Input_Scenario_Modeled), SUMIFS(Vehicle_Projections[Vehicle Stock],Vehicle_Projections[Year],Calculations!X$4, Vehicle_Projections[[ Technology Type]], $B15, Vehicle_Projections[Vehicle Type], $A15, Vehicle_Projections[Scenario], Input_Scenario_Modeled)) -> 100.996574 | Y15: =IF(Input_Scenario_Modeled="Custom", SUMIFS(Custom_Stock_MPG[Vehicle Stock],Custom_Stock_MPG[Year],Calculations!Y$4, Custom_Stock_MPG[[ Technology Type]], $B15, Custom_Stock_MPG[Vehicle Type], $A15, Custom_Stock_MPG[Scenario], Input_Scenario_Modeled), SUMIFS(Vehicle_Projections[Vehicle Stock],Vehicle_Projections[Year],Calculations!Y$4, Vehicle_Projections[[ Technology Type]], $B15, Vehicle_Projections[Vehicle Type], $A15, Vehicle_Projections[Scenario], Input_Scenario_Modeled)) -> 100.068527 | Z15: =IF(Input_Scenario_Modeled="Custom", SUMIFS(Custom_Stock_MPG[Vehicle Stock],Custom_Stock_MPG[Year],Calculations!Z$4, Custom_Stock_MPG[[ Technology Type]], $B15, Custom_Stock_MPG[Vehicle Type], $A15, Custom_Stock_MPG[Scenario], Input_Scenario_Modeled), SUMIFS(Vehicle_Projections[Vehicle Stock],Vehicle_Projections[Year],Calculations!Z$4, Vehicle_Projections[[ Technology Type]], $B15, Vehicle_Projections[Vehicle Type], $A15, Vehicle_Projections[Scenario], Input_Scenario_Modeled)) -> 99.134407 | AA15: =IF(Input_Scenario_Modeled="Custom", SUMIFS(Custom_Stock_MPG[Vehicle Stock],Custom_Stock_MPG[Year],Calculations!AA$4, Custom_Stock_MPG[[ Technology Type]], $B15, Custom_Stock_MPG[Vehicle Type], $A15, Custom_Stock_MPG[Scenario], Input_Scenario_Modeled), SUMIFS(Vehicle_Projections[Vehicle Stock],Vehicle_Projections[Year],Calculations!AA$4, Vehicle_Projections[[ Technology Type]], $B15, Vehicle_Projections[Vehicle Type], $A15, Vehicle_Projections[Scenario], Input_Scenario_Modeled)) -> 98.203331 | AB15: =IF(Input_Scenario_Modeled="Custom", SUMIFS(Custom_Stock_MPG[Vehicle Stock],Custom_Stock_MPG[Year],Calculations!AB$4, Custom_Stock_MPG[[ Technology Type]], $B15, Custom_Stock_MPG[Vehicle Type], $A15, Custom_Stock_MPG[Scenario], Input_Scenario_Modeled), SUMIFS(Vehicle_Projections[Vehicle Stock],Vehicle_Projections[Year],Calculations!AB$4, Vehicle_Projections[[ Technology Type]], $B15, Vehicle_Projections[Vehicle Type], $A15, Vehicle_Projections[Scenario], Input_Scenario_Modeled)) -> 97.292336 | AC15: =IF(Input_Scenario_Modeled="Custom", SUMIFS(Custom_Stock_MPG[Vehicle Stock],Custom_Stock_MPG[Year],Calculations!AC$4, Custom_Stock_MPG[[ Technology Type]], $B15, Custom_Stock_MPG[Vehicle Type], $A15, Custom_Stock_MPG[Scenario], Input_Scenario_Modeled), SUMIFS(Vehicle_Projections[Vehicle Stock],Vehicle_Projections[Year],Calculations!AC$4, Vehicle_Projections[[ Technology Type]], $B15, Vehicle_Projections[Vehicle Type], $A15, Vehicle_Projections[Scenario], Input_Scenario_Modeled)) -> 96.440727 | AD15: =IF(Input_Scenario_Modeled="Custom", SUMIFS(Custom_Stock_MPG[Vehicle Stock],Custom_Stock_MPG[Year],Calculations!AD$4, Custom_Stock_MPG[[ Technology Type]], $B15, Custom_Stock_MPG[Vehicle Type], $A15, Custom_Stock_MPG[Scenario], Input_Scenario_Modeled), SUMIFS(Vehicle_Projections[Vehicle Stock],Vehicle_Projections[Year],Calculations!AD$4, Vehicle_Projections[[ Technology Type]], $B15, Vehicle_Projections[Vehicle Type], $A15, Vehicle_Projections[Scenario], Input_Scenario_Modeled)) -> 95.633842 | AE15: =IF(Input_Scenario_Modeled="Custom", SUMIFS(Custom_Stock_MPG[Vehicle Stock],Custom_Stock_MPG[Year],Calculations!AE$4, Custom_Stock_MPG[[ Technology Type]], $B15, Custom_Stock_MPG[Vehicle Type], $A15, Custom_Stock_MPG[Scenario], Input_Scenario_Modeled), SUMIFS(Vehicle_Projections[Vehicle Stock],Vehicle_Projections[Year],Calculations!AE$4, Vehicle_Projections[[ Technology Type]], $B15, Vehicle_Projections[Vehicle Type], $A15, Vehicle_Projections[Scenario], Input_Scenario_Modeled)) -> 94.880959 | AF15: =IF(Input_Scenario_Modeled="Custom", SUMIFS(Custom_Stock_MPG[Vehicle Stock],Custom_Stock_MPG[Year],Calculations!AF$4, Custom_Stock_MPG[[ Technology Type]], $B15, Custom_Stock_MPG[Vehicle Type], $A15, Custom_Stock_MPG[Scenario], Input_Scenario_Modeled), SUMIFS(Vehicle_Projections[Vehicle Stock],Vehicle_Projections[Year],Calculations!AF$4, Vehicle_Projections[[ Technology Type]], $B15, Vehicle_Projections[Vehicle Type], $A15, Vehicle_Projections[Scenario], Input_Scenario_Modeled)) -> 94.20182 | AG15: =IF(Input_Scenario_Modeled="Custom", SUMIFS(Custom_Stock_MPG[Vehicle Stock],Custom_Stock_MPG[Year],Calculations!AG$4, Custom_Stock_MPG[[ Technology Type]], $B15, Custom_Stock_MPG[Vehicle Type], $A15, Custom_Stock_MPG[Scenario], Input_Scenario_Modeled), SUMIFS(Vehicle_Projections[Vehicle Stock],Vehicle_Projections[Year],Calculations!AG$4, Vehicle_Projections[[ Technology Type]], $B15, Vehicle_Projections[Vehicle Type], $A15, Vehicle_Projections[Scenario], Input_Scenario_Modeled)) -> 93.576584 | AH15: =IF(Input_Scenario_Modeled="Custom", SUMIFS(Custom_Stock_MPG[Vehicle Stock],Custom_Stock_MPG[Year],Calculations!AH$4, Custom_Stock_MPG[[ Technology Type]], $B15, Custom_Stock_MPG[Vehicle Type], $A15, Custom_Stock_MPG[Scenario], Input_Scenario_Modeled), SUMIFS(Vehicle_Projections[Vehicle Stock],Vehicle_Projections[Year],Calculations!AH$4, Vehicle_Projections[[ Technology Type]], $B15, Vehicle_Projections[Vehicle Type], $A15, Vehicle_Projections[Scenario], Input_Scenario_Modeled)) -> 93.036606 | AI15: =IF(Input_Scenario_Modeled="Custom", SUMIFS(Custom_Stock_MPG[Vehicle Stock],Custom_Stock_MPG[Year],Calculations!AI$4, Custom_Stock_MPG[[ Technology Type]], $B15, Custom_Stock_MPG[Vehicle Type], $A15, Custom_Stock_MPG[Scenario], Input_Scenario_Modeled), SUMIFS(Vehicle_Projections[Vehicle Stock],Vehicle_Projections[Year],Calculations!AI$4, Vehicle_Projections[[ Technology Type]], $B15, Vehicle_Projections[Vehicle Type], $A15, Vehicle_Projections[Scenario], Input_Scenario_Modeled)) -> 92.53817 | AJ15: =IF(Input_Scenario_Modeled="Custom", SUMIFS(Custom_Stock_MPG[Vehicle Stock],Custom_Stock_MPG[Year],Calculations!AJ$4, Custom_Stock_MPG[[ Technology Type]], $B15, Custom_Stock_MPG[Vehicle Type], $A15, Custom_Stock_MPG[Scenario], Input_Scenario_Modeled), SUMIFS(Vehicle_Projections[Vehicle Stock],Vehicle_Projections[Year],Calculations!AJ$4, Vehicle_Projections[[ Technology Type]], $B15, Vehicle_Projections[Vehicle Type], $A15, Vehicle_Projections[Scenario], Input_Scenario_Modeled)) -> 92.052879 | AK15: =IF(Input_Scenario_Modeled="Custom", SUMIFS(Custom_Stock_MPG[Vehicle Stock],Custom_Stock_MPG[Year],Calculations!AK$4, Custom_Stock_MPG[[ Technology Type]], $B15, Custom_Stock_MPG[Vehicle Type], $A15, Custom_Stock_MPG[Scenario], Input_Scenario_Modeled), SUMIFS(Vehicle_Projections[Vehicle Stock],Vehicle_Projections[Year],Calculations!AK$4, Vehicle_Projections[[ Technology Type]], $B15, Vehicle_Projections[Vehicle Type], $A15, Vehicle_Projections[Scenario], Input_Scenario_Modeled)) -> 91.603561 | AL15: =IF(Input_Scenario_Modeled="Custom", SUMIFS(Custom_Stock_MPG[Vehicle Stock],Custom_Stock_MPG[Year],Calculations!AL$4, Custom_Stock_MPG[[ Technology Type]], $B15, Custom_Stock_MPG[Vehicle Type], $A15, Custom_Stock_MPG[Scenario], Input_Scenario_Modeled), SUMIFS(Vehicle_Projections[Vehicle Stock],Vehicle_Projections[Year],Calculations!AL$4, Vehicle_Projections[[ Technology Type]], $B15, Vehicle_Projections[Vehicle Type], $A15, Vehicle_Projections[Scenario], Input_Scenario_Modeled)) -> 91.180695
A16: Light Trucks | B16: Ethanol-Flex Fuel ICE | C16: Gasoline | D16: Stock | E16: =IF(Input_Scenario_Modeled="Custom", SUMIFS(Custom_Stock_MPG[Vehicle Stock],Custom_Stock_MPG[Year],Calculations!E$4, Custom_Stock_MPG[[ Technology Type]], $B16, Custom_Stock_MPG[Vehicle Type], $A16, Custom_Stock_MPG[Scenario], Input_Scenario_Modeled), SUMIFS(Vehicle_Projections[Vehicle Stock],Vehicle_Projections[Year],Calculations!E$4, Vehicle_Projections[[ Technology Type]], $B16, Vehicle_Projections[Vehicle Type], $A16, Vehicle_Projections[Scenario], Input_Scenario_Modeled)) -> 0 | F16: =IF(Input_Scenario_Modeled="Custom", SUMIFS(Custom_Stock_MPG[Vehicle Stock],Custom_Stock_MPG[Year],Calculations!F$4, Custom_Stock_MPG[[ Technology Type]], $B16, Custom_Stock_MPG[Vehicle Type], $A16, Custom_Stock_MPG[Scenario], Input_Scenario_Modeled), SUMIFS(Vehicle_Projections[Vehicle Stock],Vehicle_Projections[Year],Calculations!F$4, Vehicle_Projections[[ Technology Type]], $B16, Vehicle_Projections[Vehicle Type], $A16, Vehicle_Projections[Scenario], Input_Scenario_Modeled)) -> 0 | G16: =IF(Input_Scenario_Modeled="Custom", SUMIFS(Custom_Stock_MPG[Vehicle Stock],Custom_Stock_MPG[Year],Calculations!G$4, Custom_Stock_MPG[[ Technology Type]], $B16, Custom_Stock_MPG[Vehicle Type], $A16, Custom_Stock_MPG[Scenario], Input_Scenario_Modeled), SUMIFS(Vehicle_Projections[Vehicle Stock],Vehicle_Projections[Year],Calculations!G$4, Vehicle_Projections[[ Technology Type]], $B16, Vehicle_Projections[Vehicle Type], $A16, Vehicle_Projections[Scenario], Input_Scenario_Modeled)) -> 0 | H16: =IF(Input_Scenario_Modeled="Custom", SUMIFS(Custom_Stock_MPG[Vehicle Stock],Custom_Stock_MPG[Year],Calculations!H$4, Custom_Stock_MPG[[ Technology Type]], $B16, Custom_Stock_MPG[Vehicle Type], $A16, Custom_Stock_MPG[Scenario], Input_Scenario_Modeled), SUMIFS(Vehicle_Projections[Vehicle Stock],Vehicle_Projections[Year],Calculations!H$4, Vehicle_Projections[[ Technology Type]], $B16, Vehicle_Projections[Vehicle Type], $A16, Vehicle_Projections[Scenario], Input_Scenario_Modeled)) -> 0 | I16: =IF(Input_Scenario_Modeled="Custom", SUMIFS(Custom_Stock_MPG[Vehicle Stock],Custom_Stock_MPG[Year],Calculations!I$4, Custom_Stock_MPG[[ Technology Type]], $B16, Custom_Stock_MPG[Vehicle Type], $A16, Custom_Stock_MPG[Scenario], Input_Scenario_Modeled), SUMIFS(Vehicle_Projections[Vehicle Stock],Vehicle_Projections[Year],Calculations!I$4, Vehicle_Projections[[ Technology Type]], $B16, Vehicle_Projections[Vehicle Type], $A16, Vehicle_Projections[Scenario], Input_Scenario_Modeled)) -> 0 | J16: =IF(Input_Scenario_Modeled="Custom", SUMIFS(Custom_Stock_MPG[Vehicle Stock],Custom_Stock_MPG[Year],Calculations!J$4, Custom_Stock_MPG[[ Technology Type]], $B16, Custom_Stock_MPG[Vehicle Type], $A16, Custom_Stock_MPG[Scenario], Input_Scenario_Modeled), SUMIFS(Vehicle_Projections[Vehicle Stock],Vehicle_Projections[Year],Calculations!J$4, Vehicle_Projections[[ Technology Type]], $B16, Vehicle_Projections[Vehicle Type], $A16, Vehicle_Projections[Scenario], Input_Scenario_Modeled)) -> 0 | K16: =IF(Input_Scenario_Modeled="Custom", SUMIFS(Custom_Stock_MPG[Vehicle Stock],Custom_Stock_MPG[Year],Calculations!K$4, Custom_Stock_MPG[[ Technology Type]], $B16, Custom_Stock_MPG[Vehicle Type], $A16, Custom_Stock_MPG[Scenario], Input_Scenario_Modeled), SUMIFS(Vehicle_Projections[Vehicle Stock],Vehicle_Projections[Year],Calculations!K$4, Vehicle_Projections[[ Technology Type]], $B16, Vehicle_Projections[Vehicle Type], $A16, Vehicle_Projections[Scenario], Input_Scenario_Modeled)) -> 0 | L16: =IF(Input_Scenario_Modeled="Custom", SUMIFS(Custom_Stock_MPG[Vehicle Stock],Custom_Stock_MPG[Year],Calculations!L$4, Custom_Stock_MPG[[ Technology Type]], $B16, Custom_Stock_MPG[Vehicle Type], $A16, Custom_Stock_MPG[Scenario], Input_Scenario_Modeled), SUMIFS(Vehicle_Projections[Vehicle Stock],Vehicle_Projections[Year],Calculations!L$4, Vehicle_Projections[[ Technology Type]], $B16, Vehicle_Projections[Vehicle Type], $A16, Vehicle_Projections[Scenario], Input_Scenario_Modeled)) -> 0 | M16: =IF(Input_Scenario_Modeled="Custom", SUMIFS(Custom_Stock_MPG[Vehicle Stock],Custom_Stock_MPG[Year],Calculations!M$4, Custom_Stock_MPG[[ Technology Type]], $B16, Custom_Stock_MPG[Vehicle Type], $A16, Custom_Stock_MPG[Scenario], Input_Scenario_Modeled), SUMIFS(Vehicle_Projections[Vehicle Stock],Vehicle_Projections[Year],Calculations!M$4, Vehicle_Projections[[ Technology Type]], $B16, Vehicle_Projections[Vehicle Type], $A16, Vehicle_Projections[Scenario], Input_Scenario_Modeled)) -> 0 | N16: =IF(Input_Scenario_Modeled="Custom", SUMIFS(Custom_Stock_MPG[Vehicle Stock],Custom_Stock_MPG[Year],Calculations!N$4, Custom_Stock_MPG[[ Technology Type]], $B16, Custom_Stock_MPG[Vehicle Type], $A16, Custom_Stock_MPG[Scenario], Input_Scenario_Modeled), SUMIFS(Vehicle_Projections[Vehicle Stock],Vehicle_Projections[Year],Calculations!N$4, Vehicle_Projections[[ Technology Type]], $B16, Vehicle_Projections[Vehicle Type], $A16, Vehicle_Projections[Scenario], Input_Scenario_Modeled)) -> 0 | O16: =IF(Input_Scenario_Modeled="Custom", SUMIFS(Custom_Stock_MPG[Vehicle Stock],Custom_Stock_MPG[Year],Calculations!O$4, Custom_Stock_MPG[[ Technology Type]], $B16, Custom_Stock_MPG[Vehicle Type], $A16, Custom_Stock_MPG[Scenario], Input_Scenario_Modeled), SUMIFS(Vehicle_Projections[Vehicle Stock],Vehicle_Projections[Year],Calculations!O$4, Vehicle_Projections[[ Technology Type]], $B16, Vehicle_Projections[Vehicle Type], $A16, Vehicle_Projections[Scenario], Input_Scenario_Modeled)) -> 0 | P16: =IF(Input_Scenario_Modeled="Custom", SUMIFS(Custom_Stock_MPG[Vehicle Stock],Custom_Stock_MPG[Year],Calculations!P$4, Custom_Stock_MPG[[ Technology Type]], $B16, Custom_Stock_MPG[Vehicle Type], $A16, Custom_Stock_MPG[Scenario], Input_Scenario_Modeled), SUMIFS(Vehicle_Projections[Vehicle Stock],Vehicle_Projections[Year],Calculations!P$4, Vehicle_Projections[[ Technology Type]], $B16, Vehicle_Projections[Vehicle Type], $A16, Vehicle_Projections[Scenario], Input_Scenario_Modeled)) -> 0 | Q16: =IF(Input_Scenario_Modeled="Custom", SUMIFS(Custom_Stock_MPG[Vehicle Stock],Custom_Stock_MPG[Year],Calculations!Q$4, Custom_Stock_MPG[[ Technology Type]], $B16, Custom_Stock_MPG[Vehicle Type], $A16, Custom_Stock_MPG[Scenario], Input_Scenario_Modeled), SUMIFS(Vehicle_Projections[Vehicle Stock],Vehicle_Projections[Year],Calculations!Q$4, Vehicle_Projections[[ Technology Type]], $B16, Vehicle_Projections[Vehicle Type], $A16, Vehicle_Projections[Scenario], Input_Scenario_Modeled)) -> 0 | R16: =IF(Input_Scenario_Modeled="Custom", SUMIFS(Custom_Stock_MPG[Vehicle Stock],Custom_Stock_MPG[Year],Calculations!R$4, Custom_Stock_MPG[[ Technology Type]], $B16, Custom_Stock_MPG[Vehicle Type], $A16, Custom_Stock_MPG[Scenario], Input_Scenario_Modeled), SUMIFS(Vehicle_Projections[Vehicle Stock],Vehicle_Projections[Year],Calculations!R$4, Vehicle_Projections[[ Technology Type]], $B16, Vehicle_Projections[Vehicle Type], $A16, Vehicle_Projections[Scenario], Input_Scenario_Modeled)) -> 0 | S16: =IF(Input_Scenario_Modeled="Custom", SUMIFS(Custom_Stock_MPG[Vehicle Stock],Custom_Stock_MPG[Year],Calculations!S$4, Custom_Stock_MPG[[ Technology Type]], $B16, Custom_Stock_MPG[Vehicle Type], $A16, Custom_Stock_MPG[Scenario], Input_Scenario_Modeled), SUMIFS(Vehicle_Projections[Vehicle Stock],Vehicle_Projections[Year],Calculations!S$4, Vehicle_Projections[[ Technology Type]], $B16, Vehicle_Projections[Vehicle Type], $A16, Vehicle_Projections[Scenario], Input_Scenario_Modeled)) -> 0 | T16: =IF(Input_Scenario_Modeled="Custom", SUMIFS(Custom_Stock_MPG[Vehicle Stock],Custom_Stock_MPG[Year],Calculations!T$4, Custom_Stock_MPG[[ Technology Type]], $B16, Custom_Stock_MPG[Vehicle Type], $A16, Custom_Stock_MPG[Scenario], Input_Scenario_Modeled), SUMIFS(Vehicle_Projections[Vehicle Stock],Vehicle_Projections[Year],Calculations!T$4, Vehicle_Projections[[ Technology Type]], $B16, Vehicle_Projections[Vehicle Type], $A16, Vehicle_Projections[Scenario], Input_Scenario_Modeled)) -> 0 | U16: =IF(Input_Scenario_Modeled="Custom", SUMIFS(Custom_Stock_MPG[Vehicle Stock],Custom_Stock_MPG[Year],Calculations!U$4, Custom_Stock_MPG[[ Technology Type]], $B16, Custom_Stock_MPG[Vehicle Type], $A16, Custom_Stock_MPG[Scenario], Input_Scenario_Modeled), SUMIFS(Vehicle_Projections[Vehicle Stock],Vehicle_Projections[Year],Calculations!U$4, Vehicle_Projections[[ Technology Type]], $B16, Vehicle_Projections[Vehicle Type], $A16, Vehicle_Projections[Scenario], Input_Scenario_Modeled)) -> 0 | V16: =IF(Input_Scenario_Modeled="Custom", SUMIFS(Custom_Stock_MPG[Vehicle Stock],Custom_Stock_MPG[Year],Calculations!V$4, Custom_Stock_MPG[[ Technology Type]], $B16, Custom_Stock_MPG[Vehicle Type], $A16, Custom_Stock_MPG[Scenario], Input_Scenario_Modeled), SUMIFS(Vehicle_Projections[Vehicle Stock],Vehicle_Projections[Year],Calculations!V$4, Vehicle_Projections[[ Technology Type]], $B16, Vehicle_Projections[Vehicle Type], $A16, Vehicle_Projections[Scenario], Input_Scenario_Modeled)) -> 0 | W16: =IF(Input_Scenario_Modeled="Custom", SUMIFS(Custom_Stock_MPG[Vehicle Stock],Custom_Stock_MPG[Year],Calculations!W$4, Custom_Stock_MPG[[ Technology Type]], $B16, Custom_Stock_MPG[Vehicle Type], $A16, Custom_Stock_MPG[Scenario], Input_Scenario_Modeled), SUMIFS(Vehicle_Projections[Vehicle Stock],Vehicle_Projections[Year],Calculations!W$4, Vehicle_Projections[[ Technology Type]], $B16, Vehicle_Projections[Vehicle Type], $A16, Vehicle_Projections[Scenario], Input_Scenario_Modeled)) -> 0 | X16: =IF(Input_Scenario_Modeled="Custom", SUMIFS(Custom_Stock_MPG[Vehicle Stock],Custom_Stock_MPG[Year],Calculations!X$4, Custom_Stock_MPG[[ Technology Type]], $B16, Custom_Stock_MPG[Vehicle Type], $A16, Custom_Stock_MPG[Scenario], Input_Scenario_Modeled), SUMIFS(Vehicle_Projections[Vehicle Stock],Vehicle_Projections[Year],Calculations!X$4, Vehicle_Projections[[ Technology Type]], $B16, Vehicle_Projections[Vehicle Type], $A16, Vehicle_Projections[Scenario], Input_Scenario_Modeled)) -> 0 | Y16: =IF(Input_Scenario_Modeled="Custom", SUMIFS(Custom_Stock_MPG[Vehicle Stock],Custom_Stock_MPG[Year],Calculations!Y$4, Custom_Stock_MPG[[ Technology Type]], $B16, Custom_Stock_MPG[Vehicle Type], $A16, Custom_Stock_MPG[Scenario], Input_Scenario_Modeled), SUMIFS(Vehicle_Projections[Vehicle Stock],Vehicle_Projections[Year],Calculations!Y$4, Vehicle_Projections[[ Technology Type]], $B16, Vehicle_Projections[Vehicle Type], $A16, Vehicle_Projections[Scenario], Input_Scenario_Modeled)) -> 0 | Z16: =IF(Input_Scenario_Modeled="Custom", SUMIFS(Custom_Stock_MPG[Vehicle Stock],Custom_Stock_MPG[Year],Calculations!Z$4, Custom_Stock_MPG[[ Technology Type]], $B16, Custom_Stock_MPG[Vehicle Type], $A16, Custom_Stock_MPG[Scenario], Input_Scenario_Modeled), SUMIFS(Vehicle_Projections[Vehicle Stock],Vehicle_Projections[Year],Calculations!Z$4, Vehicle_Projections[[ Technology Type]], $B16, Vehicle_Projections[Vehicle Type], $A16, Vehicle_Projections[Scenario], Input_Scenario_Modeled)) -> 0 | AA16: =IF(Input_Scenario_Modeled="Custom", SUMIFS(Custom_Stock_MPG[Vehicle Stock],Custom_Stock_MPG[Year],Calculations!AA$4, Custom_Stock_MPG[[ Technology Type]], $B16, Custom_Stock_MPG[Vehicle Type], $A16, Custom_Stock_MPG[Scenario], Input_Scenario_Modeled), SUMIFS(Vehicle_Projections[Vehicle Stock],Vehicle_Projections[Year],Calculations!AA$4, Vehicle_Projections[[ Technology Type]], $B16, Vehicle_Projections[Vehicle Type], $A16, Vehicle_Projections[Scenario], Input_Scenario_Modeled)) -> 0 | AB16: =IF(Input_Scenario_Modeled="Custom", SUMIFS(Custom_Stock_MPG[Vehicle Stock],Custom_Stock_MPG[Year],Calculations!AB$4, Custom_Stock_MPG[[ Technology Type]], $B16, Custom_Stock_MPG[Vehicle Type], $A16, Custom_Stock_MPG[Scenario], Input_Scenario_Modeled), SUMIFS(Vehicle_Projections[Vehicle Stock],Vehicle_Projections[Year],Calculations!AB$4, Vehicle_Projections[[ Technology Type]], $B16, Vehicle_Projections[Vehicle Type], $A16, Vehicle_Projections[Scenario], Input_Scenario_Modeled)) -> 0 | AC16: =IF(Input_Scenario_Modeled="Custom", SUMIFS(Custom_Stock_MPG[Vehicle Stock],Custom_Stock_MPG[Year],Calculations!AC$4, Custom_Stock_MPG[[ Technology Type]], $B16, Custom_Stock_MPG[Vehicle Type], $A16, Custom_Stock_MPG[Scenario], Input_Scenario_Modeled), SUMIFS(Vehicle_Projections[Vehicle Stock],Vehicle_Projections[Year],Calculations!AC$4, Vehicle_Projections[[ Technology Type]], $B16, Vehicle_Projections[Vehicle Type], $A16, Vehicle_Projections[Scenario], Input_Scenario_Modeled)) -> 0 | AD16: =IF(Input_Scenario_Modeled="Custom", SUMIFS(Custom_Stock_MPG[Vehicle Stock],Custom_Stock_MPG[Year],Calculations!AD$4, Custom_Stock_MPG[[ Technology Type]], $B16, Custom_Stock_MPG[Vehicle Type], $A16, Custom_Stock_MPG[Scenario], Input_Scenario_Modeled), SUMIFS(Vehicle_Projections[Vehicle Stock],Vehicle_Projections[Year],Calculations!AD$4, Vehicle_Projections[[ Technology Type]], $B16, Vehicle_Projections[Vehicle Type], $A16, Vehicle_Projections[Scenario], Input_Scenario_Modeled)) -> 0 | AE16: =IF(Input_Scenario_Modeled="Custom", SUMIFS(Custom_Stock_MPG[Vehicle Stock],Custom_Stock_MPG[Year],Calculations!AE$4, Custom_Stock_MPG[[ Technology Type]], $B16, Custom_Stock_MPG[Vehicle Type], $A16, Custom_Stock_MPG[Scenario], Input_Scenario_Modeled), SUMIFS(Vehicle_Projections[Vehicle Stock],Vehicle_Projections[Year],Calculations!AE$4, Vehicle_Projections[[ Technology Type]], $B16, Vehicle_Projections[Vehicle Type], $A16, Vehicle_Projections[Scenario], Input_Scenario_Modeled)) -> 0 | AF16: =IF(Input_Scenario_Modeled="Custom", SUMIFS(Custom_Stock_MPG[Vehicle Stock],Custom_Stock_MPG[Year],Calculations!AF$4, Custom_Stock_MPG[[ Technology Type]], $B16, Custom_Stock_MPG[Vehicle Type], $A16, Custom_Stock_MPG[Scenario], Input_Scenario_Modeled), SUMIFS(Vehicle_Projections[Vehicle Stock],Vehicle_Projections[Year],Calculations!AF$4, Vehicle_Projections[[ Technology Type]], $B16, Vehicle_Projections[Vehicle Type], $A16, Vehicle_Projections[Scenario], Input_Scenario_Modeled)) -> 0 | AG16: =IF(Input_Scenario_Modeled="Custom", SUMIFS(Custom_Stock_MPG[Vehicle Stock],Custom_Stock_MPG[Year],Calculations!AG$4, Custom_Stock_MPG[[ Technology Type]], $B16, Custom_Stock_MPG[Vehicle Type], $A16, Custom_Stock_MPG[Scenario], Input_Scenario_Modeled), SUMIFS(Vehicle_Projections[Vehicle Stock],Vehicle_Projections[Year],Calculations!AG$4, Vehicle_Projections[[ Technology Type]], $B16, Vehicle_Projections[Vehicle Type], $A16, Vehicle_Projections[Scenario], Input_Scenario_Modeled)) -> 0 | AH16: =IF(Input_Scenario_Modeled="Custom", SUMIFS(Custom_Stock_MPG[Vehicle Stock],Custom_Stock_MPG[Year],Calculations!AH$4, Custom_Stock_MPG[[ Technology Type]], $B16, Custom_Stock_MPG[Vehicle Type], $A16, Custom_Stock_MPG[Scenario], Input_Scenario_Modeled), SUMIFS(Vehicle_Projections[Vehicle Stock],Vehicle_Projections[Year],Calculations!AH$4, Vehicle_Projections[[ Technology Type]], $B16, Vehicle_Projections[Vehicle Type], $A16, Vehicle_Projections[Scenario], Input_Scenario_Modeled)) -> 0 | AI16: =IF(Input_Scenario_Modeled="Custom", SUMIFS(Custom_Stock_MPG[Vehicle Stock],Custom_Stock_MPG[Year],Calculations!AI$4, Custom_Stock_MPG[[ Technology Type]], $B16, Custom_Stock_MPG[Vehicle Type], $A16, Custom_Stock_MPG[Scenario], Input_Scenario_Modeled), SUMIFS(Vehicle_Projections[Vehicle Stock],Vehicle_Projections[Year],Calculations!AI$4, Vehicle_Projections[[ Technology Type]], $B16, Vehicle_Projections[Vehicle Type], $A16, Vehicle_Projections[Scenario], Input_Scenario_Modeled)) -> 0 | AJ16: =IF(Input_Scenario_Modeled="Custom", SUMIFS(Custom_Stock_MPG[Vehicle Stock],Custom_Stock_MPG[Year],Calculations!AJ$4, Custom_Stock_MPG[[ Technology Type]], $B16, Custom_Stock_MPG[Vehicle Type], $A16, Custom_Stock_MPG[Scenario], Input_Scenario_Modeled), SUMIFS(Vehicle_Projections[Vehicle Stock],Vehicle_Projections[Year],Calculations!AJ$4, Vehicle_Projections[[ Technology Type]], $B16, Vehicle_Projections[Vehicle Type], $A16, Vehicle_Projections[Scenario], Input_Scenario_Modeled)) -> 0 | AK16: =IF(Input_Scenario_Modeled="Custom", SUMIFS(Custom_Stock_MPG[Vehicle Stock],Custom_Stock_MPG[Year],Calculations!AK$4, Custom_Stock_MPG[[ Technology Type]], $B16, Custom_Stock_MPG[Vehicle Type], $A16, Custom_Stock_MPG[Scenario], Input_Scenario_Modeled), SUMIFS(Vehicle_Projections[Vehicle Stock],Vehicle_Projections[Year],Calculations!AK$4, Vehicle_Projections[[ Technology Type]], $B16, Vehicle_Projections[Vehicle Type], $A16, Vehicle_Projections[Scenario], Input_Scenario_Modeled)) -> 0 | AL16: =IF(Input_Scenario_Modeled="Custom", SUMIFS(Custom_Stock_MPG[Vehicle Stock],Custom_Stock_MPG[Year],Calculations!AL$4, Custom_Stock_MPG[[ Technology Type]], $B16, Custom_Stock_MPG[Vehicle Type], $A16, Custom_Stock_MPG[Scenario], Input_Scenario_Modeled), SUMIFS(Vehicle_Projections[Vehicle Stock],Vehicle_Projections[Year],Calculations!AL$4, Vehicle_Projections[[ Technology Type]], $B16, Vehicle_Projections[Vehicle Type], $A16, Vehicle_Projections[Scenario], Input_Scenario_Modeled)) -> 0
A17: Light Trucks | B17: Electric-Gasoline Hybrid | C17: Gasoline | D17: Stock | E17: =IF(Input_Scenario_Modeled="Custom", SUMIFS(Custom_Stock_MPG[Vehicle Stock],Custom_Stock_MPG[Year],Calculations!E$4, Custom_Stock_MPG[[ Technology Type]], $B17, Custom_Stock_MPG[Vehicle Type], $A17, Custom_Stock_MPG[Scenario], Input_Scenario_Modeled), SUMIFS(Vehicle_Projections[Vehicle Stock],Vehicle_Projections[Year],Calculations!E$4, Vehicle_Projections[[ Technology Type]], $B17, Vehicle_Projections[Vehicle Type], $A17, Vehicle_Projections[Scenario], Input_Scenario_Modeled)) -> 0.506487 | F17: =IF(Input_Scenario_Modeled="Custom", SUMIFS(Custom_Stock_MPG[Vehicle Stock],Custom_Stock_MPG[Year],Calculations!F$4, Custom_Stock_MPG[[ Technology Type]], $B17, Custom_Stock_MPG[Vehicle Type], $A17, Custom_Stock_MPG[Scenario], Input_Scenario_Modeled), SUMIFS(Vehicle_Projections[Vehicle Stock],Vehicle_Projections[Year],Calculations!F$4, Vehicle_Projections[[ Technology Type]], $B17, Vehicle_Projections[Vehicle Type], $A17, Vehicle_Projections[Scenario], Input_Scenario_Modeled)) -> 0.539762 | G17: =IF(Input_Scenario_Modeled="Custom", SUMIFS(Custom_Stock_MPG[Vehicle Stock],Custom_Stock_MPG[Year],Calculations!G$4, Custom_Stock_MPG[[ Technology Type]], $B17, Custom_Stock_MPG[Vehicle Type], $A17, Custom_Stock_MPG[Scenario], Input_Scenario_Modeled), SUMIFS(Vehicle_Projections[Vehicle Stock],Vehicle_Projections[Year],Calculations!G$4, Vehicle_Projections[[ Technology Type]], $B17, Vehicle_Projections[Vehicle Type], $A17, Vehicle_Projections[Scenario], Input_Scenario_Modeled)) -> 0.572327 | H17: =IF(Input_Scenario_Modeled="Custom", SUMIFS(Custom_Stock_MPG[Vehicle Stock],Custom_Stock_MPG[Year],Calculations!H$4, Custom_Stock_MPG[[ Technology Type]], $B17, Custom_Stock_MPG[Vehicle Type], $A17, Custom_Stock_MPG[Scenario], Input_Scenario_Modeled), SUMIFS(Vehicle_Projections[Vehicle Stock],Vehicle_Projections[Year],Calculations!H$4, Vehicle_Projections[[ Technology Type]], $B17, Vehicle_Projections[Vehicle Type], $A17, Vehicle_Projections[Scenario], Input_Scenario_Modeled)) -> 0.606526 | I17: =IF(Input_Scenario_Modeled="Custom", SUMIFS(Custom_Stock_MPG[Vehicle Stock],Custom_Stock_MPG[Year],Calculations!I$4, Custom_Stock_MPG[[ Technology Type]], $B17, Custom_Stock_MPG[Vehicle Type], $A17, Custom_Stock_MPG[Scenario], Input_Scenario_Modeled), SUMIFS(Vehicle_Projections[Vehicle Stock],Vehicle_Projections[Year],Calculations!I$4, Vehicle_Projections[[ Technology Type]], $B17, Vehicle_Projections[Vehicle Type], $A17, Vehicle_Projections[Scenario], Input_Scenario_Modeled)) -> 0.640358 | J17: =IF(Input_Scenario_Modeled="Custom", SUMIFS(Custom_Stock_MPG[Vehicle Stock],Custom_Stock_MPG[Year],Calculations!J$4, Custom_Stock_MPG[[ Technology Type]], $B17, Custom_Stock_MPG[Vehicle Type], $A17, Custom_Stock_MPG[Scenario], Input_Scenario_Modeled), SUMIFS(Vehicle_Projections[Vehicle Stock],Vehicle_Projections[Year],Calculations!J$4, Vehicle_Projections[[ Technology Type]], $B17, Vehicle_Projections[Vehicle Type], $A17, Vehicle_Projections[Scenario], Input_Scenario_Modeled)) -> 0.674769 | K17: =IF(Input_Scenario_Modeled="Custom", SUMIFS(Custom_Stock_MPG[Vehicle Stock],Custom_Stock_MPG[Year],Calculations!K$4, Custom_Stock_MPG[[ Technology Type]], $B17, Custom_Stock_MPG[Vehicle Type], $A17, Custom_Stock_MPG[Scenario], Input_Scenario_Modeled), SUMIFS(Vehicle_Projections[Vehicle Stock],Vehicle_Projections[Year],Calculations!K$4, Vehicle_Projections[[ Technology Type]], $B17, Vehicle_Projections[Vehicle Type], $A17, Vehicle_Projections[Scenario], Input_Scenario_Modeled)) -> 0.712139 | L17: =IF(Input_Scenario_Modeled="Custom", SUMIFS(Custom_Stock_MPG[Vehicle Stock],Custom_Stock_MPG[Year],Calculations!L$4, Custom_Stock_MPG[[ Technology Type]], $B17, Custom_Stock_MPG[Vehicle Type], $A17, Custom_Stock_MPG[Scenario], Input_Scenario_Modeled), SUMIFS(Vehicle_Projections[Vehicle Stock],Vehicle_Projections[Year],Calculations!L$4, Vehicle_Projections[[ Technology Type]], $B17, Vehicle_Projections[Vehicle Type], $A17, Vehicle_Projections[Scenario], Input_Scenario_Modeled)) -> 0.752646 | M17: =IF(Input_Scenario_Modeled="Custom", SUMIFS(Custom_Stock_MPG[Vehicle Stock],Custom_Stock_MPG[Year],Calculations!M$4, Custom_Stock_MPG[[ Technology Type]], $B17, Custom_Stock_MPG[Vehicle Type], $A17, Custom_Stock_MPG[Scenario], Input_Scenario_Modeled), SUMIFS(Vehicle_Projections[Vehicle Stock],Vehicle_Projections[Year],Calculations!M$4, Vehicle_Projections[[ Technology Type]], $B17, Vehicle_Projections[Vehicle Type], $A17, Vehicle_Projections[Scenario], Input_Scenario_Modeled)) -> 0.792561 | N17: =IF(Input_Scenario_Modeled="Custom", SUMIFS(Custom_Stock_MPG[Vehicle Stock],Custom_Stock_MPG[Year],Calculations!N$4, Custom_Stock_MPG[[ Technology Type]], $B17, Custom_Stock_MPG[Vehicle Type], $A17, Custom_Stock_MPG[Scenario], Input_Scenario_Modeled), SUMIFS(Vehicle_Projections[Vehicle Stock],Vehicle_Projections[Year],Calculations!N$4, Vehicle_Projections[[ Technology Type]], $B17, Vehicle_Projections[Vehicle Type], $A17, Vehicle_Projections[Scenario], Input_Scenario_Modeled)) -> 0.834705 | O17: =IF(Input_Scenario_Modeled="Custom", SUMIFS(Custom_Stock_MPG[Vehicle Stock],Custom_Stock_MPG[Year],Calculations!O$4, Custom_Stock_MPG[[ Technology Type]], $B17, Custom_Stock_MPG[Vehicle Type], $A17, Custom_Stock_MPG[Scenario], Input_Scenario_Modeled), SUMIFS(Vehicle_Projections[Vehicle Stock],Vehicle_Projections[Year],Calculations!O$4, Vehicle_Projections[[ Technology Type]], $B17, Vehicle_Projections[Vehicle Type], $A17, Vehicle_Projections[Scenario], Input_Scenario_Modeled)) -> 0.876724 | P17: =IF(Input_Scenario_Modeled="Custom", SUMIFS(Custom_Stock_MPG[Vehicle Stock],Custom_Stock_MPG[Year],Calculations!P$4, Custom_Stock_MPG[[ Technology Type]], $B17, Custom_Stock_MPG[Vehicle Type], $A17, Custom_Stock_MPG[Scenario], Input_Scenario_Modeled), SUMIFS(Vehicle_Projections[Vehicle Stock],Vehicle_Projections[Year],Calculations!P$4, Vehicle_Projections[[ Technology Type]], $B17, Vehicle_Projections[Vehicle Type], $A17, Vehicle_Projections[Scenario], Input_Scenario_Modeled)) -> 0.919064 | Q17: =IF(Input_Scenario_Modeled="Custom", SUMIFS(Custom_Stock_MPG[Vehicle Stock],Custom_Stock_MPG[Year],Calculations!Q$4, Custom_Stock_MPG[[ Technology Type]], $B17, Custom_Stock_MPG[Vehicle Type], $A17, Custom_Stock_MPG[Scenario], Input_Scenario_Modeled), SUMIFS(Vehicle_Projections[Vehicle Stock],Vehicle_Projections[Year],Calculations!Q$4, Vehicle_Projections[[ Technology Type]], $B17, Vehicle_Projections[Vehicle Type], $A17, Vehicle_Projections[Scenario], Input_Scenario_Modeled)) -> 0.962289 | R17: =IF(Input_Scenario_Modeled="Custom", SUMIFS(Custom_Stock_MPG[Vehicle Stock],Custom_Stock_MPG[Year],Calculations!R$4, Custom_Stock_MPG[[ Technology Type]], $B17, Custom_Stock_MPG[Vehicle Type], $A17, Custom_Stock_MPG[Scenario], Input_Scenario_Modeled), SUMIFS(Vehicle_Projections[Vehicle Stock],Vehicle_Projections[Year],Calculations!R$4, Vehicle_Projections[[ Technology Type]], $B17, Vehicle_Projections[Vehicle Type], $A17, Vehicle_Projections[Scenario], Input_Scenario_Modeled)) -> 1.005662 | S17: =IF(Input_Scenario_Modeled="Custom", SUMIFS(Custom_Stock_MPG[Vehicle Stock],Custom_Stock_MPG[Year],Calculations!S$4, Custom_Stock_MPG[[ Technology Type]], $B17, Custom_Stock_MPG[Vehicle Type], $A17, Custom_Stock_MPG[Scenario], Input_Scenario_Modeled), SUMIFS(Vehicle_Projections[Vehicle Stock],Vehicle_Projections[Year],Calculations!S$4, Vehicle_Projections[[ Technology Type]], $B17, Vehicle_Projections[Vehicle Type], $A17, Vehicle_Projections[Scenario], Input_Scenario_Modeled)) -> 1.052056 | T17: =IF(Input_Scenario_Modeled="Custom", SUMIFS(Custom_Stock_MPG[Vehicle Stock],Custom_Stock_MPG[Year],Calculations!T$4, Custom_Stock_MPG[[ Technology Type]], $B17, Custom_Stock_MPG[Vehicle Type], $A17, Custom_Stock_MPG[Scenario], Input_Scenario_Modeled), SUMIFS(Vehicle_Projections[Vehicle Stock],Vehicle_Projections[Year],Calculations!T$4, Vehicle_Projections[[ Technology Type]], $B17, Vehicle_Projections[Vehicle Type], $A17, Vehicle_Projections[Scenario], Input_Scenario_Modeled)) -> 1.100582 | U17: =IF(Input_Scenario_Modeled="Custom", SUMIFS(Custom_Stock_MPG[Vehicle Stock],Custom_Stock_MPG[Year],Calculations!U$4, Custom_Stock_MPG[[ Technology Type]], $B17, Custom_Stock_MPG[Vehicle Type], $A17, Custom_Stock_MPG[Scenario], Input_Scenario_Modeled), SUMIFS(Vehicle_Projections[Vehicle Stock],Vehicle_Projections[Year],Calculations!U$4, Vehicle_Projections[[ Technology Type]], $B17, Vehicle_Projections[Vehicle Type], $A17, Vehicle_Projections[Scenario], Input_Scenario_Modeled)) -> 1.151416 | V17: =IF(Input_Scenario_Modeled="Custom", SUMIFS(Custom_Stock_MPG[Vehicle Stock],Custom_Stock_MPG[Year],Calculations!V$4, Custom_Stock_MPG[[ Technology Type]], $B17, Custom_Stock_MPG[Vehicle Type], $A17, Custom_Stock_MPG[Scenario], Input_Scenario_Modeled), SUMIFS(Vehicle_Projections[Vehicle Stock],Vehicle_Projections[Year],Calculations!V$4, Vehicle_Projections[[ Technology Type]], $B17, Vehicle_Projections[Vehicle Type], $A17, Vehicle_Projections[Scenario], Input_Scenario_Modeled)) -> 1.204037 | W17: =IF(Input_Scenario_Modeled="Custom", SUMIFS(Custom_Stock_MPG[Vehicle Stock],Custom_Stock_MPG[Year],Calculations!W$4, Custom_Stock_MPG[[ Technology Type]], $B17, Custom_Stock_MPG[Vehicle Type], $A17, Custom_Stock_MPG[Scenario], Input_Scenario_Modeled), SUMIFS(Vehicle_Projections[Vehicle Stock],Vehicle_Projections[Year],Calculations!W$4, Vehicle_Projections[[ Technology Type]], $B17, Vehicle_Projections[Vehicle Type], $A17, Vehicle_Projections[Scenario], Input_Scenario_Modeled)) -> 1.257612 | X17: =IF(Input_Scenario_Modeled="Custom", SUMIFS(Custom_Stock_MPG[Vehicle Stock],Custom_Stock_MPG[Year],Calculations!X$4, Custom_Stock_MPG[[ Technology Type]], $B17, Custom_Stock_MPG[Vehicle Type], $A17, Custom_Stock_MPG[Scenario], Input_Scenario_Modeled), SUMIFS(Vehicle_Projections[Vehicle Stock],Vehicle_Projections[Year],Calculations!X$4, Vehicle_Projections[[ Technology Type]], $B17, Vehicle_Projections[Vehicle Type], $A17, Vehicle_Projections[Scenario], Input_Scenario_Modeled)) -> 1.311985 | Y17: =IF(Input_Scenario_Modeled="Custom", SUMIFS(Custom_Stock_MPG[Vehicle Stock],Custom_Stock_MPG[Year],Calculations!Y$4, Custom_Stock_MPG[[ Technology Type]], $B17, Custom_Stock_MPG[Vehicle Type], $A17, Custom_Stock_MPG[Scenario], Input_Scenario_Modeled), SUMIFS(Vehicle_Projections[Vehicle Stock],Vehicle_Projections[Year],Calculations!Y$4, Vehicle_Projections[[ Technology Type]], $B17, Vehicle_Projections[Vehicle Type], $A17, Vehicle_Projections[Scenario], Input_Scenario_Modeled)) -> 1.367049 | Z17: =IF(Input_Scenario_Modeled="Custom", SUMIFS(Custom_Stock_MPG[Vehicle Stock],Custom_Stock_MPG[Year],Calculations!Z$4, Custom_Stock_MPG[[ Technology Type]], $B17, Custom_Stock_MPG[Vehicle Type], $A17, Custom_Stock_MPG[Scenario], Input_Scenario_Modeled), SUMIFS(Vehicle_Projections[Vehicle Stock],Vehicle_Projections[Year],Calculations!Z$4, Vehicle_Projections[[ Technology Type]], $B17, Vehicle_Projections[Vehicle Type], $A17, Vehicle_Projections[Scenario], Input_Scenario_Modeled)) -> 1.423124 | AA17: =IF(Input_Scenario_Modeled="Custom", SUMIFS(Custom_Stock_MPG[Vehicle Stock],Custom_Stock_MPG[Year],Calculations!AA$4, Custom_Stock_MPG[[ Technology Type]], $B17, Custom_Stock_MPG[Vehicle Type], $A17, Custom_Stock_MPG[Scenario], Input_Scenario_Modeled), SUMIFS(Vehicle_Projections[Vehicle Stock],Vehicle_Projections[Year],Calculations!AA$4, Vehicle_Projections[[ Technology Type]], $B17, Vehicle_Projections[Vehicle Type], $A17, Vehicle_Projections[Scenario], Input_Scenario_Modeled)) -> 1.480276 | AB17: =IF(Input_Scenario_Modeled="Custom", SUMIFS(Custom_Stock_MPG[Vehicle Stock],Custom_Stock_MPG[Year],Calculations!AB$4, Custom_Stock_MPG[[ Technology Type]], $B17, Custom_Stock_MPG[Vehicle Type], $A17, Custom_Stock_MPG[Scenario], Input_Scenario_Modeled), SUMIFS(Vehicle_Projections[Vehicle Stock],Vehicle_Projections[Year],Calculations!AB$4, Vehicle_Projections[[ Technology Type]], $B17, Vehicle_Projections[Vehicle Type], $A17, Vehicle_Projections[Scenario], Input_Scenario_Modeled)) -> 1.538538 | AC17: =IF(Input_Scenario_Modeled="Custom", SUMIFS(Custom_Stock_MPG[Vehicle Stock],Custom_Stock_MPG[Year],Calculations!AC$4, Custom_Stock_MPG[[ Technology Type]], $B17, Custom_Stock_MPG[Vehicle Type], $A17, Custom_Stock_MPG[Scenario], Input_Scenario_Modeled), SUMIFS(Vehicle_Projections[Vehicle Stock],Vehicle_Projections[Year],Calculations!AC$4, Vehicle_Projections[[ Technology Type]], $B17, Vehicle_Projections[Vehicle Type], $A17, Vehicle_Projections[Scenario], Input_Scenario_Modeled)) -> 1.598278 | AD17: =IF(Input_Scenario_Modeled="Custom", SUMIFS(Custom_Stock_MPG[Vehicle Stock],Custom_Stock_MPG[Year],Calculations!AD$4, Custom_Stock_MPG[[ Technology Type]], $B17, Custom_Stock_MPG[Vehicle Type], $A17, Custom_Stock_MPG[Scenario], Input_Scenario_Modeled), SUMIFS(Vehicle_Projections[Vehicle Stock],Vehicle_Projections[Year],Calculations!AD$4, Vehicle_Projections[[ Technology Type]], $B17, Vehicle_Projections[Vehicle Type], $A17, Vehicle_Projections[Scenario], Input_Scenario_Modeled)) -> 1.659007 | AE17: =IF(Input_Scenario_Modeled="Custom", SUMIFS(Custom_Stock_MPG[Vehicle Stock],Custom_Stock_MPG[Year],Calculations!AE$4, Custom_Stock_MPG[[ Technology Type]], $B17, Custom_Stock_MPG[Vehicle Type], $A17, Custom_Stock_MPG[Scenario], Input_Scenario_Modeled), SUMIFS(Vehicle_Projections[Vehicle Stock],Vehicle_Projections[Year],Calculations!AE$4, Vehicle_Projections[[ Technology Type]], $B17, Vehicle_Projections[Vehicle Type], $A17, Vehicle_Projections[Scenario], Input_Scenario_Modeled)) -> 1.721175 | AF17: =IF(Input_Scenario_Modeled="Custom", SUMIFS(Custom_Stock_MPG[Vehicle Stock],Custom_Stock_MPG[Year],Calculations!AF$4, Custom_Stock_MPG[[ Technology Type]], $B17, Custom_Stock_MPG[Vehicle Type], $A17, Custom_Stock_MPG[Scenario], Input_Scenario_Modeled), SUMIFS(Vehicle_Projections[Vehicle Stock],Vehicle_Projections[Year],Calculations!AF$4, Vehicle_Projections[[ Technology Type]], $B17, Vehicle_Projections[Vehicle Type], $A17, Vehicle_Projections[Scenario], Input_Scenario_Modeled)) -> 1.785705 | AG17: =IF(Input_Scenario_Modeled="Custom", SUMIFS(Custom_Stock_MPG[Vehicle Stock],Custom_Stock_MPG[Year],Calculations!AG$4, Custom_Stock_MPG[[ Technology Type]], $B17, Custom_Stock_MPG[Vehicle Type], $A17, Custom_Stock_MPG[Scenario], Input_Scenario_Modeled), SUMIFS(Vehicle_Projections[Vehicle Stock],Vehicle_Projections[Year],Calculations!AG$4, Vehicle_Projections[[ Technology Type]], $B17, Vehicle_Projections[Vehicle Type], $A17, Vehicle_Projections[Scenario], Input_Scenario_Modeled)) -> 1.85247 | AH17: =IF(Input_Scenario_Modeled="Custom", SUMIFS(Custom_Stock_MPG[Vehicle Stock],Custom_Stock_MPG[Year],Calculations!AH$4, Custom_Stock_MPG[[ Technology Type]], $B17, Custom_Stock_MPG[Vehicle Type], $A17, Custom_Stock_MPG[Scenario], Input_Scenario_Modeled), SUMIFS(Vehicle_Projections[Vehicle Stock],Vehicle_Projections[Year],Calculations!AH$4, Vehicle_Projections[[ Technology Type]], $B17, Vehicle_Projections[Vehicle Type], $A17, Vehicle_Projections[Scenario], Input_Scenario_Modeled)) -> 1.922612 | AI17: =IF(Input_Scenario_Modeled="Custom", SUMIFS(Custom_Stock_MPG[Vehicle Stock],Custom_Stock_MPG[Year],Calculations!AI$4, Custom_Stock_MPG[[ Technology Type]], $B17, Custom_Stock_MPG[Vehicle Type], $A17, Custom_Stock_MPG[Scenario], Input_Scenario_Modeled), SUMIFS(Vehicle_Projections[Vehicle Stock],Vehicle_Projections[Year],Calculations!AI$4, Vehicle_Projections[[ Technology Type]], $B17, Vehicle_Projections[Vehicle Type], $A17, Vehicle_Projections[Scenario], Input_Scenario_Modeled)) -> 1.995738 | AJ17: =IF(Input_Scenario_Modeled="Custom", SUMIFS(Custom_Stock_MPG[Vehicle Stock],Custom_Stock_MPG[Year],Calculations!AJ$4, Custom_Stock_MPG[[ Technology Type]], $B17, Custom_Stock_MPG[Vehicle Type], $A17, Custom_Stock_MPG[Scenario], Input_Scenario_Modeled), SUMIFS(Vehicle_Projections[Vehicle Stock],Vehicle_Projections[Year],Calculations!AJ$4, Vehicle_Projections[[ Technology Type]], $B17, Vehicle_Projections[Vehicle Type], $A17, Vehicle_Projections[Scenario], Input_Scenario_Modeled)) -> 2.07186 | AK17: =IF(Input_Scenario_Modeled="Custom", SUMIFS(Custom_Stock_MPG[Vehicle Stock],Custom_Stock_MPG[Year],Calculations!AK$4, Custom_Stock_MPG[[ Technology Type]], $B17, Custom_Stock_MPG[Vehicle Type], $A17, Custom_Stock_MPG[Scenario], Input_Scenario_Modeled), SUMIFS(Vehicle_Projections[Vehicle Stock],Vehicle_Projections[Year],Calculations!AK$4, Vehicle_Projections[[ Technology Type]], $B17, Vehicle_Projections[Vehicle Type], $A17, Vehicle_Projections[Scenario], Input_Scenario_Modeled)) -> 2.152038 | AL17: =IF(Input_Scenario_Modeled="Custom", SUMIFS(Custom_Stock_MPG[Vehicle Stock],Custom_Stock_MPG[Year],Calculations!AL$4, Custom_Stock_MPG[[ Technology Type]], $B17, Custom_Stock_MPG[Vehicle Type], $A17, Custom_Stock_MPG[Scenario], Input_Scenario_Modeled), SUMIFS(Vehicle_Projections[Vehicle Stock],Vehicle_Projections[Year],Calculations!AL$4, Vehicle_Projections[[ Technology Type]], $B17, Vehicle_Projections[Vehicle Type], $A17, Vehicle_Projections[Scenario], Input_Scenario_Modeled)) -> 2.23657
A18: Light Trucks | B18: TDI Diesel ICE | C18: Diesel | D18: Stock | E18: =IF(Input_Scenario_Modeled="Custom", SUMIFS(Custom_Stock_MPG[Vehicle Stock],Custom_Stock_MPG[Year],Calculations!E$4, Custom_Stock_MPG[[ Technology Type]], $B18, Custom_Stock_MPG[Vehicle Type], $A18, Custom_Stock_MPG[Scenario], Input_Scenario_Modeled), SUMIFS(Vehicle_Projections[Vehicle Stock],Vehicle_Projections[Year],Calculations!E$4, Vehicle_Projections[[ Technology Type]], $B18, Vehicle_Projections[Vehicle Type], $A18, Vehicle_Projections[Scenario], Input_Scenario_Modeled)) -> 0.429247 | F18: =IF(Input_Scenario_Modeled="Custom", SUMIFS(Custom_Stock_MPG[Vehicle Stock],Custom_Stock_MPG[Year],Calculations!F$4, Custom_Stock_MPG[[ Technology Type]], $B18, Custom_Stock_MPG[Vehicle Type], $A18, Custom_Stock_MPG[Scenario], Input_Scenario_Modeled), SUMIFS(Vehicle_Projections[Vehicle Stock],Vehicle_Projections[Year],Calculations!F$4, Vehicle_Projections[[ Technology Type]], $B18, Vehicle_Projections[Vehicle Type], $A18, Vehicle_Projections[Scenario], Input_Scenario_Modeled)) -> 0.494202 | G18: =IF(Input_Scenario_Modeled="Custom", SUMIFS(Custom_Stock_MPG[Vehicle Stock],Custom_Stock_MPG[Year],Calculations!G$4, Custom_Stock_MPG[[ Technology Type]], $B18, Custom_Stock_MPG[Vehicle Type], $A18, Custom_Stock_MPG[Scenario], Input_Scenario_Modeled), SUMIFS(Vehicle_Projections[Vehicle Stock],Vehicle_Projections[Year],Calculations!G$4, Vehicle_Projections[[ Technology Type]], $B18, Vehicle_Projections[Vehicle Type], $A18, Vehicle_Projections[Scenario], Input_Scenario_Modeled)) -> 0.61249 | H18: =IF(Input_Scenario_Modeled="Custom", SUMIFS(Custom_Stock_MPG[Vehicle Stock],Custom_Stock_MPG[Year],Calculations!H$4, Custom_Stock_MPG[[ Technology Type]], $B18, Custom_Stock_MPG[Vehicle Type], $A18, Custom_Stock_MPG[Scenario], Input_Scenario_Modeled), SUMIFS(Vehicle_Projections[Vehicle Stock],Vehicle_Projections[Year],Calculations!H$4, Vehicle_Projections[[ Technology Type]], $B18, Vehicle_Projections[Vehicle Type], $A18, Vehicle_Projections[Scenario], Input_Scenario_Modeled)) -> 0.777353 | I18: =IF(Input_Scenario_Modeled="Custom", SUMIFS(Custom_Stock_MPG[Vehicle Stock],Custom_Stock_MPG[Year],Calculations!I$4, Custom_Stock_MPG[[ Technology Type]], $B18, Custom_Stock_MPG[Vehicle Type], $A18, Custom_Stock_MPG[Scenario], Input_Scenario_Modeled), SUMIFS(Vehicle_Projections[Vehicle Stock],Vehicle_Projections[Year],Calculations!I$4, Vehicle_Projections[[ Technology Type]], $B18, Vehicle_Projections[Vehicle Type], $A18, Vehicle_Projections[Scenario], Input_Scenario_Modeled)) -> 0.943354 | J18: =IF(Input_Scenario_Modeled="Custom", SUMIFS(Custom_Stock_MPG[Vehicle Stock],Custom_Stock_MPG[Year],Calculations!J$4, Custom_Stock_MPG[[ Technology Type]], $B18, Custom_Stock_MPG[Vehicle Type], $A18, Custom_Stock_MPG[Scenario], Input_Scenario_Modeled), SUMIFS(Vehicle_Projections[Vehicle Stock],Vehicle_Projections[Year],Calculations!J$4, Vehicle_Projections[[ Technology Type]], $B18, Vehicle_Projections[Vehicle Type], $A18, Vehicle_Projections[Scenario], Input_Scenario_Modeled)) -> 1.108745 | K18: =IF(Input_Scenario_Modeled="Custom", SUMIFS(Custom_Stock_MPG[Vehicle Stock],Custom_Stock_MPG[Year],Calculations!K$4, Custom_Stock_MPG[[ Technology Type]], $B18, Custom_Stock_MPG[Vehicle Type], $A18, Custom_Stock_MPG[Scenario], Input_Scenario_Modeled), SUMIFS(Vehicle_Projections[Vehicle Stock],Vehicle_Projections[Year],Calculations!K$4, Vehicle_Projections[[ Technology Type]], $B18, Vehicle_Projections[Vehicle Type], $A18, Vehicle_Projections[Scenario], Input_Scenario_Modeled)) -> 1.274453 | L18: =IF(Input_Scenario_Modeled="Custom", SUMIFS(Custom_Stock_MPG[Vehicle Stock],Custom_Stock_MPG[Year],Calculations!L$4, Custom_Stock_MPG[[ Technology Type]], $B18, Custom_Stock_MPG[Vehicle Type], $A18, Custom_Stock_MPG[Scenario], Input_Scenario_Modeled), SUMIFS(Vehicle_Projections[Vehicle Stock],Vehicle_Projections[Year],Calculations!L$4, Vehicle_Projections[[ Technology Type]], $B18, Vehicle_Projections[Vehicle Type], $A18, Vehicle_Projections[Scenario], Input_Scenario_Modeled)) -> 1.436772 | M18: =IF(Input_Scenario_Modeled="Custom", SUMIFS(Custom_Stock_MPG[Vehicle Stock],Custom_Stock_MPG[Year],Calculations!M$4, Custom_Stock_MPG[[ Technology Type]], $B18, Custom_Stock_MPG[Vehicle Type], $A18, Custom_Stock_MPG[Scenario], Input_Scenario_Modeled), SUMIFS(Vehicle_Projections[Vehicle Stock],Vehicle_Projections[Year],Calculations!M$4, Vehicle_Projections[[ Technology Type]], $B18, Vehicle_Projections[Vehicle Type], $A18, Vehicle_Projections[Scenario], Input_Scenario_Modeled)) -> 1.594936 | N18: =IF(Input_Scenario_Modeled="Custom", SUMIFS(Custom_Stock_MPG[Vehicle Stock],Custom_Stock_MPG[Year],Calculations!N$4, Custom_Stock_MPG[[ Technology Type]], $B18, Custom_Stock_MPG[Vehicle Type], $A18, Custom_Stock_MPG[Scenario], Input_Scenario_Modeled), SUMIFS(Vehicle_Projections[Vehicle Stock],Vehicle_Projections[Year],Calculations!N$4, Vehicle_Projections[[ Technology Type]], $B18, Vehicle_Projections[Vehicle Type], $A18, Vehicle_Projections[Scenario], Input_Scenario_Modeled)) -> 1.745153 | O18: =IF(Input_Scenario_Modeled="Custom", SUMIFS(Custom_Stock_MPG[Vehicle Stock],Custom_Stock_MPG[Year],Calculations!O$4, Custom_Stock_MPG[[ Technology Type]], $B18, Custom_Stock_MPG[Vehicle Type], $A18, Custom_Stock_MPG[Scenario], Input_Scenario_Modeled), SUMIFS(Vehicle_Projections[Vehicle Stock],Vehicle_Projections[Year],Calculations!O$4, Vehicle_Projections[[ Technology Type]], $B18, Vehicle_Projections[Vehicle Type], $A18, Vehicle_Projections[Scenario], Input_Scenario_Modeled)) -> 1.879648 | P18: =IF(Input_Scenario_Modeled="Custom", SUMIFS(Custom_Stock_MPG[Vehicle Stock],Custom_Stock_MPG[Year],Calculations!P$4, Custom_Stock_MPG[[ Technology Type]], $B18, Custom_Stock_MPG[Vehicle Type], $A18, Custom_Stock_MPG[Scenario], Input_Scenario_Modeled), SUMIFS(Vehicle_Projections[Vehicle Stock],Vehicle_Projections[Year],Calculations!P$4, Vehicle_Projections[[ Technology Type]], $B18, Vehicle_Projections[Vehicle Type], $A18, Vehicle_Projections[Scenario], Input_Scenario_Modeled)) -> 2.000192 | Q18: =IF(Input_Scenario_Modeled="Custom", SUMIFS(Custom_Stock_MPG[Vehicle Stock],Custom_Stock_MPG[Year],Calculations!Q$4, Custom_Stock_MPG[[ Technology Type]], $B18, Custom_Stock_MPG[Vehicle Type], $A18, Custom_Stock_MPG[Scenario], Input_Scenario_Modeled), SUMIFS(Vehicle_Projections[Vehicle Stock],Vehicle_Projections[Year],Calculations!Q$4, Vehicle_Projections[[ Technology Type]], $B18, Vehicle_Projections[Vehicle Type], $A18, Vehicle_Projections[Scenario], Input_Scenario_Modeled)) -> 2.104411 | R18: =IF(Input_Scenario_Modeled="Custom", SUMIFS(Custom_Stock_MPG[Vehicle Stock],Custom_Stock_MPG[Year],Calculations!R$4, Custom_Stock_MPG[[ Technology Type]], $B18, Custom_Stock_MPG[Vehicle Type], $A18, Custom_Stock_MPG[Scenario], Input_Scenario_Modeled), SUMIFS(Vehicle_Projections[Vehicle Stock],Vehicle_Projections[Year],Calculations!R$4, Vehicle_Projections[[ Technology Type]], $B18, Vehicle_Projections[Vehicle Type], $A18, Vehicle_Projections[Scenario], Input_Scenario_Modeled)) -> 2.194759 | S18: =IF(Input_Scenario_Modeled="Custom", SUMIFS(Custom_Stock_MPG[Vehicle Stock],Custom_Stock_MPG[Year],Calculations!S$4, Custom_Stock_MPG[[ Technology Type]], $B18, Custom_Stock_MPG[Vehicle Type], $A18, Custom_Stock_MPG[Scenario], Input_Scenario_Modeled), SUMIFS(Vehicle_Projections[Vehicle Stock],Vehicle_Projections[Year],Calculations!S$4, Vehicle_Projections[[ Technology Type]], $B18, Vehicle_Projections[Vehicle Type], $A18, Vehicle_Projections[Scenario], Input_Scenario_Modeled)) -> 2.274534 | T18: =IF(Input_Scenario_Modeled="Custom", SUMIFS(Custom_Stock_MPG[Vehicle Stock],Custom_Stock_MPG[Year],Calculations!T$4, Custom_Stock_MPG[[ Technology Type]], $B18, Custom_Stock_MPG[Vehicle Type], $A18, Custom_Stock_MPG[Scenario], Input_Scenario_Modeled), SUMIFS(Vehicle_Projections[Vehicle Stock],Vehicle_Projections[Year],Calculations!T$4, Vehicle_Projections[[ Technology Type]], $B18, Vehicle_Projections[Vehicle Type], $A18, Vehicle_Projections[Scenario], Input_Scenario_Modeled)) -> 2.339217 | U18: =IF(Input_Scenario_Modeled="Custom", SUMIFS(Custom_Stock_MPG[Vehicle Stock],Custom_Stock_MPG[Year],Calculations!U$4, Custom_Stock_MPG[[ Technology Type]], $B18, Custom_Stock_MPG[Vehicle Type], $A18, Custom_Stock_MPG[Scenario], Input_Scenario_Modeled), SUMIFS(Vehicle_Projections[Vehicle Stock],Vehicle_Projections[Year],Calculations!U$4, Vehicle_Projections[[ Technology Type]], $B18, Vehicle_Projections[Vehicle Type], $A18, Vehicle_Projections[Scenario], Input_Scenario_Modeled)) -> 2.389884 | V18: =IF(Input_Scenario_Modeled="Custom", SUMIFS(Custom_Stock_MPG[Vehicle Stock],Custom_Stock_MPG[Year],Calculations!V$4, Custom_Stock_MPG[[ Technology Type]], $B18, Custom_Stock_MPG[Vehicle Type], $A18, Custom_Stock_MPG[Scenario], Input_Scenario_Modeled), SUMIFS(Vehicle_Projections[Vehicle Stock],Vehicle_Projections[Year],Calculations!V$4, Vehicle_Projections[[ Technology Type]], $B18, Vehicle_Projections[Vehicle Type], $A18, Vehicle_Projections[Scenario], Input_Scenario_Modeled)) -> 2.42916 | W18: =IF(Input_Scenario_Modeled="Custom", SUMIFS(Custom_Stock_MPG[Vehicle Stock],Custom_Stock_MPG[Year],Calculations!W$4, Custom_Stock_MPG[[ Technology Type]], $B18, Custom_Stock_MPG[Vehicle Type], $A18, Custom_Stock_MPG[Scenario], Input_Scenario_Modeled), SUMIFS(Vehicle_Projections[Vehicle Stock],Vehicle_Projections[Year],Calculations!W$4, Vehicle_Projections[[ Technology Type]], $B18, Vehicle_Projections[Vehicle Type], $A18, Vehicle_Projections[Scenario], Input_Scenario_Modeled)) -> 2.456599 | X18: =IF(Input_Scenario_Modeled="Custom", SUMIFS(Custom_Stock_MPG[Vehicle Stock],Custom_Stock_MPG[Year],Calculations!X$4, Custom_Stock_MPG[[ Technology Type]], $B18, Custom_Stock_MPG[Vehicle Type], $A18, Custom_Stock_MPG[Scenario], Input_Scenario_Modeled), SUMIFS(Vehicle_Projections[Vehicle Stock],Vehicle_Projections[Year],Calculations!X$4, Vehicle_Projections[[ Technology Type]], $B18, Vehicle_Projections[Vehicle Type], $A18, Vehicle_Projections[Scenario], Input_Scenario_Modeled)) -> 2.473171 | Y18: =IF(Input_Scenario_Modeled="Custom", SUMIFS(Custom_Stock_MPG[Vehicle Stock],Custom_Stock_MPG[Year],Calculations!Y$4, Custom_Stock_MPG[[ Technology Type]], $B18, Custom_Stock_MPG[Vehicle Type], $A18, Custom_Stock_MPG[Scenario], Input_Scenario_Modeled), SUMIFS(Vehicle_Projections[Vehicle Stock],Vehicle_Projections[Year],Calculations!Y$4, Vehicle_Projections[[ Technology Type]], $B18, Vehicle_Projections[Vehicle Type], $A18, Vehicle_Projections[Scenario], Input_Scenario_Modeled)) -> 2.482533 | Z18: =IF(Input_Scenario_Modeled="Custom", SUMIFS(Custom_Stock_MPG[Vehicle Stock],Custom_Stock_MPG[Year],Calculations!Z$4, Custom_Stock_MPG[[ Technology Type]], $B18, Custom_Stock_MPG[Vehicle Type], $A18, Custom_Stock_MPG[Scenario], Input_Scenario_Modeled), SUMIFS(Vehicle_Projections[Vehicle Stock],Vehicle_Projections[Year],Calculations!Z$4, Vehicle_Projections[[ Technology Type]], $B18, Vehicle_Projections[Vehicle Type], $A18, Vehicle_Projections[Scenario], Input_Scenario_Modeled)) -> 2.484463 | AA18: =IF(Input_Scenario_Modeled="Custom", SUMIFS(Custom_Stock_MPG[Vehicle Stock],Custom_Stock_MPG[Year],Calculations!AA$4, Custom_Stock_MPG[[ Technology Type]], $B18, Custom_Stock_MPG[Vehicle Type], $A18, Custom_Stock_MPG[Scenario], Input_Scenario_Modeled), SUMIFS(Vehicle_Projections[Vehicle Stock],Vehicle_Projections[Year],Calculations!AA$4, Vehicle_Projections[[ Technology Type]], $B18, Vehicle_Projections[Vehicle Type], $A18, Vehicle_Projections[Scenario], Input_Scenario_Modeled)) -> 2.479049 | AB18: =IF(Input_Scenario_Modeled="Custom", SUMIFS(Custom_Stock_MPG[Vehicle Stock],Custom_Stock_MPG[Year],Calculations!AB$4, Custom_Stock_MPG[[ Technology Type]], $B18, Custom_Stock_MPG[Vehicle Type], $A18, Custom_Stock_MPG[Scenario], Input_Scenario_Modeled), SUMIFS(Vehicle_Projections[Vehicle Stock],Vehicle_Projections[Year],Calculations!AB$4, Vehicle_Projections[[ Technology Type]], $B18, Vehicle_Projections[Vehicle Type], $A18, Vehicle_Projections[Scenario], Input_Scenario_Modeled)) -> 2.467787 | AC18: =IF(Input_Scenario_Modeled="Custom", SUMIFS(Custom_Stock_MPG[Vehicle Stock],Custom_Stock_MPG[Year],Calculations!AC$4, Custom_Stock_MPG[[ Technology Type]], $B18, Custom_Stock_MPG[Vehicle Type], $A18, Custom_Stock_MPG[Scenario], Input_Scenario_Modeled), SUMIFS(Vehicle_Projections[Vehicle Stock],Vehicle_Projections[Year],Calculations!AC$4, Vehicle_Projections[[ Technology Type]], $B18, Vehicle_Projections[Vehicle Type], $A18, Vehicle_Projections[Scenario], Input_Scenario_Modeled)) -> 2.452773 | AD18: =IF(Input_Scenario_Modeled="Custom", SUMIFS(Custom_Stock_MPG[Vehicle Stock],Custom_Stock_MPG[Year],Calculations!AD$4, Custom_Stock_MPG[[ Technology Type]], $B18, Custom_Stock_MPG[Vehicle Type], $A18, Custom_Stock_MPG[Scenario], Input_Scenario_Modeled), SUMIFS(Vehicle_Projections[Vehicle Stock],Vehicle_Projections[Year],Calculations!AD$4, Vehicle_Projections[[ Technology Type]], $B18, Vehicle_Projections[Vehicle Type], $A18, Vehicle_Projections[Scenario], Input_Scenario_Modeled)) -> 2.433501 | AE18: =IF(Input_Scenario_Modeled="Custom", SUMIFS(Custom_Stock_MPG[Vehicle Stock],Custom_Stock_MPG[Year],Calculations!AE$4, Custom_Stock_MPG[[ Technology Type]], $B18, Custom_Stock_MPG[Vehicle Type], $A18, Custom_Stock_MPG[Scenario], Input_Scenario_Modeled), SUMIFS(Vehicle_Projections[Vehicle Stock],Vehicle_Projections[Year],Calculations!AE$4, Vehicle_Projections[[ Technology Type]], $B18, Vehicle_Projections[Vehicle Type], $A18, Vehicle_Projections[Scenario], Input_Scenario_Modeled)) -> 2.411256 | AF18: =IF(Input_Scenario_Modeled="Custom", SUMIFS(Custom_Stock_MPG[Vehicle Stock],Custom_Stock_MPG[Year],Calculations!AF$4, Custom_Stock_MPG[[ Technology Type]], $B18, Custom_Stock_MPG[Vehicle Type], $A18, Custom_Stock_MPG[Scenario], Input_Scenario_Modeled), SUMIFS(Vehicle_Projections[Vehicle Stock],Vehicle_Projections[Year],Calculations!AF$4, Vehicle_Projections[[ Technology Type]], $B18, Vehicle_Projections[Vehicle Type], $A18, Vehicle_Projections[Scenario], Input_Scenario_Modeled)) -> 2.388016 | AG18: =IF(Input_Scenario_Modeled="Custom", SUMIFS(Custom_Stock_MPG[Vehicle Stock],Custom_Stock_MPG[Year],Calculations!AG$4, Custom_Stock_MPG[[ Technology Type]], $B18, Custom_Stock_MPG[Vehicle Type], $A18, Custom_Stock_MPG[Scenario], Input_Scenario_Modeled), SUMIFS(Vehicle_Projections[Vehicle Stock],Vehicle_Projections[Year],Calculations!AG$4, Vehicle_Projections[[ Technology Type]], $B18, Vehicle_Projections[Vehicle Type], $A18, Vehicle_Projections[Scenario], Input_Scenario_Modeled)) -> 2.363396 | AH18: =IF(Input_Scenario_Modeled="Custom", SUMIFS(Custom_Stock_MPG[Vehicle Stock],Custom_Stock_MPG[Year],Calculations!AH$4, Custom_Stock_MPG[[ Technology Type]], $B18, Custom_Stock_MPG[Vehicle Type], $A18, Custom_Stock_MPG[Scenario], Input_Scenario_Modeled), SUMIFS(Vehicle_Projections[Vehicle Stock],Vehicle_Projections[Year],Calculations!AH$4, Vehicle_Projections[[ Technology Type]], $B18, Vehicle_Projections[Vehicle Type], $A18, Vehicle_Projections[Scenario], Input_Scenario_Modeled)) -> 2.340392 | AI18: =IF(Input_Scenario_Modeled="Custom", SUMIFS(Custom_Stock_MPG[Vehicle Stock],Custom_Stock_MPG[Year],Calculations!AI$4, Custom_Stock_MPG[[ Technology Type]], $B18, Custom_Stock_MPG[Vehicle Type], $A18, Custom_Stock_MPG[Scenario], Input_Scenario_Modeled), SUMIFS(Vehicle_Projections[Vehicle Stock],Vehicle_Projections[Year],Calculations!AI$4, Vehicle_Projections[[ Technology Type]], $B18, Vehicle_Projections[Vehicle Type], $A18, Vehicle_Projections[Scenario], Input_Scenario_Modeled)) -> 2.318142 | AJ18: =IF(Input_Scenario_Modeled="Custom", SUMIFS(Custom_Stock_MPG[Vehicle Stock],Custom_Stock_MPG[Year],Calculations!AJ$4, Custom_Stock_MPG[[ Technology Type]], $B18, Custom_Stock_MPG[Vehicle Type], $A18, Custom_Stock_MPG[Scenario], Input_Scenario_Modeled), SUMIFS(Vehicle_Projections[Vehicle Stock],Vehicle_Projections[Year],Calculations!AJ$4, Vehicle_Projections[[ Technology Type]], $B18, Vehicle_Projections[Vehicle Type], $A18, Vehicle_Projections[Scenario], Input_Scenario_Modeled)) -> 2.295082 | AK18: =IF(Input_Scenario_Modeled="Custom", SUMIFS(Custom_Stock_MPG[Vehicle Stock],Custom_Stock_MPG[Year],Calculations!AK$4, Custom_Stock_MPG[[ Technology Type]], $B18, Custom_Stock_MPG[Vehicle Type], $A18, Custom_Stock_MPG[Scenario], Input_Scenario_Modeled), SUMIFS(Vehicle_Projections[Vehicle Stock],Vehicle_Projections[Year],Calculations!AK$4, Vehicle_Projections[[ Technology Type]], $B18, Vehicle_Projections[Vehicle Type], $A18, Vehicle_Projections[Scenario], Input_Scenario_Modeled)) -> 2.271864 | AL18: =IF(Input_Scenario_Modeled="Custom", SUMIFS(Custom_Stock_MPG[Vehicle Stock],Custom_Stock_MPG[Year],Calculations!AL$4, Custom_Stock_MPG[[ Technology Type]], $B18, Custom_Stock_MPG[Vehicle Type], $A18, Custom_Stock_MPG[Scenario], Input_Scenario_Modeled), SUMIFS(Vehicle_Projections[Vehicle Stock],Vehicle_Projections[Year],Calculations!AL$4, Vehicle_Projections[[ Technology Type]], $B18, Vehicle_Projections[Vehicle Type], $A18, Vehicle_Projections[Scenario], Input_Scenario_Modeled)) -> 2.248193
A19: Light Trucks | B19: Electric-Diesel Hybrid | C19: Diesel | D19: Stock | E19: =IF(Input_Scenario_Modeled="Custom", SUMIFS(Custom_Stock_MPG[Vehicle Stock],Custom_Stock_MPG[Year],Calculations!E$4, Custom_Stock_MPG[[ Technology Type]], $B19, Custom_Stock_MPG[Vehicle Type], $A19, Custom_Stock_MPG[Scenario], Input_Scenario_Modeled), SUMIFS(Vehicle_Projections[Vehicle Stock],Vehicle_Projections[Year],Calculations!E$4, Vehicle_Projections[[ Technology Type]], $B19, Vehicle_Projections[Vehicle Type], $A19, Vehicle_Projections[Scenario], Input_Scenario_Modeled)) -> 0 | F19: =IF(Input_Scenario_Modeled="Custom", SUMIFS(Custom_Stock_MPG[Vehicle Stock],Custom_Stock_MPG[Year],Calculations!F$4, Custom_Stock_MPG[[ Technology Type]], $B19, Custom_Stock_MPG[Vehicle Type], $A19, Custom_Stock_MPG[Scenario], Input_Scenario_Modeled), SUMIFS(Vehicle_Projections[Vehicle Stock],Vehicle_Projections[Year],Calculations!F$4, Vehicle_Projections[[ Technology Type]], $B19, Vehicle_Projections[Vehicle Type], $A19, Vehicle_Projections[Scenario], Input_Scenario_Modeled)) -> 0 | G19: =IF(Input_Scenario_Modeled="Custom", SUMIFS(Custom_Stock_MPG[Vehicle Stock],Custom_Stock_MPG[Year],Calculations!G$4, Custom_Stock_MPG[[ Technology Type]], $B19, Custom_Stock_MPG[Vehicle Type], $A19, Custom_Stock_MPG[Scenario], Input_Scenario_Modeled), SUMIFS(Vehicle_Projections[Vehicle Stock],Vehicle_Projections[Year],Calculations!G$4, Vehicle_Projections[[ Technology Type]], $B19, Vehicle_Projections[Vehicle Type], $A19, Vehicle_Projections[Scenario], Input_Scenario_Modeled)) -> 0 | H19: =IF(Input_Scenario_Modeled="Custom", SUMIFS(Custom_Stock_MPG[Vehicle Stock],Custom_Stock_MPG[Year],Calculations!H$4, Custom_Stock_MPG[[ Technology Type]], $B19, Custom_Stock_MPG[Vehicle Type], $A19, Custom_Stock_MPG[Scenario], Input_Scenario_Modeled), SUMIFS(Vehicle_Projections[Vehicle Stock],Vehicle_Projections[Year],Calculations!H$4, Vehicle_Projections[[ Technology Type]], $B19, Vehicle_Projections[Vehicle Type], $A19, Vehicle_Projections[Scenario], Input_Scenario_Modeled)) -> 0 | I19: =IF(Input_Scenario_Modeled="Custom", SUMIFS(Custom_Stock_MPG[Vehicle Stock],Custom_Stock_MPG[Year],Calculations!I$4, Custom_Stock_MPG[[ Technology Type]], $B19, Custom_Stock_MPG[Vehicle Type], $A19, Custom_Stock_MPG[Scenario], Input_Scenario_Modeled), SUMIFS(Vehicle_Projections[Vehicle Stock],Vehicle_Projections[Year],Calculations!I$4, Vehicle_Projections[[ Technology Type]], $B19, Vehicle_Projections[Vehicle Type], $A19, Vehicle_Projections[Scenario], Input_Scenario_Modeled)) -> 0 | J19: =IF(Input_Scenario_Modeled="Custom", SUMIFS(Custom_Stock_MPG[Vehicle Stock],Custom_Stock_MPG[Year],Calculations!J$4, Custom_Stock_MPG[[ Technology Type]], $B19, Custom_Stock_MPG[Vehicle Type], $A19, Custom_Stock_MPG[Scenario], Input_Scenario_Modeled), SUMIFS(Vehicle_Projections[Vehicle Stock],Vehicle_Projections[Year],Calculations!J$4, Vehicle_Projections[[ Technology Type]], $B19, Vehicle_Projections[Vehicle Type], $A19, Vehicle_Projections[Scenario], Input_Scenario_Modeled)) -> 0 | K19: =IF(Input_Scenario_Modeled="Custom", SUMIFS(Custom_Stock_MPG[Vehicle Stock],Custom_Stock_MPG[Year],Calculations!K$4, Custom_Stock_MPG[[ Technology Type]], $B19, Custom_Stock_MPG[Vehicle Type], $A19, Custom_Stock_MPG[Scenario], Input_Scenario_Modeled), SUMIFS(Vehicle_Projections[Vehicle Stock],Vehicle_Projections[Year],Calculations!K$4, Vehicle_Projections[[ Technology Type]], $B19, Vehicle_Projections[Vehicle Type], $A19, Vehicle_Projections[Scenario], Input_Scenario_Modeled)) -> 0 | L19: =IF(Input_Scenario_Modeled="Custom", SUMIFS(Custom_Stock_MPG[Vehicle Stock],Custom_Stock_MPG[Year],Calculations!L$4, Custom_Stock_MPG[[ Technology Type]], $B19, Custom_Stock_MPG[Vehicle Type], $A19, Custom_Stock_MPG[Scenario], Input_Scenario_Modeled), SUMIFS(Vehicle_Projections[Vehicle Stock],Vehicle_Projections[Year],Calculations!L$4, Vehicle_Projections[[ Technology Type]], $B19, Vehicle_Projections[Vehicle Type], $A19, Vehicle_Projections[Scenario], Input_Scenario_Modeled)) -> 0 | M19: =IF(Input_Scenario_Modeled="Custom", SUMIFS(Custom_Stock_MPG[Vehicle Stock],Custom_Stock_MPG[Year],Calculations!M$4, Custom_Stock_MPG[[ Technology Type]], $B19, Custom_Stock_MPG[Vehicle Type], $A19, Custom_Stock_MPG[Scenario], Input_Scenario_Modeled), SUMIFS(Vehicle_Projections[Vehicle Stock],Vehicle_Projections[Year],Calculations!M$4, Vehicle_Projections[[ Technology Type]], $B19, Vehicle_Projections[Vehicle Type], $A19, Vehicle_Projections[Scenario], Input_Scenario_Modeled)) -> 0 | N19: =IF(Input_Scenario_Modeled="Custom", SUMIFS(Custom_Stock_MPG[Vehicle Stock],Custom_Stock_MPG[Year],Calculations!N$4, Custom_Stock_MPG[[ Technology Type]], $B19, Custom_Stock_MPG[Vehicle Type], $A19, Custom_Stock_MPG[Scenario], Input_Scenario_Modeled), SUMIFS(Vehicle_Projections[Vehicle Stock],Vehicle_Projections[Year],Calculations!N$4, Vehicle_Projections[[ Technology Type]], $B19, Vehicle_Projections[Vehicle Type], $A19, Vehicle_Projections[Scenario], Input_Scenario_Modeled)) -> 1.3e-05 | O19: =IF(Input_Scenario_Modeled="Custom", SUMIFS(Custom_Stock_MPG[Vehicle Stock],Custom_Stock_MPG[Year],Calculations!O$4, Custom_Stock_MPG[[ Technology Type]], $B19, Custom_Stock_MPG[Vehicle Type], $A19, Custom_Stock_MPG[Scenario], Input_Scenario_Modeled), SUMIFS(Vehicle_Projections[Vehicle Stock],Vehicle_Projections[Year],Calculations!O$4, Vehicle_Projections[[ Technology Type]], $B19, Vehicle_Projections[Vehicle Type], $A19, Vehicle_Projections[Scenario], Input_Scenario_Modeled)) -> 3e-05 | P19: =IF(Input_Scenario_Modeled="Custom", SUMIFS(Custom_Stock_MPG[Vehicle Stock],Custom_Stock_MPG[Year],Calculations!P$4, Custom_Stock_MPG[[ Technology Type]], $B19, Custom_Stock_MPG[Vehicle Type], $A19, Custom_Stock_MPG[Scenario], Input_Scenario_Modeled), SUMIFS(Vehicle_Projections[Vehicle Stock],Vehicle_Projections[Year],Calculations!P$4, Vehicle_Projections[[ Technology Type]], $B19, Vehicle_Projections[Vehicle Type], $A19, Vehicle_Projections[Scenario], Input_Scenario_Modeled)) -> 5.1e-05 | Q19: =IF(Input_Scenario_Modeled="Custom", SUMIFS(Custom_Stock_MPG[Vehicle Stock],Custom_Stock_MPG[Year],Calculations!Q$4, Custom_Stock_MPG[[ Technology Type]], $B19, Custom_Stock_MPG[Vehicle Type], $A19, Custom_Stock_MPG[Scenario], Input_Scenario_Modeled), SUMIFS(Vehicle_Projections[Vehicle Stock],Vehicle_Projections[Year],Calculations!Q$4, Vehicle_Projections[[ Technology Type]], $B19, Vehicle_Projections[Vehicle Type], $A19, Vehicle_Projections[Scenario], Input_Scenario_Modeled)) -> 7.8e-05 | R19: =IF(Input_Scenario_Modeled="Custom", SUMIFS(Custom_Stock_MPG[Vehicle Stock],Custom_Stock_MPG[Year],Calculations!R$4, Custom_Stock_MPG[[ Technology Type]], $B19, Custom_Stock_MPG[Vehicle Type], $A19, Custom_Stock_MPG[Scenario], Input_Scenario_Modeled), SUMIFS(Vehicle_Projections[Vehicle Stock],Vehicle_Projections[Year],Calculations!R$4, Vehicle_Projections[[ Technology Type]], $B19, Vehicle_Projections[Vehicle Type], $A19, Vehicle_Projections[Scenario], Input_Scenario_Modeled)) -> 0.00012 | S19: =IF(Input_Scenario_Modeled="Custom", SUMIFS(Custom_Stock_MPG[Vehicle Stock],Custom_Stock_MPG[Year],Calculations!S$4, Custom_Stock_MPG[[ Technology Type]], $B19, Custom_Stock_MPG[Vehicle Type], $A19, Custom_Stock_MPG[Scenario], Input_Scenario_Modeled), SUMIFS(Vehicle_Projections[Vehicle Stock],Vehicle_Projections[Year],Calculations!S$4, Vehicle_Projections[[ Technology Type]], $B19, Vehicle_Projections[Vehicle Type], $A19, Vehicle_Projections[Scenario], Input_Scenario_Modeled)) -> 0.000178 | T19: =IF(Input_Scenario_Modeled="Custom", SUMIFS(Custom_Stock_MPG[Vehicle Stock],Custom_Stock_MPG[Year],Calculations!T$4, Custom_Stock_MPG[[ Technology Type]], $B19, Custom_Stock_MPG[Vehicle Type], $A19, Custom_Stock_MPG[Scenario], Input_Scenario_Modeled), SUMIFS(Vehicle_Projections[Vehicle Stock],Vehicle_Projections[Year],Calculations!T$4, Vehicle_Projections[[ Technology Type]], $B19, Vehicle_Projections[Vehicle Type], $A19, Vehicle_Projections[Scenario], Input_Scenario_Modeled)) -> 0.000248 | U19: =IF(Input_Scenario_Modeled="Custom", SUMIFS(Custom_Stock_MPG[Vehicle Stock],Custom_Stock_MPG[Year],Calculations!U$4, Custom_Stock_MPG[[ Technology Type]], $B19, Custom_Stock_MPG[Vehicle Type], $A19, Custom_Stock_MPG[Scenario], Input_Scenario_Modeled), SUMIFS(Vehicle_Projections[Vehicle Stock],Vehicle_Projections[Year],Calculations!U$4, Vehicle_Projections[[ Technology Type]], $B19, Vehicle_Projections[Vehicle Type], $A19, Vehicle_Projections[Scenario], Input_Scenario_Modeled)) -> 0.000331 | V19: =IF(Input_Scenario_Modeled="Custom", SUMIFS(Custom_Stock_MPG[Vehicle Stock],Custom_Stock_MPG[Year],Calculations!V$4, Custom_Stock_MPG[[ Technology Type]], $B19, Custom_Stock_MPG[Vehicle Type], $A19, Custom_Stock_MPG[Scenario], Input_Scenario_Modeled), SUMIFS(Vehicle_Projections[Vehicle Stock],Vehicle_Projections[Year],Calculations!V$4, Vehicle_Projections[[ Technology Type]], $B19, Vehicle_Projections[Vehicle Type], $A19, Vehicle_Projections[Scenario], Input_Scenario_Modeled)) -> 0.000429 | W19: =IF(Input_Scenario_Modeled="Custom", SUMIFS(Custom_Stock_MPG[Vehicle Stock],Custom_Stock_MPG[Year],Calculations!W$4, Custom_Stock_MPG[[ Technology Type]], $B19, Custom_Stock_MPG[Vehicle Type], $A19, Custom_Stock_MPG[Scenario], Input_Scenario_Modeled), SUMIFS(Vehicle_Projections[Vehicle Stock],Vehicle_Projections[Year],Calculations!W$4, Vehicle_Projections[[ Technology Type]], $B19, Vehicle_Projections[Vehicle Type], $A19, Vehicle_Projections[Scenario], Input_Scenario_Modeled)) -> 0.000542 | X19: =IF(Input_Scenario_Modeled="Custom", SUMIFS(Custom_Stock_MPG[Vehicle Stock],Custom_Stock_MPG[Year],Calculations!X$4, Custom_Stock_MPG[[ Technology Type]], $B19, Custom_Stock_MPG[Vehicle Type], $A19, Custom_Stock_MPG[Scenario], Input_Scenario_Modeled), SUMIFS(Vehicle_Projections[Vehicle Stock],Vehicle_Projections[Year],Calculations!X$4, Vehicle_Projections[[ Technology Type]], $B19, Vehicle_Projections[Vehicle Type], $A19, Vehicle_Projections[Scenario], Input_Scenario_Modeled)) -> 0.000672 | Y19: =IF(Input_Scenario_Modeled="Custom", SUMIFS(Custom_Stock_MPG[Vehicle Stock],Custom_Stock_MPG[Year],Calculations!Y$4, Custom_Stock_MPG[[ Technology Type]], $B19, Custom_Stock_MPG[Vehicle Type], $A19, Custom_Stock_MPG[Scenario], Input_Scenario_Modeled), SUMIFS(Vehicle_Projections[Vehicle Stock],Vehicle_Projections[Year],Calculations!Y$4, Vehicle_Projections[[ Technology Type]], $B19, Vehicle_Projections[Vehicle Type], $A19, Vehicle_Projections[Scenario], Input_Scenario_Modeled)) -> 0.000821 | Z19: =IF(Input_Scenario_Modeled="Custom", SUMIFS(Custom_Stock_MPG[Vehicle Stock],Custom_Stock_MPG[Year],Calculations!Z$4, Custom_Stock_MPG[[ Technology Type]], $B19, Custom_Stock_MPG[Vehicle Type], $A19, Custom_Stock_MPG[Scenario], Input_Scenario_Modeled), SUMIFS(Vehicle_Projections[Vehicle Stock],Vehicle_Projections[Year],Calculations!Z$4, Vehicle_Projections[[ Technology Type]], $B19, Vehicle_Projections[Vehicle Type], $A19, Vehicle_Projections[Scenario], Input_Scenario_Modeled)) -> 0.000987 | AA19: =IF(Input_Scenario_Modeled="Custom", SUMIFS(Custom_Stock_MPG[Vehicle Stock],Custom_Stock_MPG[Year],Calculations!AA$4, Custom_Stock_MPG[[ Technology Type]], $B19, Custom_Stock_MPG[Vehicle Type], $A19, Custom_Stock_MPG[Scenario], Input_Scenario_Modeled), SUMIFS(Vehicle_Projections[Vehicle Stock],Vehicle_Projections[Year],Calculations!AA$4, Vehicle_Projections[[ Technology Type]], $B19, Vehicle_Projections[Vehicle Type], $A19, Vehicle_Projections[Scenario], Input_Scenario_Modeled)) -> 0.001171 | AB19: =IF(Input_Scenario_Modeled="Custom", SUMIFS(Custom_Stock_MPG[Vehicle Stock],Custom_Stock_MPG[Year],Calculations!AB$4, Custom_Stock_MPG[[ Technology Type]], $B19, Custom_Stock_MPG[Vehicle Type], $A19, Custom_Stock_MPG[Scenario], Input_Scenario_Modeled), SUMIFS(Vehicle_Projections[Vehicle Stock],Vehicle_Projections[Year],Calculations!AB$4, Vehicle_Projections[[ Technology Type]], $B19, Vehicle_Projections[Vehicle Type], $A19, Vehicle_Projections[Scenario], Input_Scenario_Modeled)) -> 0.00137 | AC19: =IF(Input_Scenario_Modeled="Custom", SUMIFS(Custom_Stock_MPG[Vehicle Stock],Custom_Stock_MPG[Year],Calculations!AC$4, Custom_Stock_MPG[[ Technology Type]], $B19, Custom_Stock_MPG[Vehicle Type], $A19, Custom_Stock_MPG[Scenario], Input_Scenario_Modeled), SUMIFS(Vehicle_Projections[Vehicle Stock],Vehicle_Projections[Year],Calculations!AC$4, Vehicle_Projections[[ Technology Type]], $B19, Vehicle_Projections[Vehicle Type], $A19, Vehicle_Projections[Scenario], Input_Scenario_Modeled)) -> 0.001583 | AD19: =IF(Input_Scenario_Modeled="Custom", SUMIFS(Custom_Stock_MPG[Vehicle Stock],Custom_Stock_MPG[Year],Calculations!AD$4, Custom_Stock_MPG[[ Technology Type]], $B19, Custom_Stock_MPG[Vehicle Type], $A19, Custom_Stock_MPG[Scenario], Input_Scenario_Modeled), SUMIFS(Vehicle_Projections[Vehicle Stock],Vehicle_Projections[Year],Calculations!AD$4, Vehicle_Projections[[ Technology Type]], $B19, Vehicle_Projections[Vehicle Type], $A19, Vehicle_Projections[Scenario], Input_Scenario_Modeled)) -> 0.001805 | AE19: =IF(Input_Scenario_Modeled="Custom", SUMIFS(Custom_Stock_MPG[Vehicle Stock],Custom_Stock_MPG[Year],Calculations!AE$4, Custom_Stock_MPG[[ Technology Type]], $B19, Custom_Stock_MPG[Vehicle Type], $A19, Custom_Stock_MPG[Scenario], Input_Scenario_Modeled), SUMIFS(Vehicle_Projections[Vehicle Stock],Vehicle_Projections[Year],Calculations!AE$4, Vehicle_Projections[[ Technology Type]], $B19, Vehicle_Projections[Vehicle Type], $A19, Vehicle_Projections[Scenario], Input_Scenario_Modeled)) -> 0.002034 | AF19: =IF(Input_Scenario_Modeled="Custom", SUMIFS(Custom_Stock_MPG[Vehicle Stock],Custom_Stock_MPG[Year],Calculations!AF$4, Custom_Stock_MPG[[ Technology Type]], $B19, Custom_Stock_MPG[Vehicle Type], $A19, Custom_Stock_MPG[Scenario], Input_Scenario_Modeled), SUMIFS(Vehicle_Projections[Vehicle Stock],Vehicle_Projections[Year],Calculations!AF$4, Vehicle_Projections[[ Technology Type]], $B19, Vehicle_Projections[Vehicle Type], $A19, Vehicle_Projections[Scenario], Input_Scenario_Modeled)) -> 0.002268 | AG19: =IF(Input_Scenario_Modeled="Custom", SUMIFS(Custom_Stock_MPG[Vehicle Stock],Custom_Stock_MPG[Year],Calculations!AG$4, Custom_Stock_MPG[[ Technology Type]], $B19, Custom_Stock_MPG[Vehicle Type], $A19, Custom_Stock_MPG[Scenario], Input_Scenario_Modeled), SUMIFS(Vehicle_Projections[Vehicle Stock],Vehicle_Projections[Year],Calculations!AG$4, Vehicle_Projections[[ Technology Type]], $B19, Vehicle_Projections[Vehicle Type], $A19, Vehicle_Projections[Scenario], Input_Scenario_Modeled)) -> 0.002503 | AH19: =IF(Input_Scenario_Modeled="Custom", SUMIFS(Custom_Stock_MPG[Vehicle Stock],Custom_Stock_MPG[Year],Calculations!AH$4, Custom_Stock_MPG[[ Technology Type]], $B19, Custom_Stock_MPG[Vehicle Type], $A19, Custom_Stock_MPG[Scenario], Input_Scenario_Modeled), SUMIFS(Vehicle_Projections[Vehicle Stock],Vehicle_Projections[Year],Calculations!AH$4, Vehicle_Projections[[ Technology Type]], $B19, Vehicle_Projections[Vehicle Type], $A19, Vehicle_Projections[Scenario], Input_Scenario_Modeled)) -> 0.002738 | AI19: =IF(Input_Scenario_Modeled="Custom", SUMIFS(Custom_Stock_MPG[Vehicle Stock],Custom_Stock_MPG[Year],Calculations!AI$4, Custom_Stock_MPG[[ Technology Type]], $B19, Custom_Stock_MPG[Vehicle Type], $A19, Custom_Stock_MPG[Scenario], Input_Scenario_Modeled), SUMIFS(Vehicle_Projections[Vehicle Stock],Vehicle_Projections[Year],Calculations!AI$4, Vehicle_Projections[[ Technology Type]], $B19, Vehicle_Projections[Vehicle Type], $A19, Vehicle_Projections[Scenario], Input_Scenario_Modeled)) -> 0.00297 | AJ19: =IF(Input_Scenario_Modeled="Custom", SUMIFS(Custom_Stock_MPG[Vehicle Stock],Custom_Stock_MPG[Year],Calculations!AJ$4, Custom_Stock_MPG[[ Technology Type]], $B19, Custom_Stock_MPG[Vehicle Type], $A19, Custom_Stock_MPG[Scenario], Input_Scenario_Modeled), SUMIFS(Vehicle_Projections[Vehicle Stock],Vehicle_Projections[Year],Calculations!AJ$4, Vehicle_Projections[[ Technology Type]], $B19, Vehicle_Projections[Vehicle Type], $A19, Vehicle_Projections[Scenario], Input_Scenario_Modeled)) -> 0.003194 | AK19: =IF(Input_Scenario_Modeled="Custom", SUMIFS(Custom_Stock_MPG[Vehicle Stock],Custom_Stock_MPG[Year],Calculations!AK$4, Custom_Stock_MPG[[ Technology Type]], $B19, Custom_Stock_MPG[Vehicle Type], $A19, Custom_Stock_MPG[Scenario], Input_Scenario_Modeled), SUMIFS(Vehicle_Projections[Vehicle Stock],Vehicle_Projections[Year],Calculations!AK$4, Vehicle_Projections[[ Technology Type]], $B19, Vehicle_Projections[Vehicle Type], $A19, Vehicle_Projections[Scenario], Input_Scenario_Modeled)) -> 0.003412 | AL19: =IF(Input_Scenario_Modeled="Custom", SUMIFS(Custom_Stock_MPG[Vehicle Stock],Custom_Stock_MPG[Year],Calculations!AL$4, Custom_Stock_MPG[[ Technology Type]], $B19, Custom_Stock_MPG[Vehicle Type], $A19, Custom_Stock_MPG[Scenario], Input_Scenario_Modeled), SUMIFS(Vehicle_Projections[Vehicle Stock],Vehicle_Projections[Year],Calculations!AL$4, Vehicle_Projections[[ Technology Type]], $B19, Vehicle_Projections[Vehicle Type], $A19, Vehicle_Projections[Scenario], Input_Scenario_Modeled)) -> 0.003621
A20: Light Trucks | B20: 100 Mile Electric Vehicle | C20: Electricity | D20: Stock | E20: =IF(Input_Scenario_Modeled="Custom", SUMIFS(Custom_Stock_MPG[Vehicle Stock],Custom_Stock_MPG[Year],Calculations!E$4, Custom_Stock_MPG[[ Technology Type]], $B20, Custom_Stock_MPG[Vehicle Type], $A20, Custom_Stock_MPG[Scenario], Input_Scenario_Modeled), SUMIFS(Vehicle_Projections[Vehicle Stock],Vehicle_Projections[Year],Calculations!E$4, Vehicle_Projections[[ Technology Type]], $B20, Vehicle_Projections[Vehicle Type], $A20, Vehicle_Projections[Scenario], Input_Scenario_Modeled)) -> 0.004057 | F20: =IF(Input_Scenario_Modeled="Custom", SUMIFS(Custom_Stock_MPG[Vehicle Stock],Custom_Stock_MPG[Year],Calculations!F$4, Custom_Stock_MPG[[ Technology Type]], $B20, Custom_Stock_MPG[Vehicle Type], $A20, Custom_Stock_MPG[Scenario], Input_Scenario_Modeled), SUMIFS(Vehicle_Projections[Vehicle Stock],Vehicle_Projections[Year],Calculations!F$4, Vehicle_Projections[[ Technology Type]], $B20, Vehicle_Projections[Vehicle Type], $A20, Vehicle_Projections[Scenario], Input_Scenario_Modeled)) -> 0.009334 | G20: =IF(Input_Scenario_Modeled="Custom", SUMIFS(Custom_Stock_MPG[Vehicle Stock],Custom_Stock_MPG[Year],Calculations!G$4, Custom_Stock_MPG[[ Technology Type]], $B20, Custom_Stock_MPG[Vehicle Type], $A20, Custom_Stock_MPG[Scenario], Input_Scenario_Modeled), SUMIFS(Vehicle_Projections[Vehicle Stock],Vehicle_Projections[Year],Calculations!G$4, Vehicle_Projections[[ Technology Type]], $B20, Vehicle_Projections[Vehicle Type], $A20, Vehicle_Projections[Scenario], Input_Scenario_Modeled)) -> 0.031371 | H20: =IF(Input_Scenario_Modeled="Custom", SUMIFS(Custom_Stock_MPG[Vehicle Stock],Custom_Stock_MPG[Year],Calculations!H$4, Custom_Stock_MPG[[ Technology Type]], $B20, Custom_Stock_MPG[Vehicle Type], $A20, Custom_Stock_MPG[Scenario], Input_Scenario_Modeled), SUMIFS(Vehicle_Projections[Vehicle Stock],Vehicle_Projections[Year],Calculations!H$4, Vehicle_Projections[[ Technology Type]], $B20, Vehicle_Projections[Vehicle Type], $A20, Vehicle_Projections[Scenario], Input_Scenario_Modeled)) -> 0.061464 | I20: =IF(Input_Scenario_Modeled="Custom", SUMIFS(Custom_Stock_MPG[Vehicle Stock],Custom_Stock_MPG[Year],Calculations!I$4, Custom_Stock_MPG[[ Technology Type]], $B20, Custom_Stock_MPG[Vehicle Type], $A20, Custom_Stock_MPG[Scenario], Input_Scenario_Modeled), SUMIFS(Vehicle_Projections[Vehicle Stock],Vehicle_Projections[Year],Calculations!I$4, Vehicle_Projections[[ Technology Type]], $B20, Vehicle_Projections[Vehicle Type], $A20, Vehicle_Projections[Scenario], Input_Scenario_Modeled)) -> 0.10489 | J20: =IF(Input_Scenario_Modeled="Custom", SUMIFS(Custom_Stock_MPG[Vehicle Stock],Custom_Stock_MPG[Year],Calculations!J$4, Custom_Stock_MPG[[ Technology Type]], $B20, Custom_Stock_MPG[Vehicle Type], $A20, Custom_Stock_MPG[Scenario], Input_Scenario_Modeled), SUMIFS(Vehicle_Projections[Vehicle Stock],Vehicle_Projections[Year],Calculations!J$4, Vehicle_Projections[[ Technology Type]], $B20, Vehicle_Projections[Vehicle Type], $A20, Vehicle_Projections[Scenario], Input_Scenario_Modeled)) -> 0.161669 | K20: =IF(Input_Scenario_Modeled="Custom", SUMIFS(Custom_Stock_MPG[Vehicle Stock],Custom_Stock_MPG[Year],Calculations!K$4, Custom_Stock_MPG[[ Technology Type]], $B20, Custom_Stock_MPG[Vehicle Type], $A20, Custom_Stock_MPG[Scenario], Input_Scenario_Modeled), SUMIFS(Vehicle_Projections[Vehicle Stock],Vehicle_Projections[Year],Calculations!K$4, Vehicle_Projections[[ Technology Type]], $B20, Vehicle_Projections[Vehicle Type], $A20, Vehicle_Projections[Scenario], Input_Scenario_Modeled)) -> 0.219542 | L20: =IF(Input_Scenario_Modeled="Custom", SUMIFS(Custom_Stock_MPG[Vehicle Stock],Custom_Stock_MPG[Year],Calculations!L$4, Custom_Stock_MPG[[ Technology Type]], $B20, Custom_Stock_MPG[Vehicle Type], $A20, Custom_Stock_MPG[Scenario], Input_Scenario_Modeled), SUMIFS(Vehicle_Projections[Vehicle Stock],Vehicle_Projections[Year],Calculations!L$4, Vehicle_Projections[[ Technology Type]], $B20, Vehicle_Projections[Vehicle Type], $A20, Vehicle_Projections[Scenario], Input_Scenario_Modeled)) -> 0.282775 | M20: =IF(Input_Scenario_Modeled="Custom", SUMIFS(Custom_Stock_MPG[Vehicle Stock],Custom_Stock_MPG[Year],Calculations!M$4, Custom_Stock_MPG[[ Technology Type]], $B20, Custom_Stock_MPG[Vehicle Type], $A20, Custom_Stock_MPG[Scenario], Input_Scenario_Modeled), SUMIFS(Vehicle_Projections[Vehicle Stock],Vehicle_Projections[Year],Calculations!M$4, Vehicle_Projections[[ Technology Type]], $B20, Vehicle_Projections[Vehicle Type], $A20, Vehicle_Projections[Scenario], Input_Scenario_Modeled)) -> 0.350063 | N20: =IF(Input_Scenario_Modeled="Custom", SUMIFS(Custom_Stock_MPG[Vehicle Stock],Custom_Stock_MPG[Year],Calculations!N$4, Custom_Stock_MPG[[ Technology Type]], $B20, Custom_Stock_MPG[Vehicle Type], $A20, Custom_Stock_MPG[Scenario], Input_Scenario_Modeled), SUMIFS(Vehicle_Projections[Vehicle Stock],Vehicle_Projections[Year],Calculations!N$4, Vehicle_Projections[[ Technology Type]], $B20, Vehicle_Projections[Vehicle Type], $A20, Vehicle_Projections[Scenario], Input_Scenario_Modeled)) -> 0.416434 | O20: =IF(Input_Scenario_Modeled="Custom", SUMIFS(Custom_Stock_MPG[Vehicle Stock],Custom_Stock_MPG[Year],Calculations!O$4, Custom_Stock_MPG[[ Technology Type]], $B20, Custom_Stock_MPG[Vehicle Type], $A20, Custom_Stock_MPG[Scenario], Input_Scenario_Modeled), SUMIFS(Vehicle_Projections[Vehicle Stock],Vehicle_Projections[Year],Calculations!O$4, Vehicle_Projections[[ Technology Type]], $B20, Vehicle_Projections[Vehicle Type], $A20, Vehicle_Projections[Scenario], Input_Scenario_Modeled)) -> 0.481525 | P20: =IF(Input_Scenario_Modeled="Custom", SUMIFS(Custom_Stock_MPG[Vehicle Stock],Custom_Stock_MPG[Year],Calculations!P$4, Custom_Stock_MPG[[ Technology Type]], $B20, Custom_Stock_MPG[Vehicle Type], $A20, Custom_Stock_MPG[Scenario], Input_Scenario_Modeled), SUMIFS(Vehicle_Projections[Vehicle Stock],Vehicle_Projections[Year],Calculations!P$4, Vehicle_Projections[[ Technology Type]], $B20, Vehicle_Projections[Vehicle Type], $A20, Vehicle_Projections[Scenario], Input_Scenario_Modeled)) -> 0.542539 | Q20: =IF(Input_Scenario_Modeled="Custom", SUMIFS(Custom_Stock_MPG[Vehicle Stock],Custom_Stock_MPG[Year],Calculations!Q$4, Custom_Stock_MPG[[ Technology Type]], $B20, Custom_Stock_MPG[Vehicle Type], $A20, Custom_Stock_MPG[Scenario], Input_Scenario_Modeled), SUMIFS(Vehicle_Projections[Vehicle Stock],Vehicle_Projections[Year],Calculations!Q$4, Vehicle_Projections[[ Technology Type]], $B20, Vehicle_Projections[Vehicle Type], $A20, Vehicle_Projections[Scenario], Input_Scenario_Modeled)) -> 0.602825 | R20: =IF(Input_Scenario_Modeled="Custom", SUMIFS(Custom_Stock_MPG[Vehicle Stock],Custom_Stock_MPG[Year],Calculations!R$4, Custom_Stock_MPG[[ Technology Type]], $B20, Custom_Stock_MPG[Vehicle Type], $A20, Custom_Stock_MPG[Scenario], Input_Scenario_Modeled), SUMIFS(Vehicle_Projections[Vehicle Stock],Vehicle_Projections[Year],Calculations!R$4, Vehicle_Projections[[ Technology Type]], $B20, Vehicle_Projections[Vehicle Type], $A20, Vehicle_Projections[Scenario], Input_Scenario_Modeled)) -> 0.661339 | S20: =IF(Input_Scenario_Modeled="Custom", SUMIFS(Custom_Stock_MPG[Vehicle Stock],Custom_Stock_MPG[Year],Calculations!S$4, Custom_Stock_MPG[[ Technology Type]], $B20, Custom_Stock_MPG[Vehicle Type], $A20, Custom_Stock_MPG[Scenario], Input_Scenario_Modeled), SUMIFS(Vehicle_Projections[Vehicle Stock],Vehicle_Projections[Year],Calculations!S$4, Vehicle_Projections[[ Technology Type]], $B20, Vehicle_Projections[Vehicle Type], $A20, Vehicle_Projections[Scenario], Input_Scenario_Modeled)) -> 0.718898 | T20: =IF(Input_Scenario_Modeled="Custom", SUMIFS(Custom_Stock_MPG[Vehicle Stock],Custom_Stock_MPG[Year],Calculations!T$4, Custom_Stock_MPG[[ Technology Type]], $B20, Custom_Stock_MPG[Vehicle Type], $A20, Custom_Stock_MPG[Scenario], Input_Scenario_Modeled), SUMIFS(Vehicle_Projections[Vehicle Stock],Vehicle_Projections[Year],Calculations!T$4, Vehicle_Projections[[ Technology Type]], $B20, Vehicle_Projections[Vehicle Type], $A20, Vehicle_Projections[Scenario], Input_Scenario_Modeled)) -> 0.770852 | U20: =IF(Input_Scenario_Modeled="Custom", SUMIFS(Custom_Stock_MPG[Vehicle Stock],Custom_Stock_MPG[Year],Calculations!U$4, Custom_Stock_MPG[[ Technology Type]], $B20, Custom_Stock_MPG[Vehicle Type], $A20, Custom_Stock_MPG[Scenario], Input_Scenario_Modeled), SUMIFS(Vehicle_Projections[Vehicle Stock],Vehicle_Projections[Year],Calculations!U$4, Vehicle_Projections[[ Technology Type]], $B20, Vehicle_Projections[Vehicle Type], $A20, Vehicle_Projections[Scenario], Input_Scenario_Modeled)) -> 0.821481 | V20: =IF(Input_Scenario_Modeled="Custom", SUMIFS(Custom_Stock_MPG[Vehicle Stock],Custom_Stock_MPG[Year],Calculations!V$4, Custom_Stock_MPG[[ Technology Type]], $B20, Custom_Stock_MPG[Vehicle Type], $A20, Custom_Stock_MPG[Scenario], Input_Scenario_Modeled), SUMIFS(Vehicle_Projections[Vehicle Stock],Vehicle_Projections[Year],Calculations!V$4, Vehicle_Projections[[ Technology Type]], $B20, Vehicle_Projections[Vehicle Type], $A20, Vehicle_Projections[Scenario], Input_Scenario_Modeled)) -> 0.871826 | W20: =IF(Input_Scenario_Modeled="Custom", SUMIFS(Custom_Stock_MPG[Vehicle Stock],Custom_Stock_MPG[Year],Calculations!W$4, Custom_Stock_MPG[[ Technology Type]], $B20, Custom_Stock_MPG[Vehicle Type], $A20, Custom_Stock_MPG[Scenario], Input_Scenario_Modeled), SUMIFS(Vehicle_Projections[Vehicle Stock],Vehicle_Projections[Year],Calculations!W$4, Vehicle_Projections[[ Technology Type]], $B20, Vehicle_Projections[Vehicle Type], $A20, Vehicle_Projections[Scenario], Input_Scenario_Modeled)) -> 0.922183 | X20: =IF(Input_Scenario_Modeled="Custom", SUMIFS(Custom_Stock_MPG[Vehicle Stock],Custom_Stock_MPG[Year],Calculations!X$4, Custom_Stock_MPG[[ Technology Type]], $B20, Custom_Stock_MPG[Vehicle Type], $A20, Custom_Stock_MPG[Scenario], Input_Scenario_Modeled), SUMIFS(Vehicle_Projections[Vehicle Stock],Vehicle_Projections[Year],Calculations!X$4, Vehicle_Projections[[ Technology Type]], $B20, Vehicle_Projections[Vehicle Type], $A20, Vehicle_Projections[Scenario], Input_Scenario_Modeled)) -> 0.973333 | Y20: =IF(Input_Scenario_Modeled="Custom", SUMIFS(Custom_Stock_MPG[Vehicle Stock],Custom_Stock_MPG[Year],Calculations!Y$4, Custom_Stock_MPG[[ Technology Type]], $B20, Custom_Stock_MPG[Vehicle Type], $A20, Custom_Stock_MPG[Scenario], Input_Scenario_Modeled), SUMIFS(Vehicle_Projections[Vehicle Stock],Vehicle_Projections[Year],Calculations!Y$4, Vehicle_Projections[[ Technology Type]], $B20, Vehicle_Projections[Vehicle Type], $A20, Vehicle_Projections[Scenario], Input_Scenario_Modeled)) -> 1.024417 | Z20: =IF(Input_Scenario_Modeled="Custom", SUMIFS(Custom_Stock_MPG[Vehicle Stock],Custom_Stock_MPG[Year],Calculations!Z$4, Custom_Stock_MPG[[ Technology Type]], $B20, Custom_Stock_MPG[Vehicle Type], $A20, Custom_Stock_MPG[Scenario], Input_Scenario_Modeled), SUMIFS(Vehicle_Projections[Vehicle Stock],Vehicle_Projections[Year],Calculations!Z$4, Vehicle_Projections[[ Technology Type]], $B20, Vehicle_Projections[Vehicle Type], $A20, Vehicle_Projections[Scenario], Input_Scenario_Modeled)) -> 1.077613 | AA20: =IF(Input_Scenario_Modeled="Custom", SUMIFS(Custom_Stock_MPG[Vehicle Stock],Custom_Stock_MPG[Year],Calculations!AA$4, Custom_Stock_MPG[[ Technology Type]], $B20, Custom_Stock_MPG[Vehicle Type], $A20, Custom_Stock_MPG[Scenario], Input_Scenario_Modeled), SUMIFS(Vehicle_Projections[Vehicle Stock],Vehicle_Projections[Year],Calculations!AA$4, Vehicle_Projections[[ Technology Type]], $B20, Vehicle_Projections[Vehicle Type], $A20, Vehicle_Projections[Scenario], Input_Scenario_Modeled)) -> 1.133643 | AB20: =IF(Input_Scenario_Modeled="Custom", SUMIFS(Custom_Stock_MPG[Vehicle Stock],Custom_Stock_MPG[Year],Calculations!AB$4, Custom_Stock_MPG[[ Technology Type]], $B20, Custom_Stock_MPG[Vehicle Type], $A20, Custom_Stock_MPG[Scenario], Input_Scenario_Modeled), SUMIFS(Vehicle_Projections[Vehicle Stock],Vehicle_Projections[Year],Calculations!AB$4, Vehicle_Projections[[ Technology Type]], $B20, Vehicle_Projections[Vehicle Type], $A20, Vehicle_Projections[Scenario], Input_Scenario_Modeled)) -> 1.193458 | AC20: =IF(Input_Scenario_Modeled="Custom", SUMIFS(Custom_Stock_MPG[Vehicle Stock],Custom_Stock_MPG[Year],Calculations!AC$4, Custom_Stock_MPG[[ Technology Type]], $B20, Custom_Stock_MPG[Vehicle Type], $A20, Custom_Stock_MPG[Scenario], Input_Scenario_Modeled), SUMIFS(Vehicle_Projections[Vehicle Stock],Vehicle_Projections[Year],Calculations!AC$4, Vehicle_Projections[[ Technology Type]], $B20, Vehicle_Projections[Vehicle Type], $A20, Vehicle_Projections[Scenario], Input_Scenario_Modeled)) -> 1.256843 | AD20: =IF(Input_Scenario_Modeled="Custom", SUMIFS(Custom_Stock_MPG[Vehicle Stock],Custom_Stock_MPG[Year],Calculations!AD$4, Custom_Stock_MPG[[ Technology Type]], $B20, Custom_Stock_MPG[Vehicle Type], $A20, Custom_Stock_MPG[Scenario], Input_Scenario_Modeled), SUMIFS(Vehicle_Projections[Vehicle Stock],Vehicle_Projections[Year],Calculations!AD$4, Vehicle_Projections[[ Technology Type]], $B20, Vehicle_Projections[Vehicle Type], $A20, Vehicle_Projections[Scenario], Input_Scenario_Modeled)) -> 1.324353 | AE20: =IF(Input_Scenario_Modeled="Custom", SUMIFS(Custom_Stock_MPG[Vehicle Stock],Custom_Stock_MPG[Year],Calculations!AE$4, Custom_Stock_MPG[[ Technology Type]], $B20, Custom_Stock_MPG[Vehicle Type], $A20, Custom_Stock_MPG[Scenario], Input_Scenario_Modeled), SUMIFS(Vehicle_Projections[Vehicle Stock],Vehicle_Projections[Year],Calculations!AE$4, Vehicle_Projections[[ Technology Type]], $B20, Vehicle_Projections[Vehicle Type], $A20, Vehicle_Projections[Scenario], Input_Scenario_Modeled)) -> 1.396715 | AF20: =IF(Input_Scenario_Modeled="Custom", SUMIFS(Custom_Stock_MPG[Vehicle Stock],Custom_Stock_MPG[Year],Calculations!AF$4, Custom_Stock_MPG[[ Technology Type]], $B20, Custom_Stock_MPG[Vehicle Type], $A20, Custom_Stock_MPG[Scenario], Input_Scenario_Modeled), SUMIFS(Vehicle_Projections[Vehicle Stock],Vehicle_Projections[Year],Calculations!AF$4, Vehicle_Projections[[ Technology Type]], $B20, Vehicle_Projections[Vehicle Type], $A20, Vehicle_Projections[Scenario], Input_Scenario_Modeled)) -> 1.475077 | AG20: =IF(Input_Scenario_Modeled="Custom", SUMIFS(Custom_Stock_MPG[Vehicle Stock],Custom_Stock_MPG[Year],Calculations!AG$4, Custom_Stock_MPG[[ Technology Type]], $B20, Custom_Stock_MPG[Vehicle Type], $A20, Custom_Stock_MPG[Scenario], Input_Scenario_Modeled), SUMIFS(Vehicle_Projections[Vehicle Stock],Vehicle_Projections[Year],Calculations!AG$4, Vehicle_Projections[[ Technology Type]], $B20, Vehicle_Projections[Vehicle Type], $A20, Vehicle_Projections[Scenario], Input_Scenario_Modeled)) -> 1.559884 | AH20: =IF(Input_Scenario_Modeled="Custom", SUMIFS(Custom_Stock_MPG[Vehicle Stock],Custom_Stock_MPG[Year],Calculations!AH$4, Custom_Stock_MPG[[ Technology Type]], $B20, Custom_Stock_MPG[Vehicle Type], $A20, Custom_Stock_MPG[Scenario], Input_Scenario_Modeled), SUMIFS(Vehicle_Projections[Vehicle Stock],Vehicle_Projections[Year],Calculations!AH$4, Vehicle_Projections[[ Technology Type]], $B20, Vehicle_Projections[Vehicle Type], $A20, Vehicle_Projections[Scenario], Input_Scenario_Modeled)) -> 1.652368 | AI20: =IF(Input_Scenario_Modeled="Custom", SUMIFS(Custom_Stock_MPG[Vehicle Stock],Custom_Stock_MPG[Year],Calculations!AI$4, Custom_Stock_MPG[[ Technology Type]], $B20, Custom_Stock_MPG[Vehicle Type], $A20, Custom_Stock_MPG[Scenario], Input_Scenario_Modeled), SUMIFS(Vehicle_Projections[Vehicle Stock],Vehicle_Projections[Year],Calculations!AI$4, Vehicle_Projections[[ Technology Type]], $B20, Vehicle_Projections[Vehicle Type], $A20, Vehicle_Projections[Scenario], Input_Scenario_Modeled)) -> 1.753064 | AJ20: =IF(Input_Scenario_Modeled="Custom", SUMIFS(Custom_Stock_MPG[Vehicle Stock],Custom_Stock_MPG[Year],Calculations!AJ$4, Custom_Stock_MPG[[ Technology Type]], $B20, Custom_Stock_MPG[Vehicle Type], $A20, Custom_Stock_MPG[Scenario], Input_Scenario_Modeled), SUMIFS(Vehicle_Projections[Vehicle Stock],Vehicle_Projections[Year],Calculations!AJ$4, Vehicle_Projections[[ Technology Type]], $B20, Vehicle_Projections[Vehicle Type], $A20, Vehicle_Projections[Scenario], Input_Scenario_Modeled)) -> 1.863072 | AK20: =IF(Input_Scenario_Modeled="Custom", SUMIFS(Custom_Stock_MPG[Vehicle Stock],Custom_Stock_MPG[Year],Calculations!AK$4, Custom_Stock_MPG[[ Technology Type]], $B20, Custom_Stock_MPG[Vehicle Type], $A20, Custom_Stock_MPG[Scenario], Input_Scenario_Modeled), SUMIFS(Vehicle_Projections[Vehicle Stock],Vehicle_Projections[Year],Calculations!AK$4, Vehicle_Projections[[ Technology Type]], $B20, Vehicle_Projections[Vehicle Type], $A20, Vehicle_Projections[Scenario], Input_Scenario_Modeled)) -> 1.98331 | AL20: =IF(Input_Scenario_Modeled="Custom", SUMIFS(Custom_Stock_MPG[Vehicle Stock],Custom_Stock_MPG[Year],Calculations!AL$4, Custom_Stock_MPG[[ Technology Type]], $B20, Custom_Stock_MPG[Vehicle Type], $A20, Custom_Stock_MPG[Scenario], Input_Scenario_Modeled), SUMIFS(Vehicle_Projections[Vehicle Stock],Vehicle_Projections[Year],Calculations!AL$4, Vehicle_Projections[[ Technology Type]], $B20, Vehicle_Projections[Vehicle Type], $A20, Vehicle_Projections[Scenario], Input_Scenario_Modeled)) -> 2.114828
